{"text_format":"2","workbook":"xlsx","n_sheets":2,"sheets":["на 01,01,18","на 31,12,18"],"not_rendered":{"charts":0,"images":0,"macros":0,"external_links":0,"defined_names":2,"comments":0,"pivot_tables":0},"unopened":[],"bounds":{"document_bytes":16777216,"sheet_cells":100000,"run_cost":"one","rows_first":2000,"rows_last":500,"rows_between":2000,"halvings":0,"cell_chars":16384,"cell_head_chars":4096},"cells_cut":0,"cells_raw":0,"read":"whole","date_system":"1900"}

{"sheet":"на 01,01,18","index":0,"n_rows":1304,"n_cols":5,"rows_kept":1304,"cut":false,"hidden":false,"merged":[[0,3,0,4],[1,2,1,4],[2,2,2,4],[4,3,4,4],[5,0,5,4],[7,0,7,4],[8,0,8,4],[13,0,13,3],[19,0,19,3],[24,0,24,3],[29,0,29,3],[35,0,35,3],[41,0,41,3],[45,0,45,3],[51,0,51,3],[61,0,61,3],[77,0,77,3],[100,0,100,3],[116,0,116,3],[128,0,128,3],[145,0,145,3],[161,0,161,3],[167,0,167,3],[182,0,182,3],[187,0,187,3],[189,0,189,3],[194,0,194,3],[219,0,219,3],[228,0,228,3],[241,0,241,3],[242,0,242,3],[245,0,245,3],[248,0,248,3],[252,0,252,3],[257,0,257,3],[264,0,264,3],[268,0,268,3],[285,0,285,3],[305,0,305,3],[325,0,325,3],[345,0,345,3],[352,0,352,3],[353,0,353,3],[367,0,367,3],[385,0,385,3],[403,0,403,3],[409,0,409,3],[417,0,417,3],[433,0,433,3],[445,0,445,3],[453,0,453,3],[454,0,454,3],[462,0,462,3],[503,0,503,3],[524,0,524,3],[527,0,527,3],[594,0,594,3],[667,0,667,3],[756,0,756,3],[766,0,766,3],[778,0,778,3],[797,0,797,3],[799,0,799,3],[800,0,800,3],[804,0,804,3],[807,0,807,3],[811,0,811,3],[823,0,823,3],[828,0,828,3],[852,0,852,3],[873,0,873,3],[878,0,878,3],[884,0,884,3],[890,0,890,3],[894,0,894,3],[896,0,896,3],[898,0,898,3],[900,0,900,3],[902,0,902,3],[983,0,983,3],[990,0,990,3],[1010,0,1010,3],[1090,0,1090,3],[1092,0,1092,3],[1096,0,1096,3],[1098,0,1098,3],[1099,2,1099,3],[1116,2,1116,3],[1179,1,1179,4],[1182,2,1182,3],[1188,2,1188,3],[1191,2,1191,3],[1202,2,1202,3],[1216,2,1216,3],[1219,2,1219,3],[1225,2,1225,3],[1228,2,1228,3],[1236,2,1236,3],[1242,2,1242,3],[1244,2,1244,3],[1247,2,1247,3],[1249,2,1249,3],[1252,2,1252,3],[1264,1,1264,2],[9,2,11,2],[9,3,11,3],[9,4,11,4],[9,0,11,1]]}
[null,null,null,"УТВЕРЖДАЮ"]
[null,null,"Главный врач ГБУЗ АО \"Ахтубинская РБ\""]
[null,null,"________________________Е.И.Шиянова"]
[null,null,null,"2018-01-01"]
[]
["ПРЕЙСКУРАНТ ТАРИФОВ НА ПЛАТНЫЕ МЕДИЦИНСКИЕ И СЕРВИСНЫЕ УСЛУГИ, ОКАЗЫВАЕМЫЕ НАСЕЛЕНИЮ ГБУЗ АО \"АХТУБИНСКАЯ РБ\""]
[]
["АМБУЛАТОРНО-ПОЛИКЛИНИЧЕСКАЯ ПОМОЩЬ"]
[]
["код услуги",null,"           Наименование услуги","единица измерения","Тарифы, руб."]
[]
[]
[]
["Кабинет врача-терапевта"]
["В","01.047.001.001","Прием (осмотр, консультация) врача - терапевта первичный (в поликлинике)","1 консультация",249]
["В","01.047.002.001","Прием (осмотр, консультация) врача - терапевта повторный (в поликлинике)","1 консультация",166]
["В","01.047.001.002","Прием (осмотр, консультация) врача - терапевта первичный (на дому)","1 консультация",415]
["В","04.047.002","Профилактический прием (осмотр, консультация) врача - терапевта ","1 консультация",208]
["В","01.047.001.003","Прием (осмотр, консультация) врача - терапевта первичный (консультация районного специалиста)","1 консультация",415]
["Кабинет врача-кардиолога"]
["B","01.015.001.001","Прием (осмотр, консультация) врача - кардиолога первичный (в поликлинике)","1 консультация",327]
["B","01.015.002.001","Прием (осмотр, консультация) врача - кардиолога повторный (в поликлинике)","1 консультация",229]
["В","01.015.001.002","Прием (осмотр, консультация) врача - кардиолога первичный (на дому)","1 консультация",982]
["В","04.015.002","Профилактический прием (осмотр, консультация) врача - кардиолога","1 консультация",245]
["Кабинет врача-ревматолога"]
["B","01.040.001.001","Прием (осмотр, консультация) врача - ревматолога первичный (в поликлинике)","1 консультация",491]
["B","01.040.002.001","Прием (осмотр, консультация) врача - ревматолога повторный (в поликлинике)","1 консультация",344]
["B","01.040.001.002","Прием (осмотр, консультация) врача - ревматолога первичный (на дому)","1 консультация",736]
["B","04.040.002","Профилактический прием (осмотр, консультация) врача - ревматолога","1 консультация",327]
["Кабинет врача-эндокринолога"]
["B","01.058.001.001","Прием (осмотр, консультация) врача - эндокринолога первичный (в поликлинике)","1 консультация",278]
["B","01.058.002.001","Прием (осмотр, консультация) врача - эндокринолога повторный (в поликлинике)","1 консультация",196]
["B","01.058.001.002","Прием (осмотр, консультация) врача - эндокринолога первичный (на дому)","1 консультация",736]
["B","04.058.002","Профилактический прием (осмотр, консультация) врача - эндокринолога","1 консультация",245]
["В","01.058.001.003","Прием (осмотр, консультация) врача - эндокринолога первичный (консультация районного специалиста)","1 консультация",491]
["Кабинет врача-инфекциониста"]
["B","01.014.001.001","Прием (осмотр, консультация) врача - инфекциониста первичный (в поликлинике)","1 консультация",238]
["B","01.014.002.001","Прием (осмотр, консультация) врача - инфекциониста повторный (в поликлинике)","1 консультация",159]
["B","01.014.001.002","Прием (осмотр, консультация) врача - инфекциониста первичный (на дому)","1 консультация",714]
["B","04.014.002","Профилактический прием (осмотр, консультация) врача - инфекциониста","1 консультация",206]
["В","01.014.001.003","Прием (осмотр, консультация) врача - инфекциониста первичный (консультация районного специалиста)","1 консультация",476]
["Кабинет врача-профпатолога"]
["B","01.033.001","Прием (осмотр, консультация) врача - профпатолога первичный ","1 консультация",484]
["B","01.033.002","Прием (осмотр, консультация) врача - профпатолога повторный ","1 консультация",332]
["D","22.02.02","Подготовка и написание заключения (врачом профпатологом)","1 консультация",131]
["Кабинет врача-онколога"]
["B","01.027.001.001","Прием (осмотр, консультация) врача - онколога первичный (в поликлинике)","1 консультация",309]
["B","01.027.002.001","Прием (осмотр, консультация) врача - онколога повторный (в поликлинике)","1 консультация",216]
["В","01.027.001.002","Прием (осмотр, консультация) врача - онколога первичный (на дому)","1 консультация",926]
["В","04.027.002","Профилактический прием (осмотр, консультация) врача - онколога","1 консультация",232]
["В","01.027.001.003","Прием (осмотр, консультация) врача - онколога первичный (консультация районного специалиста)","1 консультация",309]
["Кабинет врача-хирурга"]
["B","01.057.001.001","Прием (осмотр, консультация) врача - хирурга первичный (в поликлинике)","1 консультация",232]
["B","01.057.002.001","Прием (осмотр, консультация) врача - хирурга повторный (в поликлинике)","1 консультация",154]
["B","01.057.001.002","Прием (осмотр, консультация) врача - хирурга первичный (на дому)","1 консультация",695]
["B","04.057.002","Профилактический прием (осмотр, консультация) врача - хирурга","1 консультация",154]
["А","02.02.001.001","Измерение силы мыщц спины (динамометрия)","1 услуга",41]
["А","01.19.004","Трансректальное пальцевое исследование","1 услуга",314]
["А","16.01.034.001","Операция в амбулаторных условиях (в кабинете врача-хирурга)","1 операция",601]
["А ","15.01.001.001","Наложение повязки при нарушении целостности кожных покровов (в поликлинике)","1 услуга",343]
["А ","15.01.001.002","Наложение повязки при нарушении целостности кожных покровов (на дому)","1 услуга",575]
["Кабинет врача-уролога"]
["B","01.053.001.001","Прием (осмотр, консультация) врача - уролога первичный (в поликлинике)","1 консультация",262]
["B","01.053.002.001","Прием (осмотр, консультация) врача - уролога повторный (в поликлинике)","1 консультация",185]
["B","01.053.001.002","Прием (осмотр, консультация) врача - уролога первичный (на дому)","1 консультация",695]
["B","04.053.002","Профилактический прием (осмотр, консультация) врача - уролога","1 консультация",232]
["A","21.21.001","Массаж простаты","1 услуга",266]
["А","11.21.004","Сбор секрета простаты","1 услуга",113]
["А","16.28.071","Прижигание полипов уретры","1 услуга",217]
["A","14.28.003","Уход за цистостомой и уростомой","1 услуга",113]
["А","16.28.072","Прижигание эрозий уретры","1 услуга",113]
["A","11.28.007.001","Катетеризация мочевого пузыря (у женщин)","1 услуга",154]
["A","11.28.007.002","Катетеризация мочевого пузыря (у мужчин)","1 услуга",200]
["A","03.28.001","Цистоскопия","1 услуга",622]
["A","11.28.009","Инсталляция уретры","1 услуга",343]
["A","11.28.008","Инсталляция мочевого пузыря","1 услуга",354]
["B","01.053.001.003","Прием (осмотр, консультация) врача - уролога первичный (андрологический профиль)","1 услуга",320]
["Кабинет врача - офтальмолога"]
["B","01.029.001.001","Прием (осмотр, консультация) врача - офтальмолога первичный (в поликлинике)","1 консультация",617]
["B","01.029.002.001","Прием (осмотр, консультация) врача - офтальмолога повторный (в поликлинике)","1 консультация",432]
["B","01.029.001.002","Прием (осмотр, консультация) врача - офтальмолога первичный (на дому)","1 консультация",695]
["B","04.029.002","Профилактический прием (осмотр, консультация) врача - офтальмолога","1 консультация",180]
["В","01.029.001.003","Прием (осмотр, консультация) врача - офтальмолога первичный (консультация районного специалиста)","1 консультация",463]
["A","02.26.013","Определение рефракции с помощью набора пробных линз","1 услуга",114]
["A","11.26.004","Зондирование слезных путей (и промывание)","1 услуга",378]
["A","11.26.011","Пара- и ретробульбарные инъекции","1 услуга",120]
["A","03.26.003","Осмотр периферии глазного дна трехзеркальной линзой Гольдмана","1 услуга",118]
["A","16.26.051","Удаление инородного тела роговицы","1 услуга",501]
["A","03.26.001","Биомикроскопия глаза","1 услуга",83]
["A","02.26.005","Периметрия","1 услуга",62]
["A","02.26.015","Тонометрия глаза","1 услуга",114]
["A","02.26.009","Исследование цветоощущения по полихроматическим таблицам","1 исследование",57]
["A","16.26.018","Эпиляция ресниц","1 услуга",325]
["A","16.26.057","Удаление инородного тела из переднего сигмента глаза","1 услуга",377]
["A","02.26.004","Визометрия","1 услуга",57]
["А","23.26.001.01","Подбор очковой коррекции (сложная)","1 услуга",402]
["A","23.26.001.02","Подбор очковой коррекции (простая)","1 услуга",284]
["A","21.26.001","Массаж век медицинский","1 услуга",288]
["А","19.26.001","Упражнения для восстановления и укрепления биокулярного зрения","1 сеанс",81]
["А","02.26.023","Исследование аккомодации","1 исследование",59]
["Кабинет врача - акушера - гинеколога"]
["B","01.001.001.001","Прием (осмотр, консультация) врача - акушера - гинеколога первичный (в поликлинике)","1 консультация",309]
["B","01.001.002.001","Прием (осмотр, консультация) врача - акушера - гинеколога повторный (в поликлинике)","1 консультация",216]
["B","01.001.001.002","Прием (осмотр, консультация) врача - акушера - гинеколога первичный (на дому)","1 консультация",695]
["B","04.001.002","Профилактический прием (осмотр, консультация) врача - акушера - гинеколога","1 консультация",232]
["A","11.20.005","Получение влагалищного мазка","1 услуга",85]
["А","16.20.037.002","Искусственное прерывание беременности (аборт) (аборт медикаментозный)","1 услуга",4197]
["A","16.20.036","Хирургическое лечение заболеваний шейки матки с использованием различных энергий","1 услуга",632]
["A","03.20.001","Кольпоскопия","1 услуга",437]
["A","11.20.013","Тампонирование лечебное влагалища","1 услуга",251]
["A","11.20.014.001","Введение внутриматочной спирали (без стоимости спирали)","1 услуга",418]
["A","11.20.015","Удаление внутриматочной спирали","1 услуга",381]
["A","16.20.059","Удаление инородных тел из влагалища","1 услуга",526]
["A","16.20.037.001","Искусственное прерывание беременности (аборт) (прерывание беременности ранних сроков методом вакум-аспираци)","1 услуга",497]
["А","01.20.003","Бимануальное влагалищное исследование","1 услуга",85]
["А","02.20.001.001","Осмотр шейки матки в зеркалах (Профилактический осмотр акушеркой)","1 осмотр",76]
["Кабинет врача - дерматовенеролога"]
["B","01.008.001.001","Прием (осмотр, консультация) врача - дерматовенеролога первичный (в поликлинике)","1 консультация",317]
["B","01.008.002.001","Прием (осмотр, консультация) врача - дерматовенеролога повторный (в поликлинике)","1 консультация",222]
["B","01.008.001.002","Прием (осмотр, консультация) врача - дерматовенеролога первичный (на дому)","1 консультация",714]
["B","04.008.002","Профилактический прием (осмотр, консультация) врача - дерматовенеролога","1 консультация",174]
["В","01.008.001.003","Прием (осмотр, консультация) врача - дерматовенеролога первичный (консультация районного специалиста)","1 консультация",476]
["B","01.008.001.004","Прием (осмотр, консультация) врача - дерматовенеролога первичный (при медицинском освидетельствовании иностранных граждан)","1 консультация",317]
["B","01.008.002.002","Прием (осмотр, консультация) врача - дерматовенеролога повторный (при медицинском освидетельствовании иностранных граждан)","1 консультация",222]
["А","16.01.017","Удаление доброкачественных новообразований кожи","1 процедура",226]
["A","24.01.004","Криодеструкция","1 процедура",102]
["A","24.01.005.001","Криомассаж кожи и ее образований (лица)","1 процедура",155]
["A","24.01.005.002","Криомассаж кожи и ее образований (шеи)","1 процедура",155]
["Кабинет врача - травматолога - ортопеда"]
["B","01.050.001.001","Прием (осмотр, консультация) врача - травматолога - ортопеда первичный (в поликлинике)","1 консультация",170]
["B","01.050.002.001","Прием (осмотр, консультация) врача - травматолога - ортопеда повторный (в поликлинике)","1 консультация",108]
["B","01.050.001.002","Прием (осмотр, консультация) врача - травматолога - ортопеда первичный (на дому)","1 консультация",695]
["B","04.050.002","Профилактический прием (осмотр, консультация) врача - травматолога - ортопеда","1 консультация",154]
["А","11.04.004","Внутрисуставное введение лекарственных препаратов","1 услуга",299]
["А ","15.02.002","Наложение иммобилизационной повязки при синдроме длительного сдавливания","1 услуга",353]
["А","15.02.001","Наложение повязки при заболеваниях мыщц","1 услуга",330]
["А","15.03.001","Наложение повязки при переломах костей","1 услуга",353]
["А","15.03.002.001","Наложение иммобилизационной повязки при переломах позвоночника","1 услуга",763]
["А","15.03.004","Наложение корсета при патологии шейного отдела позвоночника","1 услуга",355]
["А","15.03.005","Наложение корсета патологии грудного отдела позвоночника","1 услуга",701]
["А","15.03.006","Наложение корсета при патологии поясничного отдела позвоночника","1 услуга",701]
["А","15.03.007","Наложение шины при переломах костей","1 услуга",224]
["А","15.04.002","Наложение иммобилизационной повязки при вывихах (подвывихах) суставов","1 услуга",328]
["А ","15.04.001","Наложение повязки при вывихах (подвывихах) суставов","1 услуга",328]
["А","16.01.034.002","Операция в амбулаторных условиях (в кабинете врача-травматолога-ортопеда)","1 операция",601]
["Кабинет врача - оториноларинголога"]
["B","01.028.001.001","Прием (осмотр, консультация) врача - оториноларинголога первичный (в поликлинике)","1 консультация",309]
["B","01.028.001.002","Прием (осмотр, консультация) врача - оториноларинголога повторный (в поликлинике)","1 консультация",216]
["B","01.028.002.001","Прием (осмотр, консультация) врача - оториноларинголога первичный (на дому)","1 консультация",926]
["B","04.028.002","Профилактический прием (осмотр, консультация) врача - оториноларинголога","1 консультация",154]
["В","01.028.001.003","Прием (осмотр, консультация) врача - оториноларинголога первичный (консультация районного специалиста)","1 консультация",463]
["A","16.01.011","Вскрытие фурункула (карбункула)","1 услуга",436]
["A","16.08.011","Удаление инородного тела носа","1 услуга",359]
["A","16.08.016","Промывание лакун миндалин ","1 услуга",374]
["A","12.25.002","Речевая аудиометрия","1 услуга",232]
["A","11.08.004","Пункция околоносовых пазух","1 услуга",431]
["A","16.08.006.001","Механическая остановка кровотечения (передняя и задняя тампонада носа) (передняя)","1 услуга",385]
["A","16.08.006.002","Механическая остановка кровотечения(задняя тампонада носа) (задняя)","1 услуга",467]
["А","03.25.001","Вестибулометрия","1 исследование",345]
["А","16.25.008","Удаление инородного тела из слухового прохода","1 услуга",263]
["А","16.25.007","Удаление ушной серы","1 услуга",340]
["Кабинет врача - невролога"]
["B","01.023.001.001","Прием (осмотр, консультация) врача - невролога первичный (в поликлинике)","1 консультация",327]
["B","01.023.002.001","Прием (осмотр, консультация) врача - невролога повторный (в поликлинике)","1 консультация",229]
["B","01.023.001.002","Прием (осмотр, консультация) врача - невролога первичный (на дому)","1 консультация",736]
["B","04.023.002","Профилактический прием (осмотр, консультация) врача - невролога","1 консультация",180]
["А","22.30.006","Вибрационное воздействие","1 услуга",52]
["Кабинет медицинского психолога"]
["А","13.29.006","Психологическое консультирование ","1 консультация",430]
["В","02.069.001","Прием(тестирование, консультация) медицинского психолога первичный","1 консультация",430]
["В","02.069.001.001","Прием(тестирование, консультация) медицинского психолога первичный (на дому)","1 консультация",430]
["В","02.069.002","Прием(тестирование, консультация) медицинского психолога повторное","1 консультация",378]
["В","04.069.001","Школа психологической профилактики для пациентов и родственников","1 сеанс",430]
["В","04.069.002","Индивидуальное краткое профилактическое консультирование по коррекции факторов риска развития неинфекционных заболеваний","1 консультация",378]
[0,"04.069.003","Индивидуальное углубленное профилактическое консультирование по коррекции факторов риска развития неинфекционных заболеваний","1 консультация",638]
["В","04.069.004","Индивидуальное углубленное профилактическое консультирование по коррекции факторов риска развития неинфекционных заболеваний повторное","1 консультация",638]
["В","04.069.005","Групповое профилактическое консультарование по коррекции факторов риска развития неифекционных заболеваний","1 консультация",169]
["В","13.29.003.001","Тестологическое психодиагностическое обследование","1 сеанс",482]
["В","13.29.003.001.001","Тестологическое психодиагностическое обследование (на дому)","1 сеанс",482]
["А","13.29.006.003","Семейное психологическое консультирование","1 сеанс",638]
["А","13.29.005.001","Арттерапия","1 сеанс",169]
["А","13.29.007.001.001","Индивидуальная психологическая коррекция (для младших школьников и дошкольников)","1 сеанс",378]
["Кабинет врача - фтизиатра"]
["B","01.055.001.001","Прием (осмотр, консультация) врача - фтизиатра первичный (в поликлинике)","1 консультация",324]
["B","01.055.002.001","Прием (осмотр, консультация) врача - фтизиатра повторный (в поликлинике)","1 консультация",216]
["В","01.055.001.002","Прием (осмотр, консультация) врача - фтизиатра первичный (на дому)","1 консультация",810]
["В","04.055.002","Профилактический прием (осмотр, консультация) врача - фтизиатра","1 консультация",270]
["Кабинет врача - психиатра"]
["В","04.035.002","Профилактический прием (осмотр, консультация) врача-психиатра","1 консультация",208]
["Кабинет врача психиатра-нарколога"]
["В","04.036.002"," Профилактический прием (осмотр, консультация) врача психиатра-нарколога","1 консультация",200]
["В","01.036.001"," Прием (осмотр, консультация) врача-психиатра-нарколога первичный","1 консультация",308]
["А","09.28.055.001.001"," Определение наличия психоактивных веществ в моче с помощью тест-полоски (тест полоска \"ИммуноХром-6-Мульти-Экспресс\" на 6 видов наркотиков)","1 определение",753]
["А","09.28.055.001.002","Определение наличия психоактивных веществ в моче с помощью тест-полоски (тест полоска \"ИммуноХром-Фенциклидин\" на 1 вид наркотика)","1 определение",431]
["Услуги специалистов детской поликлиники № 1"]
[]
["В","01.031.001.001","Прием (осмотр, консультация) врача - педиатра первичный (в поликлинике)","1 консультация",221]
["В","01.031.002.001","Прием (осмотр, консультация) врача - педиатра повторный (в поликлинике)","1 консультация",152]
["В","01.031.001.002","Прием (осмотр, консультация) врача - педиатра (на дому)","1 консультация",415]
["В","04.031.002","Профилактический прием (осмотр, консультация) врача - педиатра","1 консультация",208]
["В","01.031.001.003","Прием (осмотр, консультация) врача - педиатра первичный (консультация районного специалиста)","1 консультация",415]
["В","01.031.001.004","Прием (осмотр, консультация) врача - педиатра первичный (с целью оформления медицинской карты на ребенка)","1 осмотр",156]
["B","01.023.001.003","Прием (осмотр, консультация) врача - невролога первичный (в поликлинике)","1 консультация",340]
["B","01.023.002.002","Прием (осмотр, консультация) врача - невролога повторный (в поликлинике)","1 консультация",232]
["B","01.023.001.004","Прием (осмотр, консультация) врача - невролога первичный (на дому)","1 консультация",695]
["B","01.023.002.001","Профилактический прием (осмотр, консультация) врача - невролога","1 консультация",232]
["B","01.028.001.004","Прием (осмотр, консультация) врача - оториноларинголога первичный (в поликлинике)","1 консультация",309]
["B","01.028.002.002","Прием (осмотр, консультация) врача - оториноларинголога повторный (в поликлинике)","1 консультация",216]
["B","01.028.001.005","Прием (осмотр, консультация) врача - оториноларинголога первичный (на дому)","1 консультация",926]
["B","04.028.002.001","Профилактический прием (осмотр, консультация) врача - оториноларинголога","1 консультация",154]
["B","01.029.001.004","Прием (осмотр, консультация) врача - офтальмолога первичный (в поликлинике)","1 консультация",617]
["B","01.029.002.002","Прием (осмотр, консультация) врача - офтальмолога повторный (в поликлинике)","1 консультация",432]
["B","01.029.001.005","Прием (осмотр, консультация) врача - офтальмолога первичный (на дому)","1 консультация",695]
["B","04.029.002.001","Профилактический прием (осмотр, консультация) врача - офтальмолога","1 консультация",309]
["B","01.050.001.003","Прием (осмотр, консультация) врача - травматолога - ортопеда первичный (в поликлинике)","1 консультация",201]
["B","01.050.002.002","Прием (осмотр, консультация) врача - травматолога - ортопеда повторный (в поликлинике)","1 консультация",139]
["B","01.050.001.004","Прием (осмотр, консультация) врача - травматолога - ортопеда первичный (на дому)","1 консультация",695]
["B","04.050.002.001","Профилактический прием (осмотр, консультация) врача - травматолога - ортопеда","1 консультация",154]
["А","17.09.003","Воздействие с помощью галакамеры при заболеваниях нижних дыхательных путей (грпповой сеанс)","за 1 человека",31]
["Услуги по вакцинации"]
["B","04.014.004.01","Вакцинация против дифтерии и столбняка","1 услуга",74]
["B","04.014.004.02","Вакцинация против вирусного гепатита В взрослая","1 услуга",143]
["B","04.014.004.03","Вакцинация против вирусного гепатита В детская","1 услуга",157]
["B","04.014.004.04","Вакцинация против кори","1 услуга",102]
["B","04.014.004.05","Вакцинация против краснухи","1 услуга",96]
["B","04.014.004.06","Вакцинация против бешенства","1 услуга",581]
["B","04.014.004.07","Вакцинация против гриппа, вакциной \"Гриппол R плюс\", взрослая ( для граждан, не имеющих медицинский полис обязательного медицинского страхования)","1 услуга",240]
["B","04.014.004.08","Вакцинация против гриппа, вакциной \"Гриппол R плюс\", взрослая ( для граждан, имеющих медицинский полис обязательного медицинского страхования)","1 услуга",214]
["Прочие услуги"]
["A","11.12.009","Взятие крови из периферической вены ","1 инъекция",42]
["А","11.05.001","Взятие крови из пальца","1 инъекция",42]
["A","11.02.002.01","Внутримышечное введение лекарственных средств (в поликлинике)","1 инъекция",68]
["A","11.02.002.02","Внутримышечное введение лекарственных средств (на дому)","1 инъекция",118]
["A","11.12.003.01","Внутривенное введение лекарственных средств (в поликлинике)","1 инъекция",93]
["A","11.12.003.02","Внутривенное введение лекарственных средств (на дому)","1 инъекция",169]
["A","02.12.002.01","Измерение артериального давления на периферических артериях (в поликлинике)","1 услуга",54]
["A","02.12.002.02","Измерение артериального давления на периферических артериях (на дому)","1 услуга",104]
["А","14.30.002.001","Транспортировка тяжелобольного пациента внутри учреждения (вне учреждения)","1 км",24]
["А","02.30.001","Термометрия общая","1 услуга",29]
["А","11.12.003.001.001","Непрерывное внутривенное введение лекарственных препаратов (в поликлинике, без учета стоимости лекарственных препаратов)","1 услуга",457]
["А","11.12.003.001.002","Непрерывное внутривенное введение лекарственных препаратов (на дому, без учета стоимости лекарственных препаратов)","1 услуга",660]
["МЕДИЦИНСКИЕ ОСМОТРЫ НАСЕЛЕНИЯ"]
["1.Предрейсовый (или послерейсовый) медицинский осмотр водителей транспортных средств",null,null,null,{"$f":"E245","v":75}]
[null,null,"в том числе:"]
["В","01.045.002.001","Проведение экспертизы (исследования) состояния здоровья в отношении живых лиц (предрейсовый (или послерейсовый) медицинский осмотр водителей транспортных средств)","1 услуга",75]
["2.Оформление медицинской карты ребенка",null,null,null,156]
[null,null,"в том числе:"]
["В","01.031.001.004","Прием (осмотр, консультация) врача - педиатра первичный (с целью оформления медицинской карты на ребенка)","1 осмотр",156]
["3.Медицинское освидетельствание на наличие медицинских противопоказаний для работы с использованием сведений, составляющих гоударственную тайну",null,null,null,{"$f":"E251+E252","v":311}]
[null,null,"в том числе:"]
["B","04.023.002","Профилактический прием (осмотр, консультация) врача - невролога","1 консультация",180]
["D","22.02.02","Подготовка и написание заключения (врачом профпатологом)","1 консультация",131]
["4.Медицинское освидетельствование водителей транспортных средств (кандидатов в водители) категорий \"А\" или \"М\", \"В\", \"ВЕ\", подкатегорий \"А1\", \"В1\", с мотоциклетной посадкой или рулем мотоциклетного типа\"",null,null,null,{"$f":"SUM(E255:E257)","v":519}]
[null,null,"в том числе:"]
["В","04.047.002","Профилактический прием (осмотр, консультация) врача - терапевта ","1 консультация",208]
["B","04.029.002","Профилактический прием (осмотр, консультация) врача - офтальмолога","1 консультация",180]
["D","22.02.02","Подготовка и написание заключения (врачом профпатологом)","1 консультация",131]
["5.Медицинское освидетельствование водителей транспортных средств (кандидатов в водители) категорий \"С\", \"СЕ\", \"D\", \"DЕ\", \"Тт\" или \"Тb\", подкатегорий \"С1\", \"D1\", \"С1Е\" или \"D1Е\"",null,null,null,{"$f":"SUM(E260:E264)","v":853}]
[null,null,"в том числе:"]
["В","04.047.002","Профилактический прием (осмотр, консультация) врача - терапевта ","1 консультация",208]
["B","04.023.002","Профилактический прием (осмотр, консультация) врача - невролога","1 консультация",180]
["B","04.029.002","Профилактический прием (осмотр, консультация) врача - офтальмолога","1 консультация",180]
["B","04.028.002","Профилактический прием (осмотр, консультация) врача - оториноларинголога","1 консультация",154]
["D","22.02.02","Подготовка и написание заключения (врачом профпатологом)","1 консультация",131]
["6.Медицинское освидетельствание на наличие медицинских противопоказаний к владению оружием (за исключением лиц, в отношении которых проводится предварительный и периодический медицинский осмотры)",null,null,null,{"$f":"SUM(E267:E268)","v":311}]
[null,null,"в том числе:"]
["D","22.02.02","Подготовка и написание заключения (врачом профпатологом)","1 консультация",131]
["B","04.029.002","Профилактический прием (осмотр, консультация) врача - офтальмолога","1 консультация",180]
["7.Предварительный (или периодический) медицинский осмотр лиц мужского пола, занятых на работах по управлению наземными транспортными средствами, согласно приказа Минздравсоцразвития от 12.04.2011 № 302н",null,null,null,{"$f":"SUM(E271:E285)","v":2249}]
[null,null,"в том числе:"]
["В","04.047.002","Профилактический прием (осмотр, консультация) врача - терапевта ","1 консультация",208]
["B","04.023.002","Профилактический прием (осмотр, консультация) врача - невролога","1 консультация",180]
["B","04.029.002","Профилактический прием (осмотр, консультация) врача - офтальмолога","1 консультация",180]
["B","04.028.002","Профилактический прием (осмотр, консультация) врача - оториноларинголога","1 консультация",154]
["B","04.057.002","Профилактический прием (осмотр, консультация) врача - хирурга","1 консультация",154]
["B","04.008.002","Профилактический прием (осмотр, консультация) врача - дерматовенеролога","1 консультация",174]
["A","11.12.009","Взятие крови из периферической вены ","1 инъекция",42]
["А","11.05.001","Взятие крови из пальца","1 инъекция",42]
["В","03.016.003","Общий (клинический) анализ крови развернутый","1 исследование",187]
["А","09.05.023","Исследование уровня глюкозы в крови","1 исследование",84]
["А","09.05.026","Исследование уровня холестерина в крови ","1 исследование",89]
["В","03.016.006","Анализ мочи общий","1 исследование",118]
["A","05.10.002.001","Проведение электрокардиографических исследований (простая в поликлинике)","1 исследование",192]
["A","12.25.002","Речевая аудиометрия","1 услуга",232]
["А","06.09.006.001.001","Флюрография легких цифровая (вторая проекция)","1 исследование",213]
["8.Предварительный (или периодический) медицинский осмотр лиц женского пола, занятых на работах по управлению наземными транспортными средствами, согласно приказа Минздравсоцразвития от 12.04.2011 № 302, с осмотром врачом-акушером-гинекологом",null,null,null,{"$f":"SUM(E288:E305)","v":2730}]
[null,null,"в том числе:"]
["В","04.047.002","Профилактический прием (осмотр, консультация) врача - терапевта ","1 консультация",208]
["B","04.023.002","Профилактический прием (осмотр, консультация) врача - невролога","1 консультация",180]
["B","04.029.002","Профилактический прием (осмотр, консультация) врача - офтальмолога","1 консультация",180]
["B","04.028.002","Профилактический прием (осмотр, консультация) врача - оториноларинголога","1 консультация",154]
["B","04.057.002","Профилактический прием (осмотр, консультация) врача - хирурга","1 консультация",154]
["B","04.008.002","Профилактический прием (осмотр, консультация) врача - дерматовенеролога","1 консультация",174]
["B","04.001.002","Профилактический прием (осмотр, консультация) врача - акушера - гинеколога","1 консультация",232]
["A","11.12.009","Взятие крови из периферической вены ","1 инъекция",42]
["А","11.05.001","Взятие крови из пальца","1 инъекция",42]
["A","11.20.005","Получение влагалищного мазка","1 услуга",85]
["В","03.016.003","Общий (клинический) анализ крови развернутый","1 исследование",187]
["А","09.05.023","Исследование уровня глюкозы в крови","1 исследование",84]
["А","09.05.026","Исследование уровня холестерина в крови ","1 исследование",89]
["В","03.016.006","Анализ мочи общий","1 исследование",118]
["A","05.10.002.001","Проведение электрокардиографических исследований (простая в поликлинике)","1 исследование",192]
["A","12.25.002","Речевая аудиометрия","1 услуга",232]
["А","06.09.006.001.001","Флюрография легких цифровая (вторая проекция)","1 исследование",213]
["A","08.20.012","Цитологическое исследование препарата тканей влагалища","1 исследование",164]
["9.Предварительный (или периодический) медицинский осмотр лиц женского пола, занятых на работах по управлению наземными транспортными средствами, согласно приказа Минздравсоцразвития от 12.04.2011 № 302, с осмотром акушеркой",null,null,null,{"$f":"SUM(E308:E325)","v":2574}]
[null,null,"в том числе:"]
["В","04.047.002","Профилактический прием (осмотр, консультация) врача - терапевта ","1 консультация",208]
["B","04.023.002","Профилактический прием (осмотр, консультация) врача - невролога","1 консультация",180]
["B","04.029.002","Профилактический прием (осмотр, консультация) врача - офтальмолога","1 консультация",180]
["B","04.028.002","Профилактический прием (осмотр, консультация) врача - оториноларинголога","1 консультация",154]
["B","04.057.002","Профилактический прием (осмотр, консультация) врача - хирурга","1 консультация",154]
["B","04.008.002","Профилактический прием (осмотр, консультация) врача - дерматовенеролога","1 консультация",174]
["А","02.20.001.001","Осмотр шейки матки в зеркалах (Профилактический осмотр акушеркой)","1 осмотр",76]
["A","11.12.009","Взятие крови из периферической вены ","1 инъекция",42]
["А","11.05.001","Взятие крови из пальца","1 инъекция",42]
["A","11.20.005","Получение влагалищного мазка","1 услуга",85]
["В","03.016.003","Общий (клинический) анализ крови развернутый","1 исследование",187]
["А","09.05.023","Исследование уровня глюкозы в крови","1 исследование",84]
["А","09.05.026","Исследование уровня холестерина в крови ","1 исследование",89]
["В","03.016.006","Анализ мочи общий","1 исследование",118]
["A","05.10.002.001","Проведение электрокардиографических исследований (простая в поликлинике)","1 исследование",192]
["A","12.25.002","Речевая аудиометрия","1 услуга",232]
["А","06.09.006.001.001","Флюрография легких цифровая (вторая проекция)","1 исследование",213]
["A","08.20.012","Цитологическое исследование препарата тканей влагалища","1 исследование",164]
["10.Предварительный (или периодический) медицинский осмотр лиц, занятых на работах в ведомствах и службах, которым разрешено ношение оружия и его применение, согласно приказа Минздравсоцразвития от 12.04.2011 № 302н",null,null,null,{"$f":"SUM(E327:E345)","v":2713}]
[null,null,"в том числе:"]
["В","04.047.002","Профилактический прием (осмотр, консультация) врача - терапевта ","1 консультация",208]
["B","04.029.002","Профилактический прием (осмотр, консультация) врача - офтальмолога","1 консультация",180]
["B","04.023.002","Профилактический прием (осмотр, консультация) врача - невролога","1 консультация",180]
["B","04.028.002","Профилактический прием (осмотр, консультация) врача - оториноларинголога","1 консультация",154]
["A","12.25.002","Речевая аудиометрия","1 услуга",232]
["B","04.008.002","Профилактический прием (осмотр, консультация) врача - дерматовенеролога","1 консультация",174]
["B","04.057.002","Профилактический прием (осмотр, консультация) врача - хирурга","1 консультация",154]
["A","02.26.005","Периметрия","1 услуга",62]
["A","02.26.004","Визометрия","1 услуга",57]
["A","11.12.009","Взятие крови из периферической вены ","1 инъекция",42]
["А","11.05.001","Взятие крови из пальца","1 инъекция",42]
["А","09.05.023","Исследование уровня глюкозы в крови","1 исследование",84]
["А","09.05.026","Исследование уровня холестерина в крови ","1 исследование",89]
["В","03.016.006","Анализ мочи общий","1 исследование",118]
["А","06.09.006.001.001","Флюрография легких цифровая (вторая проекция)","1 исследование",213]
["A","05.10.002.001","Проведение электрокардиографических исследований (простая в поликлинике)","1 исследование",192]
["В","03.016.003","Общий (клинический) анализ крови развернутый","1 исследование",187]
["А","03.25.001","Вестибулометрия","1 исследование",345]
["11.Предварительный медицинский осмотр граждан с целью поступления на государственную или муниципальную службу (Справка 001-ГС/У)",null,null,null,{"$f":"SUM(E348:E352)","v":809}]
[null,null,"в том числе:"]
["В","04.047.002","Профилактический прием (осмотр, консультация) врача - терапевта ","1 консультация",208]
["B","04.023.002","Профилактический прием (осмотр, консультация) врача - невролога","1 консультация",180]
["А","11.05.001","Взятие крови из пальца","1 инъекция",42]
["В","03.016.003","Общий (клинический) анализ крови развернутый","1 исследование",187]
["A","05.10.002.001","Проведение электрокардиографических исследований (простая в поликлинике)","1 исследование",192]
["Справочно: Медицинское освидетельствование и осмотры по п.п.3-10 проводятся при наличии у гражданина справок от врача-психиатра-нарколога и врача-психиатра "]
["12.Предварительный (или периодический) медицинский осмотр лиц мужского пола декретированных профессий, согласно приказа Минздравсоцразвития от 12.04.2011 № 302н",null,null,null,{"$f":"SUM(E356:E367)","v":1641}]
[null,null,"в том числе:"]
["В","04.047.002","Профилактический прием (осмотр, консультация) врача - терапевта ","1 консультация",208]
["В","04.065.002","Профилактический прием (осмотр, консультация) врача-стоматолога-терапевта","1 посещение",91]
["B","04.028.002","Профилактический прием (осмотр, консультация) врача - оториноларинголога","1 консультация",154]
["B","04.008.002","Профилактический прием (осмотр, консультация) врача - дерматовенеролога","1 консультация",174]
["A","11.12.009","Взятие крови из периферической вены ","1 инъекция",42]
["А","11.05.001","Взятие крови из пальца","1 инъекция",42]
["В","03.016.003","Общий (клинический) анализ крови развернутый","1 исследование",187]
["А","12.06.011","Проведение реакции Вассермана (RW)","1 исследование",260]
["А","09.05.023","Исследование уровня глюкозы в крови","1 исследование",84]
["А","09.05.026","Исследование уровня холестерина в крови ","1 исследование",89]
["В","03.016.006","Анализ мочи общий","1 исследование",118]
["A","05.10.002.001","Проведение электрокардиографических исследований (простая в поликлинике)","1 исследование",192]
["13.Предварительный (или периодический) медицинский осмотр лиц женского пола декретированных профессий, согласно приказа Минздравсоцразвития от 12.04.2011 № 302н с осмотром врачом-акушером-гинекологом",null,null,null,{"$f":"SUM(E370:E385)","v":2198}]
[null,null,"в том числе:"]
["В","04.047.002","Профилактический прием (осмотр, консультация) врача - терапевта ","1 консультация",208]
["В","04.065.002","Профилактический прием (осмотр, консультация) врача-стоматолога-терапевта","1 посещение",91]
["B","04.028.002","Профилактический прием (осмотр, консультация) врача - оториноларинголога","1 консультация",154]
["B","04.008.002","Профилактический прием (осмотр, консультация) врача - дерматовенеролога","1 консультация",174]
["B","04.001.002","Профилактический прием (осмотр, консультация) врача - акушера - гинеколога","1 консультация",232]
["A","11.12.009","Взятие крови из периферической вены ","1 инъекция",42]
["А","11.05.001","Взятие крови из пальца","1 инъекция",42]
["A","11.20.005","Получение влагалищного мазка","1 услуга",85]
["В","03.016.003","Общий (клинический) анализ крови развернутый","1 исследование",187]
["А","12.06.011","Проведение реакции Вассермана (RW)","1 исследование",260]
["А","09.05.023","Исследование уровня глюкозы в крови","1 исследование",84]
["А","09.05.026","Исследование уровня холестерина в крови ","1 исследование",89]
["В","03.016.006","Анализ мочи общий","1 исследование",118]
["A","05.10.002.001","Проведение электрокардиографических исследований (простая в поликлинике)","1 исследование",192]
["А","09.20.001","Микроскопическое исследование влагалищных мазков","1 исследование",76]
["A","08.20.012","Цитологическое исследование препарата тканей влагалища","1 исследование",164]
["14.Предварительный (или периодический) медицинский осмотр лиц женского пола декретированных профессий, согласно приказа Минздравсоцразвития от 12.04.2011 № 302н с осмотром акушеркой",null,null,null,{"$f":"SUM(E388:E403)","v":2042}]
[null,null,"в том числе:"]
["В","04.047.002","Профилактический прием (осмотр, консультация) врача - терапевта ","1 консультация",208]
["В","04.065.002","Профилактический прием (осмотр, консультация) врача-стоматолога-терапевта","1 посещение",91]
["B","04.028.002","Профилактический прием (осмотр, консультация) врача - оториноларинголога","1 консультация",154]
["B","04.008.002","Профилактический прием (осмотр, консультация) врача - дерматовенеролога","1 консультация",174]
["А","02.20.001.001","Осмотр шейки матки в зеркалах (Профилактический осмотр акушеркой)","1 осмотр",76]
["A","11.12.009","Взятие крови из периферической вены ","1 инъекция",42]
["А","11.05.001","Взятие крови из пальца","1 инъекция",42]
["A","11.20.005","Получение влагалищного мазка","1 услуга",85]
["В","03.016.003","Общий (клинический) анализ крови развернутый","1 исследование",187]
["А","12.06.011","Проведение реакции Вассермана (RW)","1 исследование",260]
["А","09.05.023","Исследование уровня глюкозы в крови","1 исследование",84]
["А","09.05.026","Исследование уровня холестерина в крови ","1 исследование",89]
["В","03.016.006","Анализ мочи общий","1 исследование",118]
["A","05.10.002.001","Проведение электрокардиографических исследований (простая в поликлинике)","1 исследование",192]
["А","09.20.001","Микроскопическое исследование влагалищных мазков","1 исследование",76]
["A","08.20.012","Цитологическое исследование препарата тканей влагалища","1 исследование",164]
["15.Периодический (повторный) медицинский осмотр лиц мужского пола декретированных профессий",null,null,null,{"$f":"SUM(E406:E409)","v":684}]
[null,null,"в том числе:"]
["В","04.047.002","Профилактический прием (осмотр, консультация) врача - терапевта ","1 консультация",208]
["B","04.008.002","Профилактический прием (осмотр, консультация) врача - дерматовенеролога","1 консультация",174]
["A","11.12.009","Взятие крови из периферической вены ","1 инъекция",42]
["А","12.06.011","Проведение реакции Вассермана (RW)","1 исследование",260]
["16.Периодический (повторный) медицинский осмотр лиц женского пола декретированных профессий",null,null,null,{"$f":"SUM(E412:E417)","v":845}]
[null,null,"в том числе:"]
["В","04.047.002","Профилактический прием (осмотр, консультация) врача - терапевта ","1 консультация",208]
["B","04.008.002","Профилактический прием (осмотр, консультация) врача - дерматовенеролога","1 консультация",174]
["A","11.12.009","Взятие крови из периферической вены ","1 инъекция",42]
["A","11.20.005","Получение влагалищного мазка","1 услуга",85]
["А","12.06.011","Проведение реакции Вассермана (RW)","1 исследование",260]
["А","09.20.001","Микроскопическое исследование влагалищных мазков","1 исследование",76]
["17.Предварительный медицинский осмотр по форме 086/у с целью определение пригодности гражданина к выполнению поручаемой ему работы",null,null,null,{"$f":"SUM(E420:E433)","v":2064}]
[null,null,"в том числе:"]
["В","04.047.002","Профилактический прием (осмотр, консультация) врача - терапевта ","1 консультация",208]
["B","04.023.002","Профилактический прием (осмотр, консультация) врача - невролога","1 консультация",180]
["B","04.029.002","Профилактический прием (осмотр, консультация) врача - офтальмолога","1 консультация",180]
["B","04.028.002","Профилактический прием (осмотр, консультация) врача - оториноларинголога","1 консультация",154]
["B","04.057.002","Профилактический прием (осмотр, консультация) врача - хирурга","1 консультация",154]
["B","04.008.002","Профилактический прием (осмотр, консультация) врача - дерматовенеролога","1 консультация",174]
["A","11.12.009","Взятие крови из периферической вены ","1 инъекция",42]
["А","11.05.001","Взятие крови из пальца","1 инъекция",42]
["В","03.016.003","Общий (клинический) анализ крови развернутый","1 исследование",187]
["А","09.05.023","Исследование уровня глюкозы в крови","1 исследование",84]
["А","09.05.026","Исследование уровня холестерина в крови ","1 исследование",89]
["А","12.06.011","Проведение реакции Вассермана (RW)","1 исследование",260]
["В","03.016.006","Анализ мочи общий","1 исследование",118]
["A","05.10.002.001","Проведение электрокардиографических исследований (простая в поликлинике)","1 исследование",192]
["18. Медицинское освидетельствование иностранных граждан или лиц без гражданства РФ, ходатайствующих о получении разрешения на временное проживание, вида на жительство или разрешения на работу",null,null,null,{"$f":"SUM(E435:E445)","v":3521}]
["B","01.008.001.004","Прием (осмотр, консультация) врача - дерматовенеролога первичный (при медицинском освидетельствовании иностранных граждан)","1 консультация",317]
["B","01.008.002.002","Прием (осмотр, консультация) врача - дерматовенеролога повторный (при медицинском освидетельствовании иностранных граждан)","1 консультация",222]
["B","01.014.001.001","Прием (осмотр, консультация) врача - инфекциониста первичный (в поликлинике)","1 консультация",238]
["B","01.014.002.001","Прием (осмотр, консультация) врача - инфекциониста повторный (в поликлинике)","1 консультация",159]
["В","04.055.002","Профилактический прием (осмотр, консультация) врача - фтизиатра","1 консультация",270]
["A","11.12.009","Взятие крови из периферической вены ","1 инъекция",42]
["A","26.06.048","Определение антител классов M, G (IgM, IgG) к вирусу иммунодефицита человека ВИЧ-1 (Human immunodeficiency virus HIV 1) в крови","1 исследование",693]
["A","26.06.082.006","Определение антител к бледной трепонеме (Treponema pallidum) в крови (Определение антител сифилиса в методом ИФА)","1 исследование",306]
["А","06.09.006.001","Флюрография легких цифровая","1 исследование",213]
["В","01.036.001"," Прием (осмотр, консультация) врача-психиатра-нарколога первичный","1 консультация",308]
["А","09.28.055.001.001"," Определение наличия психоактивных веществ в моче с помощью тест-полоски (тест полоска \"ИммуноХром-6-Мульти-Экспресс\" на 6 видов наркотиков)","1 определение",753]
["19.Медицинское освидетельствание судоводителей индивидуальных маломерных судов, согласно приказа Министерства Здравоохранения СССР от 26.05.86 №724",null,null,null,{"$f":"SUM(E448:E453)","v":1007}]
[null,null,"в том числе:"]
["В","04.047.002","Профилактический прием (осмотр, консультация) врача - терапевта ","1 консультация",208]
["B","04.023.002","Профилактический прием (осмотр, консультация) врача - невролога","1 консультация",180]
["B","04.029.002","Профилактический прием (осмотр, консультация) врача - офтальмолога","1 консультация",180]
["B","04.028.002","Профилактический прием (осмотр, консультация) врача - оториноларинголога","1 консультация",154]
["B","04.057.002","Профилактический прием (осмотр, консультация) врача - хирурга","1 консультация",154]
["D","22.02.02","Подготовка и написание заключения (врачом профпатологом)","1 консультация",131]
["ДИАГНОСТИЧЕСКИЕ УСЛУГИ"]
["Кабинет функциональной диагностики"]
["A","12.09.001.002","Исследование неспровацированных дыхательных объемов и потоков (спирография)","1 исследование",257]
["A","05.10.002.001","Проведение электрокардиографических исследований (простая в поликлинике)","1 исследование",192]
["A","05.10.002.002","Проведение электрокардиографических исследований (на дому)","1 исследование","192 + 24 рубля за 1 км пути"]
["A","12.10.001","Электрокардиография с физическими упражнениями","1 исследование",263]
["A","12.10.005","Велоэргометрия","1 исследование",703]
["A","05.10.008.001","Холтеровское мониторирование сердечного ритма (ХМ-ЭКГ)","1 исследование",1089]
["А","05.10.004","Расшифровка, описание и интерпретация электрокардиографических данных","1 исследование",125]
["Кабинет ультразвуковых исследований"]
["A","04.15.001","Ультразвуковое исследование поджелудочной железы","1 исследование",384]
["A","04.06.001","Ультразвуковое исследование селезенки","1 исследование",384]
["A","04.28.001","Ультразвуковое исследование почек и надпочечников","1 исследование",384]
["A","04.28.002.003","Ультразвуковое исследование мочевого пузыря","1 исследование",288]
["A","04.20.001","Ультразвуковое исследование матки и придатков трансабдоминальное","1 исследование",480]
["A","04.20.001.002","Ультразвуковое исследование матки и придатков трансабдоминальное ( при беременности)","1 исследование",576]
["A","04.22.001","Ультразвуковое исследование щитовидной железы и паращитовидных желез","1 исследование",288]
["A","04.14.002","Ультразвуковое исследование желчного пузыря","1 исследование",384]
["A","04.16.001","Ультразвуковое исследование органов брюшной полости (комплексное)","1 исследование",1056]
["A","04.21.001","Ультразвуковое исследование простаты","1 исследование",384]
["A","04.20.002","Ультразвуковое исследование молочных желез","1 исследование",384]
["A","04.07.002","Ультразвуковое исследование слюнных желез","1 исследование",384]
["A","04.06.002","Ультразвуковое исследование лимфатических узлов (одна анатомическая зона)","1 исследование",384]
["A","04.09.001","Ультразвуковое исследование плевральной полости","1 исследование",384]
["A","04.10.002","Эхокардиография","1 исследование",1152]
["A","04.12.002.002","Ультразвуковая допплерография вен нижних конечностей","1 исследование",1152]
["A","04.12.006","Дуплексное сканирование сосудов (артерий и вен) нижних конечностей","1 исследование",2304]
["A","04.12.005.001","Дуплексное сканирование артерий нижних конечностей","1 исследование",1152]
["A","04.12.005.003","Дуплексное сканирование брахиоцефальных артерий с цветным допплеровским картированием кровотока","1 исследование",1152]
["A","04.04.001","Ультразвуковое исследование сустава ","1 исследование",384]
["A","04.14.001","Ультразвуковое исследование печени","1 исследование",384]
["A","04.04.001.001","Ультразвуковое исследование сустава (тазобедренного сустава для детского населения)","1 исследование",384]
["A","04.23.001","Нейросонография","1 исследование",576]
["A","04.15.001.001","Ультразвуковое исследование поджелудочной железы (на дому)","1 исследование","384 + 24 рубля за 1 км пути"]
["A","04.06.001.01","Ультразвуковое исследование селезенки (на дому)","1 исследование","384 + 24 рубля за 1 км пути"]
["A","04.28.001.001","Ультразвуковое исследование почек и надпочечников (на дому)","1 исследование","384 + 24 рубля за 1 км пути"]
["A","04.28.002.003.001"," Ультразвуковое исследование мочевого пузыря (на дому)","1 исследование","288 + 24 рубля за 1 км пути"]
["A","04.20.001.001","Ультразвуковое исследование матки и придатков трансабдоминальное (на дому)","1 исследование","480 + 24 рубля за 1 км пути"]
["A","04.20.001.003","Ультразвуковое исследование матки и придатков трансабдоминальное ( при беременности на дому)","1 исследование","576 + 24 рубля за 1 км пути"]
["A","04.22.001.001","Ультразвуковое исследование щитовидной железы и паращитовидных желез (на дому)","1 исследование","288 + 24 рубля за 1 км пути"]
["A","04.14.002.001","Ультразвуковое исследование желчного пузыря (на дому)","1 исследование","384 + 24 рубля за 1 км пути"]
["A","04.16.001.001","Ультразвуковое исследование органов брюшной полости (комплексное на дому)","1 исследование","1056 + 24 рубля за 1 км пути"]
["A","04.21.001.001","Ультразвуковое исследование простаты (на дому)","1 исследование","384 + 24 рубля за 1 км пути"]
["A","04.20.002.001","Ультразвуковое исследование молочных желез (на дому)","1 исследование","384 + 24 рубля за 1 км пути"]
["A","04.07.002.001","Ультразвуковое исследование слюнных желез (на дому)","1 исследование","384 + 24 рубля за 1 км пути"]
["A","04.06.002.001","Ультразвуковое исследование лимфатических узлов (одна анатомическая зона на дому)","1 исследование","384 + 24 рубля за 1 км пути"]
["A","04.09.001.001","Ультразвуковое исследование плевральной полости (на дому)","1 исследование","384 + 24 рубля за 1 км пути"]
["A","04.10.002.001","Эхокардиография (на дому)","1 исследование","1152 + 24 рубля за 1 км пути"]
["A","04.04.001.002","Ультразвуковое исследование сустава (тазобедренного сустава на дому для детского населения)","1 исследование","384 + 24 рубля за 1 км пути"]
["A","04.23.001.001","Нейросонография (на дому)","1 исследование","576 + 24 рубля за 1 км пути"]
["Услуги кабинета эндоскопии"]
["A","03.08.003.001","Эзофагоскопия (для взрослого населения)","1 исследование",588]
["A","03.08.003.002","Эзофагоскопия (для детского населения)","1 исследование",770]
["A","03.16.001.001","Эзофагогастроскопия (для взрослого населения)","1 исследование",861]
["A","03.16.001.002","Эзофагогастроскопия (для детского населения )","1 исследование",951]
["A","03.16.001.001","Эзофагогастродуоденоскопия (для взрослого населения)","1 исследование",1040]
["A","03.16.001.002","Эзофагогастродуоденоскопия (для детского населения)","1 исследование",1131]
["A","03.19.001.001","Ректоскопия (для взрослого населения)","1 исследование",479]
["A","03.19.001.002","Ректоскопия (для детского населения )","1 исследование",569]
["A","03.09.001.001","Трахеобронхоскопия (для взрослого населения)","1 исследование",1162]
["A","03.09.001.002","Трахеобронхоскопия (для детского населения)","1 исследование",1247]
["A","03.19.002.001","Ректосигмоидоскопия (для взрослого населения)","1 исследование",1112]
["A","03.19.002.002","Ректосигмоидоскопия (для детского населения)","1 исследование",1112]
["A","16.18.019.002","Полипэктомия толстого кишечника (для детского населения)","1 исследование",2760]
["A","16.18.019.003","Полипэктомия толстого кишечника (для взрослого населения)","1 исследование",2760]
["A","16.18.025.001","Полипэктомия из прямой и сигмовидной кишки (для взрослого населения)","1 исследование",1667]
["A","16.18.025.002","Полипэктомия из прямой и сигмовидной кишки (для детского населения)","1 исследование",1667]
["A","16.16.041.001.001","Полипэктомия желудка и пищевода (для взрослого населения)","1 исследование",1142]
["A","16.16.041.001.002","Полипэктомия желудка и пищевода (для детского населения)","1 исследование",1509]
["A","11.09.009.001","Эндобронхиальное введение лекарственных препаратов при бронхоскопии (для взрослого населения)","1 исследование",1581]
["A","11.09.009.002","Эндобронхиальное введение лекарственных препаратов при бронхоскопии (для детского населения)","1 исследование",1673]
["Услуги кабинета мануальной терапии "]
["A","23.30.016","Мануальная терапия","1 сеанс",278]
["В","01.022.001","Прием (осмотр, консультация) врача мануальной терапии первичный","1 консультация",131]
["Услуги физиотерапевтического отделение"]
["В","01.054.001","Осмотр (консультация) врача-физиотерапевта","1 услуга",124]
["А","17.03.001.001","Электрофорез лекарственных препаратов при костной патологии (с раствором анальгина 5%)","1 услуга",71]
["А","17.03.001.002","Электрофорез лекарственных препаратов при костной патологии  (с раствором новокаина 2%)","1 услуга",72]
["А","17.03.001.003","Электрофорез лекарственных препаратов при костной патологии  (с раствором папаверина 1%)","1 услуга",72]
["А","17.03.001.004","Электрофорез лекарственных препаратов при костной патологии (с раствором эуфилина 2%)","1 услуга",71]
["А","17.03.001.005","Электрофорез лекарственных препаратов при костной патологии (с раствором калий йод 3%)","1 услуга",74]
["А","17.03.001.006","Электрофорез лекарственных препаратов при костной патологии (с раствором кальций хлор 5%)","1 услуга",70]
["А","17.08.001.001","Электрофорез лекарственных препаратов при заболеваниях верхних дыхательных путей (с раствором кальций хлор 5%)","1 услуга",93]
["А","17.08.001.002","Электрофорез лекарственных препаратов при заболеваниях верхних дыхательных путей (с раствором эуфилина 2%)","1 услуга",94]
["А","17.08.001.003","Электрофорез лекарственных препаратов при заболеваниях верхних дыхательных путей (с раствором калий йод 3%)","1 услуга",97]
["А","17.08.001.001.001","Электрофорез лекарственных препаратов эндоназальный (с раствором кальций хлор 5%)","1 услуга",93]
["А","17.09.001.001","Электрофорез лекарственных препаратов при патологии легких (с раствором кальций хлор 5%)","1 услуга",93]
["А","17.09.001.002","Электрофорез лекарственных препаратов при патологии легких (с раствором калий йод 3%)","1 услуга",97]
["А","17.09.001.003","Электрофорез лекарственных препаратов при патологии легких (с раствором эуфилина 2%)","1 услуга",94]
["А","17.09.002","Электроаэрозольвоздействие при заболеваниях нижних дыхательных путей","1 услуга",47]
["А","17.14.001.001","Электрофорез лекарственных препаратов при заболеваниях печени и желчевыводящих путей (раствором папаверина 1%)","1 услуга",72]
["А","17.14.001.002","Электрофорез лекарственных препаратов при заболеваниях печени и желчевыводящих путей (магния сульфат 5%)","1 услуга",70]
["А","17.16.001.001","Электрофорез лекарственных препаратов при заболеваниях желудка и двенадцатиперстной кишки  (с раствором новокаина 2%)","1 услуга",72]
["А","17.16.001.002","Электрофорез лекарственных препаратов при заболеваниях желудка и двенадцатиперстной кишки (с раствором папаверина 1%)","1 услуга",72]
["А","17.20.002.001","Электрофорез лекарственных препаратов при заболеваниях женских половых органов (раствором  кальций хлор 5%)","1 услуга",70]
["А","17.20.002.002","Электрофорез лекарственных препаратов при заболеваниях женских половых органов (раствором  калий йод 3%)","1 услуга",74]
["А","17.23.001.001","Электрофорез лекарственных препаратов при заболеваниях центральной нервной системы и головного мозга (с раствором эуфилина 2%)","1 услуга",94]
["А","17.23.001.002","Электрофорез лекарственных препаратов при заболеваниях центральной нервной системы и головного мозга (с раствором новокаина 2%)","1 услуга",94]
["А","17.24.007.001","Воздействие синусоидальными модулированными токами (СМТ-терапия) при заболеваниях периферической нервной системы (с раствором анальгина 5%)","1 услуга",71]
["А","17.24.007.002","Воздействие синусоидальными модулированными токами (СМТ-терапия) при заболеваниях периферической нервной системы (с раствором новокаина 2%)","1 услуга",72]
["А","17.24.007.003","Воздействие синусоидальными модулированными токами (СМТ-терапия) при заболеваниях периферической нервной системы (с раствором папаверина 1%)","1 услуга",72]
["А","17.24.007.004","Воздействие синусоидальными модулированными токами (СМТ-терапия) при заболеваниях периферической нервной системы (с раствором эуфилина 2%)","1 услуга",71]
["А","17.03.001.001","Электрофорез лекарственных препаратов при костной патологии (с раствором новокаина 2%)","1 услуга",94]
["А","17.03.001.002","Электрофорез лекарственных препаратов при костной патологии (с раствором анальгина 5%)","1 услуга",94]
["А","17.03.001.003","Электрофорез лекарственных препаратов при костной патологии (с раствором кальций хлор 5%)","1 услуга",93]
["А","17.30.017","Воздействие электрическим полем ультравысокой частоты (ЭП УВЧ)","1 услуга",49]
["А","17.30.031","Воздействие магнитными полями","1 услуга",71]
["А","17.30.034","Ультрафонофорез лекарственный","1 услуга",78]
["А","20.24.001.001","Грязелечение заболеваний периферической нервной системы (объем 100мл)","1 услуга",155]
["А","20.24.001.002","Грязелечение заболеваний периферической нервной системы (объем 300мл)","1 услуга",179]
["А","20.24.001.003","Грязелечение заболеваний периферической нервной системы (объем 650мл)","1 услуга",199]
["А","17.01.007","Дарсонвализация кожи","1 услуга",58]
["А","22.13.001.001","Лазерное облучение крови (внутривеннное)","1 услуга",187]
["А","22.13.001.002","Лазерное облучение крови (наружное)","1 услуга",45]
["А","20.30.024.009","Озонотерапия (с применением насадки \"приспособление для получения озонированной воды (в объеме 1л.)\") ","1 услуга",105]
["А","20.30.024.010","Озонотерапия (с применением насадки \"офтальмологический набор\")","1 услуга",113]
["А","20.30.024.011","Озонотерапия (с применение насадки \"наушники\") ","1 услуга",79]
["А","20.30.024.012","Озонотерапия (с применение камеры \"берет\") ","1 услуга",78]
["А","20.30.024.013","Озонотерапия (с применение насадки \"колокол\") ","1 услуга",77]
["А","20.30.024.014","Озонотерапия (с применение камеры \"комбинезон\") ","1 услуга",162]
["А","21.24.003","Вытяжение при заболеваниях периферической нервной системы","1 услуга",180]
["А","20.30.010","Подводный душ-массаж лечебный","1 услуга",184]
["А","21.01.005.001","Массаж волосистой части головы медицинский (лобно-височной и затылочно-теменной области) ","1 услуга",91]
["А","21.01.002.001","Массаж лица медицинский (лобной, окологлазничной, верхне- и нижнечелюстной области) ","1 услуга",61]
["А","21.01.003","Массаж шеи медицинский","1 услуга",61]
["А","21.03.002.001","Массаж при заболеваниях позвоночника (воротниковой зоны/задней поверхности шеи, спины до уровня VI позвонка, передней поверхности грудной клетки до II ребра/) ","1 услуга",91]
["А","21.03.002.002","Массаж при заболеваниях позвоночника (пояснично-крестцовой области  /область спины от I поясничного позвонка до нижних ягодичных складок/) ","1 услуга",91]
["А","21.03.002.003","Массаж при заболеваниях позвоночника (спины/от VII шейного до I поясничного позвонка и от левой средней аксиллярной линии: у детей включая пояснично-крестцовую область/) ","1 услуга",91]
["А","21.03.002.004","Массаж при заболеваниях позвоночника (грудной клетки/области передней поверхности грудной клетки  от передней границы надплечий до реберных дуг и области спины от  VII шейного до I поясничного позвонка/) ","1 услуга",183]
["А","21.01.004.001","Массаж рук медицинский ( верхней конечности и плеча или всех суставов конечности) ","1 услуга",91]
["А","21.01.004.002","Массаж рук медицинский (плечевого сустава /верхней трети   плеча, области плечевого сустава и  надплечья одноименной стороны/) ","1 услуга",61]
["А","21.01.004.003","Массаж рук медицинский (локтевого сустава/верхней трети  предплечья, области локтевого сустава и   нижней ,трети плеча/ ","1 услуга",61]
["А","21.01.004.004","Массаж рук медицинский (лучезапястного сустава /проксимального отдела кисти, области  лучезапястного сустава и предплечья/","1 услуга",61]
["А","21.01.004.005","Массаж рук медицинский (кисти и предплечья) ","1 услуга",61]
["А","21.01.008.001","Массаж ног медицинский (нижней конечности и поясницы  /области стопы, голени бедра, ягодичной и пояснично-крестцовой области или всех суставов конечности/","1 услуга",122]
["А","21.01.008.002","Массаж ног медицинский (тазобедренного сустава/верхней трети бедра, области тазобедренного сустава и ягодичной области одноименной стороны/) ","1 услуга",91]
["А","21.01.008.003","Массаж ног медицинский (коленного сустава/верхней трети голени, области коленного сустава и нижней трети бедра/ ) ","1 услуга",61]
["А","21.01.008.004","Массаж ног медицинский (голеностопного сустава /проксимального отдела стопы, области голеностопного суставаи нижней трети голени/)","1 услуга",61]
["А","21.01.008.005","Массаж ног медицинский (стопы и голени) ","1 услуга",61]
["А","21.03.002.005","Массаж при заболеваниях позвоночника ( вибромассаж лечебный) ","1 услуга",95]
["А","17.09.003.001","Воздействие с помощью галакамеры при заболеваниях нижних дыхательных путей (для взрослого населения )","1 сеанс",103]
["Услуги рентгеновского отделения"]
["A","06.09.007.001","Рентгенография легких (одна проекция)","1 исследование",263]
["A","06.09.007.002","Рентгенография легких (две проекциии)","1 исследование",391]
["А","06.09.006.001","Флюрография легких цифровая","1 исследование",213]
["А","06.09.006.001.001","Флюрография легких цифровая (вторая проекция)","1 исследование",213]
["А","06.04.005.001","Рентгенография коленного сустава (две проекции)","1 исследование",386]
["А","06.04.011.001","Рентгенография бедренного сустава (одна проекция)","1 исследование",260]
["А","06.04.012.001","Рентгенография голеностопного сустава (две проекции)","1 исследование",392]
["A","06.08.002","Рентгенография гортани и трахеи","1 исследование",263]
["А","06.03.041","Рентгенография всего таза","1 исследование",264]
["A","06.03.005","Рентгенография всего черепа, в одной или более проекциях","1 исследование",363]
["А","06.03.053","Рентгенография стопы в двух проекциях","1 исследование",366]
["А","06.03.052.001","Рентгенография стопы (одна проекция)","1 исследование",250]
["A","06.08.003.001","Рентгенография придаточных пазух носа (одна проекция)","1 исследование",241]
["А","06.03.021.001","Рентгенография верхней конечности (две проекции)","1 исследование",366]
["А","06.03.022","Ренгенография ключицы","1 исследование",260]
["А","06.03.036.001","Рентгенография нижней конечности (две проекции)","1 исследование",366]
["А","06.03.032.001","Рентгенография кисти рук (одна проекция)","1 исследование",264]
["А","06.03.032.002","Рентгенография кисти рук (две проекции)","1 исследование",386]
["А","06.04.003.001","Рентгенография локтевого сустава (две проекции)","1 исследование",366]
["А","06.04.010","Рентгенография плечевого сустава","1 исследование",260]
["A","06.28.002","Внутривенная урография","1 исследование",1119]
["A","06.28.003","Ретроградная пиелография  ","1 исследование",861]
["A","06.28.010","Микционная цистоуретрография ","1 исследование",558]
["А","06.28.007","Цистография","1 исследование",806]
["A","06.20.001","Гистеросальпенгография ","1 исследование",952]
["А","06.20.004","Маммография","1 исследование",715]
["A","06.30.004","Обзорный снимок брюшной полости и органов малого таза","1 исследование",264]
["A","06.30.008","Фистулография ","1 исследование",895]
["А","06.03.010.001","Рентгенография шейного отдела позвоночника (одна проекция)","1 исследование",263]
["А","06.03.010.002","Рентгенография шейного отдела позвоночника (две проекции)","1 исследование",392]
["А","06.03.015.001","Рентгенография поясничного отдела позвоночника (одна проекция)","1 исследование",258]
["А","06.03.015.002","Рентгенография поясничного отдела позвоночника (две проекции)","1 исследование",381]
["А","06.03.013.001","Рентгенография дорсального отдела позвоночника (одна проекция)","1 исследование",258]
["А","06.03.013.002","Рентгенография дорсального отдела позвоночника (две проекция)","1 исследование",381]
["A","06.03.018","Рентгенография позвоночника, специальные исследования и проекции","1 исследование",394]
["А","06.03.017.002","Рентгенография крестца и копчика (две проекции)","1 исследование",366]
["А","06.09.005","Компьютерная томография  органов грудной полости","1 исследование",1780]
["А","06.03.002.001","Компьютерная томография  головы с контрастированием","1 исследование",5245]
["А","06.08.009.002","Компьютерная томография  шеи с внутривенным болюсным контрастированием","1 исследование",5245]
["А","06.03.012","Компьютерная томография  шеи ","1 исследование",1780]
["А","06.08.007","Компьютерная томография  гортани","1 исследование",1780]
["А","06.08.007.002","Компьютерная томография  гортани  с внутривенным болюсным контрастированием","1 исследование",5245]
["А","06.03.002.004","Компьютерная томография  лицевого отдела черепа","1 исследование",1780]
["А","06.12.001.001","Компьютерная томография  грудной аорты","1 исследование",1780]
["А","06.12.001.002","Компьютерная томография  брюшной аорты","1 исследование",1780]
["А","06.21.003.003","Компьютерная томография органов таза у мужчин с  контрастированием","1 исследование",5245]
["А","06.21.003","Компьютерная томография органов таза у мужчин ","1 исследование",1780]
["А","06.25.003","Компьютерная томография  височной кости","1 исследование",1780]
["А","06.08.007","Компьютерная томография  придаточных пазух носа","1 исследование",1780]
["А","06.03.002","Компьютерная томография  головы","1 исследование",1780]
["А","06.09.005.002","Компьютерная томография  органов грудной полости с внутривенным болюсным контрастированием","1 исследование",5245]
["А","06.30.005","Компьютерная томография органов брюшной полости ","1 исследование",1780]
["А","06.30.005.003","Компьютерная томография органов брюшной полости  с внутривенным болюсным контрастированием","1 исследование",5245]
["А","06.30.007","Компьютерная томография забрюшного пространства","1 исследование",1780]
["А","06.30.007.002","Компьютерная томография забрюшного пространства с внутривенным болюсным контрастированием","1 исследование",5245]
["А","06.20.002","Компьютерная томография органов малого таза у женщин","1 исследование",1780]
["А","06.20.002.003","Компьютерная томография органов малого таза у женщин с контрастированием","1 исследование",5245]
["А","06.01.001","Компьютерная томография  мягких тканей","1 исследование",1780]
["А","06.04.017","Компьютерная томография  сустава","1 исследование",1780]
["А","06.03.036.001","Компьютерная томография  нижней конечности","1 исследование",1780]
["А","06.03.021.001","Компьютерная томография  верхней конечности","1 исследование",1780]
["А","06.03.062","Компьютерная томография  кости","1 исследование",1780]
["А","06.03.058","Компьютерная томография  позвоночника  (один отдел)","1 исследование",1780]
["А","06.09.008.001","Томография легких (линейная)","1 исследование",252]
["А","06.30.002","Описание и интерпретация рентгенографических изображений ","1 исследование",117]
["А ","06.30.002.001","Описание и интерпретация компьютерных томограмм","1 исследование",117]
["А","06.16.007","Рентгеноскопия желудка и двенадцатиперстной кишки","1 исследование",729]
["А","06.16.001.002","Рентгеноскопия пищевода с контрасным веществом","1 исследование",729]
["А ","16.18.001","Ирригоскопия","1 исследование",871]
["D","22.02.04","Оформление и подготовка выписок из документов (выдача дубликата рентгеновского исследования)","1 услуга",93]
["D","22.02.04","Оформление и подготовка выписок из документов (выдача дубликата флюорографического исследования)","1 услуга",46]
["D","22.02.04","Оформление и подготовка выписок из документов (выдача (повторная) данных компьютерной томографии)","1 услуга",130]
["Услуги клинико-диагностической лаборатории"]
["A","09.05.010","Исследование уровня общего белка в крови","1 исследование",83]
["А","09.05.021","Исследование уровня общего билирубина в крови","1 исследование",89]
["А","09.05.022","Исследование уровня свободного и связанного билирубина в крови","1 исследование",92]
["А","09.05.023","Исследование уровня глюкозы в крови","1 исследование",84]
["А","09.05.023.002","Исследование уровня глюкозы в крови с помощью анализатора","1 исследование",84]
["А","09.05.004","Исследование уровня альфа-липопротеинов (высокой плотности) в крови","1 исследование",134]
["А","09.05.007","Исследование уровня железа сыворотки крови","1 исследование",105]
["A","09.05.011","Исследование уровня альбумины в крови","1 исследование",97]
["А","09.05.017","Исследование уровня мочевины в крови","1 исследование",86]
["А","09.05.018","Исследование уровня мочевой кислоты в крови","1 исследование",97]
["А","09.05.020","Исследование уровня креатинина в крови","1 исследование",86]
["А","09.05.024","Исследование уровня общих липидов в крови","1 исследование",95]
["А","09.05.025","Исследование уровня триглицеридов в крови","1 исследование",156]
["А","09.05.026","Исследование уровня холестерина в крови ","1 исследование",89]
["А","09.05.027","Исследование уровня липопротеинов в крови","1 исследование",116]
["А","09.05.028","Исследование уровня липопротеинов низкой плотности","1 исследование",120]
["А","09.05.029","Исследование уровня фосфолипидов в крови","1 исследование",118]
["А","09.05.030","Исследование уровня натрия в крови","1 исследование",125]
["А","09.05.031","Исследование уровня калия в крови","1 исследование",126]
["A","09.05.032","Исследование уровня общего кальция в крови","1 исследование",124]
["A","09.05.033","Исследование уровня неорганического фосфора в крови","1 исследование",108]
["А","09.05.034","Исследование уровня хлоридов в крови","1 исследование",85]
["А","09.05.039","Исследование уровня лактатдегидрогеназы в крови","1 исследование",95]
["А","09.05.041","Исследование уровня аспартат-трансаминазы в крови","1 исследование",88]
["А","09.05.042","Исследование уровня аланин-трансаминазы в крови","1 исследование",88]
["А","09.05.043","Исследование уровня креатинкиназы в крови","1 исследование",149]
["А","09.05.044","Исследование уровня гамма-глютамилтрансферазы в крови","1 исследование",101]
["А","09.05.045","Исследование уровня амилазы в крови","1 исследование",150]
["А","09.05.046","Исследование уровня щелочной фосфатазы в крови","1 исследование",114]
["А","09.05.083","Исследование уровня гликированного гемоглобина в крови","1 исследование",110]
["А","09.05.104","Исследование тимоловой и сулемовой проб в сыворотке крови","1 исследование",89]
["A","09.05.195","Исследование уровня ракового эмбрионального антигена в крови","1 исследование",163]
["A","26.06.034","Определение антител классов M, G (IgG, IgM) к вирусу гепатита A (Hepatitis A virus) в крови","1 исследование",224]
["A","26.06.038","Определение антител классов M, G (IgM, IgG) к антигену вирусного гепатита B (HbeAg Hepatitis B virus) в крови","1 исследование",189]
["А","26.06.041","Определение антител классов M, G (IgM, IgG) к вирусному гепатиту C (Hepatitis C virus) в крови","1 исследование",219]
["A","26.06.048","Определение антител классов M, G (IgM, IgG) к вирусу иммунодефицита человека ВИЧ-1 (Human immunodeficiency virus HIV 1) в крови","1 исследование",693]
["A","26.06.082","Определение антител к бледной трепонеме (Treponema pallidum) в крови","1 исследование",197]
["A","26.06.082.003","Определение антител к бледной трепонеме( Treponema pallidum) в реакции пассивной гемаглютинации исследовании (РПГА)в крови","1 исследование",252]
["А","26.06.082.002","Определение антител к бледной трепонеме (Treponema pallidum) в иммуноферментном исследовании (ИФА) в сыворотке крови с кодом","1 исследование",260]
["A","09.05.048","Исследование уровня плазминогена в крови","1 исследование",162]
["A","09.05.050","Исследование уровня фибриногена в крови","1 исследование",163]
["A","09.05.188","Определение активности фактора VIII в сыворотке крови","1 исследование",168]
["A","08.20.012","Цитологическое исследование препарата тканей влагалища","1 исследование",164]
["A","09.01.003","Микроскопия мазков с поверхности кожи","1 исследование",156]
["A","09.01.004","Микроскопия волос (трихометрия)","1 исследование",156]
["A","09.01.006","Микроскопия ногтей","1 исследование",156]
["A","08.05.003","Исследование уровня эритроцитов в крови","1 исследование",124]
["A","08.05.004","Исследование уровня лейкоцитов в крови","1 исследование",109]
["A","08.05.005","Исследование уровня тромбоцитов в крови","1 исследование",114]
["A","08.05.006","Соотношение лейкоцитов в крови (подсчет формулы крови)","1 исследование",124]
["A","08.05.008","Исследование уровня ретикулоцитов в крови","1 исследование",159]
["A","09.05.003","Исследование уровня общего гемоглобина в крови","1 исследование",88]
["A","12.05.015","Исследование времени кровотечения","1 исследование",139]
["A","09.05.130","Исследование уровня простатспецифического антигена в крови","1 исследование",241]
["A","12.05.027","Определение протромбинового (тромбопластинового) времени в крови или в плазме","1 исследование",156]
["A","12.05.028","Определение тромбинового времени в крови","1 исследование",143]
["A","26.21.005","Микроскопическое исследование отделяемого из уретры на гарднереллы (Gardnerella vaginalis)","1 исследование",157]
["В","03.016.006","Анализ мочи общий","1 исследование",118]
["В","03.016.010","Копрологическое исследование","1 исследование",268]
["В","03.016.002","Общий (клинический) анализ крови","1 исследование",115]
["В","03.016.003","Общий (клинический) анализ крови развернутый","1 исследование",187]
["А","09.19.001","Исследование кала на скрытую кровь","1 исследование",69]
["А","09.19.002","Исследование кала на гельминты","1 исследование",122]
["А","09.20.001","Микроскопическое исследование влагалищных мазков","1 исследование",76]
["А","09.21.003","Микроскопическое исследование уретрального отделяемого и сока простаты","1 исследование",76]
["А","09.28.007","Исследование уровня желчных пигментов и их производных в моче","1 исследование",45]
["А","09.28.015","Обнаружение кетоновых тел в моче","1 исследование",45]
["А","09.28.015.001","Обнаружение кетоновых тел в моче  (с помощью тест полоски)","1 исследование",48]
["А","09.28.018","Анализ мочевых камней","1 исследование",133]
["А","09.28.006","Исследование уровня креатинина в моче (проба Реберга)","1 исследование",74]
["А","09.28.027","Определение альфа-амилазы в моче","1 исследование",97]
["А","09.30.010","Определение международного нормализованного отношения (МНО)","1 исследование",136]
["А","12.06.011","Проведение реакции Вассермана (RW)","1 исследование",260]
["А","12.05.004","Проба на совместимость перед переливанием крови","1 исследование",127]
["А","12.05.005","Определение основных групп крови (A, B, 0)","1 исследование",172]
["А","12.05.006","Определение резус-принадлежности","1 исследование",127]
["А","12.05.024","Определение холодовых антител в крови","1 исследование",135]
["A","26.06.077.001","Определение антител к сальмонелле тифи (Salmonella typhi) в крови (РПГА)","1 исследование",250]
["A","26.06.034.001"," Определение антител классов M, G (IgG, IgM) к вирусу гепатита A (Hepatitis A virus) в крови (Определение   гепатита В в крови)","1 исследование",151]
["A"," 26.06.034.005","Определение антител классов M, G (IgG, IgM) к вирусу гепатита A (Hepatitis A virus) в крови (Определение   гепатита С в крови)","1 исследование",159]
["A","26.06.034.006","Определение антител классов M, G (IgG, IgM) к вирусу гепатита A (Hepatitis A virus) в крови (Подтверждающий тест   гепатит  С )","1 исследование",158]
["A","26.06.048.001","Определение антител классов M, G (IgM, IgG) к вирусу иммунодефицита человека ВИЧ-1 (Human immunodeficiency virus HIV 1) в крови (Определение антител классов  к вирусу иммунодифицита человека ВИЧ-1,2 в крови)","1 исследование",387]
["A","26.06.082.006","Определение антител к бледной трепонеме (Treponema pallidum) в крови (Определение антител сифилиса в методом ИФА)","1 исследование",306]
["A","26.06.082.007 ","Определение антител к бледной трепонеме (Treponema pallidum) в крови (Реакция микропреципитации (Экспресс диагностика сифилиса))","1 исследование",127]
["A","26.20.006.001","Микроскопическое исследование отделяемого женских половых органов на аэробные и факультативно-анаэробные микроорганизмы (обнаружение антигена хламидии (Chlamydia trachomatis) методом ПИФ)","1 исследование",158]
["A","26.20.006.002","Микроскопическое исследование отделяемого женских половых органов на аэробные и факультативно-анаэробные микроорганизмы (обнаружение антигена уреаплазмы (Ureaplasma urealyticum) методом ПИФ)","1 исследование",158]
["A","26.20.006.003","Микроскопическое исследование отделяемого женских половых органов на аэробные и факультативно-анаэробные микроорганизмы (обнаружение антигена микоплазмы (Mycoplasma genitalium) методом ПИФ)","1 исследование",147]
["A","26.06.048.002","Определение антител классов M, G (IgM, IgG) к вирусу иммунодефицита человека ВИЧ-1 (Human immunodeficiency virus HIV 1) в крови(определение антител к вирусам иммунодефицита человека 1 и 2 типов (ВИЧ-1 и ВИЧ-2), ВИЧ-1 группы 0 и антигена Р 24 ВИЧ - 1\"). (В стоимость услуги не входит набор реагентов \"Тест-система иммуноферментная\")","1 исследование",226]
["Услуги кабинета предрейсовых послерейсовых осмотров"]
["В","01.045.002.001","Проведение экспертизы (исследования) состояния здоровья в отношении живых лиц (предрейсовый (или послерейсовый) медицинский осмотр водителей транспортных средств)","1 услуга",75]
["А","09.28.055.001.001","Определение наличия психоактивных веществ в моче с помощью тест-полоски (тест полоска \"Наркоскрим мульти\" на 5 видов наркотика)","1 исследование",643]
["А","09.28.055.001.002","Определение наличия психоактивных веществ в моче с помощью тест-полоски (тест полоска \"Наркоскрим мульти\" на 6 видов наркотика)","1 исследование",563]
["А","09.28.055.001.003","Определение наличия психоактивных веществ в моче с помощью тест-полоски (тест полоска \"Наркочек\" на 5 видов наркотика)","1 исследование",646]
["А","09.28.055.001.004","Определение наличия психоактивных веществ в моче с помощью тест-полоски (тест полоска \"ИХА-6-Мульти-Фактор\" на 6 видов наркотика)","1 исследование",490]
["А","09.28.055.001.005","Определение наличия психоактивных веществ в моче с помощью тест-полоски (тест полоска \"Креатив МП-6\" на 6 видов наркотика)","1 исследование",547]
["В","01.070.001.001","Медицинское освидетельствование на состояние опьянения (алкогольного, наркотического или иного токсического) (алкогольного с применением тест полоски алкострин)","1 освидетельствование",240]
["В","01.070.001.002","Медицинское освидетельствование на состояние опьянения (алкогольного, наркотического или иного токсического) (алкогольного с применением тест полоски алкосенсор)","1 освидетельствование",233]
["В","01.070.001.003","Медицинское освидетельствование на состояние опьянения (алкогольного, наркотического или иного токсического) (алкогольного с применением прибора для измерения концентрации алкоголя в выдыхаемом воздухе \"Анализатор паров этанола Lion Alcolmeter SD-400 (SD-400P))","1 освидетельствование",457]
["Услуги кабинета гирудотерапии"]
["A","14.05.001.001","Постановка пиявок (1 пиявка)","1 услуга",344]
["A","14.05.001.002","Постановка пиявок (2 пиявки)","1 услуга",408]
["A","14.05.001.003","Постановка пиявок (3 пиявки)","1 услуга",472]
["A","14.05.001.004","Постановка пиявок (4 пиявки)","1 услуга",535]
["A","14.05.001.005","Постановка пиявок (5 пиявок)","1 услуга",599]
["A","14.05.001.006","Постановка пиявок (6 пиявок)","1 услуга",662]
["A","14.05.001.007","Постановка пиявок (7 пиявок)","1 услуга",726]
["A","14.05.001.008","Постановка пиявок (8 пиявок)","1 услуга",790]
["A","14.05.001.009","Постановка пиявок (9 пиявок)","1 услуга",853]
["A","14.05.001.010","Постановка пиявок (10 пиявок)","1 услуга",917]
["А","14.05.001.011","Постановка пиявок (без учета стоимости пиявок)","1 услуга",281]
[" Услуги кабинета иглорефлексотерапии "]
["В","01.054.006","Прием (осмотр, консультация) врача - рефлексотерапевта первичный ","1 консультация",263]
["В","01.054.007","Прием (осмотр, консультация) врача - рефлексотерапевта повторный ","1 консультация",131]
["А","21.03.003.001","Рефлексотерапия при заболеваниях костной системы (иглорефлексотерапия)","1 сеанс",322]
["А","21.05.001.001","Рефлексотерапия при заболеваниях органов системы кроветворения и крови (иглорефлексотерапия)","1 сеанс",322]
["А","21.08.001.001","Рефлексотерапия при заболеваниях верхних дыхательных путей (иглорефлексотерапия)","1 сеанс",409]
["А","21.10.004.001","Рефлексотерапия при заболеваниях сердца и перикарда (иглорефлексотерапия)","1 сеанс",322]
["А","21.13.002.001","Рефлексотерапия при заболеваниях периферических сосудов (иглорефлексотерапия)","1 сеанс",322]
["А","21.14.002.001","Рефлексотерапия при заболеваниях печени, желчевыводящих путей (иглорефлексотерапия)","1 сеанс",322]
["А","21.15.001.001","Рефлексотерапия при заболеваниях поджелудочной железы (иглорефлексотерапия)","1 сеанс",322]
["А","21.16.001.001","Рефлексотерапия при заболеваниях пищевода, желудка и двенадцатиперстной кишки (иглорефлексотерапия)","1 сеанс",322]
["А ","21.20.003.001","Рефлексотерапия при заболеваниях женских половых органов (иглорефлексотерапия)","1 сеанс",322]
["А","21.21.002.001","Рефлексотерапия при заболеваниях мужских половых органов (иглорефлексотерапия)","1 сеанс",322]
["А","21.22.002.001","Рефлексотерапия при заболеваниях желез внутренней секреции (иглорефлексотерапия)","1 сеанс",322]
["А","21.23.002.001","Рефлексотерапия при заболеваниях центральной нервной системы (иглорефлексотерапия)","1 сеанс",322]
["А","21.24.002.001","Рефлексотерапия при заболеваниях периферической нервной системы (иглорефлексотерапия)","1 сеанс",322]
["А","21.25.001.001","Рефлексотерапия при заболеваниях органа слуха (иглорефлексотерапия)","1 сеанс",322]
["А","21.26.003.001","Рефлексотерапия при заболеваниях органа зрения (иглорефлексотерапия)","1 сеанс",216]
["А ","21.28.001.001","Рефлексотерапия при заболеваниях почек и мочевыделительного тракта (иглорефлексотерапия)","1 сеанс",322]
["Услуги отделения переливания крови"]
["А","18.05.001","Плазмаферез","1 услуга",1963]
["У С Л У  Г И   О Т Д Е Л Е Н И Й   С Т А Ц И О Н А Р А"]
["Терапевтическое отделение"]
["B","01.047.009","Ежедневный осмотр врачом-терапевтом с наблюдением и уходом среднего и младшего медицинского персонала в отделении стационара ","1 койко - день",708]
["B","01.047.009.001","Ежедневный осмотр врачом-терапевтом с наблюдением и уходом среднего и младшего медицинского персонала в отделении стационара (дополнительный осмотр и наблюдение в терапевтическом отделении)","1 койко - день",420]
["В","01.047.001.004","Прием (осмотр, консультация) врача - терапевта первичный (консультация заведующего отделением)","1 консультация",415]
["Кардиологическое отделение"]
["B","01.015.006","Ежедневный осмотр врачом-кардиологом с наблюдением и уходом среднего и младшего медицинского персонала в отделении стационара","1 койко - день",1557]
["В","01.015.001.003","Прием (осмотр, консультация) врача - кардиолога первичный (консультация заведующего отделением)","1 консультация",415]
["Неврологическое отделение"]
["B","01.023.003.001","Ежедневный осмотр врачом-неврологом с наблюдением и уходом среднего и младшего медицинского персонала в отделении стационара","1 койко - день",1367]
["B","01.023.003.002","Ежедневный осмотр врачом-неврологом с наблюдением и уходом среднего и младшего медицинского персонала в отделении стационара (дополнительный осмотр и наблюдение в неврологическом отделении)","1 пациенто - день",420]
["B","01.023.001.005","Прием (осмотр, консультация) врача - невролога первичный (консультация заведующего отделением)","1 консультация",450]
["Хирургическое отделение"]
["B","01.057.005","Ежедневный осмотр врачом-хирургом с наблюдением и уходом среднего и младшего медицинского персонала в отделении стационара ","1 койко - день",1147]
["B","01.057.001.003","Прием (осмотр, консультация) врача - хирурга первичный (консультация заведующего отделением)","1 консультация",484]
["А","16.21.004.001","Позадилонная аденомэктомия (Трансуратуальная  резекция аденомы простаты)","1 операция",9141]
["А","16.28.032.001","Реконструкция мочевого пузыря (Трансуратуальная  резекция полипов мочевого пузыря)","1 операция",9141]
["А","16.28.010.001","Аспирация почечной кисты или лоханки (Пункционное лечение кист почек)","1 операция",10076]
["А","16.14.009.002","Холецистэктомия лапароскопическая","1 операция",5067]
["А","16.30.001","Оперативное лечение пахово-бедренной грыжи","1 операция",10661]
["А","16.30.004","Оперативное лечение грыжи передней брюшной стенки","1 операция",10661]
["А","16.30.004.004","Операция при малой и средней послеоперационной грыже (сложная форма)","1 операция",10661]
["А","16.30.002","Оперативное лечение пупочной грыжи","1 операция",10661]
["А","16.21.013.001","Обрезание крайней плоти (по религиозному мировоззрению у детей)","1 операция",2732]
["Педиатрическое отделение"]
["В","01.031.005","Ежедневный осмотр врачом-педиатром с наблюдением и уходом среднего и младшего медицинского персонала в отделении стационара","1 койко - день",1197]
["В","01.031.005.002","Ежедневный осмотр врачом-педиатром с наблюдением и уходом среднего и младшего медицинского персонала в отделении стационара (дополнительный осмотр и наблюдение в педиатрическом отделении)","1 койко - день",420]
["В","01.031.005.003","Ежедневный осмотр врачом-педиатром с наблюдением и уходом среднего и младшего медицинского персонала в отделении стационара (с организацией индивидуального поста)","1 койко - день",487]
["В","01.031.001.005","Прием (осмотр, консультация) врача - педиатра первичный (консультация заведующего отделением)","1 осмотр",415]
["Травматолого-ортопедическое отделение"]
["B","01.050.003","Ежедневный осмотр врачом-травматологом-ортопедом с наблюдением и уходом среднего и младшего медицинского персонала в отделении стационара","1 койко - день",1517]
["B","01.050.001.005","Прием (осмотр, консультация) врача - травматолога - ортопеда первичный (консультация заведующим травматолого-ортопедическим отделением)","1 консультация",484]
["А","16.03.022.001","Соединение кости (Травматологическая опереация бедра (стержень))","1 операция",8763]
["А","16.03.022.002","Соединение кости (соединение кости голени пластиной)","1 операция",9490]
["А","16.03.022.003","Соединение кости (Остеосинтез пястных (плюсневых) костей)","1 операция",2690]
["А","16.03.022.004","Соединение кости (Остеосинтез лодыжек )","1 операция",8721]
["А","16.03.022.005","Соединение кости (Травматологическая опереация бедра (пластина))","1 операция",11988]
["А","16.03.021","Удаление внутреннего фиксирующего устройства","1 операция",2609]
["А","16.02.005","Пластика сухожилия ","1 операция",3221]
["А","16.03.022.006","Соединение кости (соединение кости голени посредством аппарата внешней фиксации )","1 операция",35358]
["А","16.03.022.007","Соединение кости (соединение кости плеча стержнем)","1 операция",22280]
["А","16.03.022.008","Соединение кости (соединение кости плеча пластиной)","1 операция",10058]
["А","16.03.022.009","Соединение кости (соединение кости ключицы пластиной)","1 операция",8357]
["А","16.03.022.010","Соединение кости (соединение кости предплечья пластиной)","1 операция",8771]
["А","16.30.019.003","Ампутация кисти","1 операция",1925]
["А","16.30.019.001","Ампутация плеча","1 операция",4713]
["А","16.30.019.002","Ампутация предплечья","1 операция",4713]
["А","16.30.019","Ампутация верхней конечности","1 операция",5677]
["А","16.30.019.004","Ампутация пальцев верх.кон","1 операция",1925]
["А","16.30.017.003","Ампутация пальцев нижней конечности","1 операция",1925]
["А","16.30.017","Ампутация нижней конечности","1 операция",5677]
["А","16.30.017.002","Ампутация стопы","1 операция",4569]
["А","16.30.017.001","Ампутация голени","1 операция",4713]
["Гинекологическое отделение"]
["B","01.001.007","Ежедневный осмотр врачом-акушером-гинекологом, с наблюдением и уходом среднего и младшего медицинского персонала в отделении стационара ","1 койко - день",726]
["B","01.001.007.002","Ежедневный осмотр врачом-акушером-гинекологом, с наблюдением и уходом среднего и младшего медицинского персонала в отделении стационара (дополнительный осмотр и наблюдение в гинекологическом отделении)","1 койко - день",420]
["B","01.001.001.003","Прием (осмотр, консультация) врача - акушера - гинеколога первичный (консультация заведующего отделением)","1 консультация",415]
["A","16.20.037.001","Искусственное прерывание беременности (аборт) (в круглосуточном стационаре)","случай госпитализации",2105]
["А","16.20.017.001","Удаление параовариальной кисты с использованием видеоэндоскопических технологий","1 операция",4733]
["А","16.20.035.001","Миомэктомия (энуклеация миоматозных узлов) с использованием видеоэндоскопических технологий","1 операция",5680]
["А","16.20.026","Рассечение и иссечение спаек женских половых органов","1 операция",2603]
["А","16.20.061.001","Резекция яичника с использованием видеоэндоскопических технологий","1 операция",4733]
["А","16.20.061.002","Резекция яичника с использованием видеоэндоскопических технологий с помощью коагулятора","1 операция",4733]
["А","16.30.007.004","Лапароскопическое дренирование брюшной полости","1 операция",3313]
["А","16.30.034.001.001","Лапароскопия (диагностическая (гинекологическое отделение))","1 операция",2839]
["А","16.30.036","Иссечение очагов эндометриоза","1 операция",3076]
["А","16.30.042.001","Лапароскопическая остановка внутрибрюшного кровотечения","1 операция",2839]
["A","03.20.003","Гистероскопия","1 операция",2523]
["A","03.20.003.001","Гистерорезектоскопия","1 операция",2969]
["A","16.20.001.001","Удаление кисты яичника с изспользованием видеоэндоскопических технологий","1 операция",4733]
["A","16.20.003.001","Сальпинго-оофорэктомия с использованием видеоэндоскопических технологий","1 операция",4733]
["A","16.20.004.001","Сальпингэктомия с использованием видеоэндоскопических технологий","1 операция",4733]
["A","16.20.041.001","Стерилизация маточных труб  с использованием видеоэндоскопических технологий","1 операция",4023]
["A","16.20.038","Операции по поводу бесплодия на придатках матки","1 операция",4733]
["Акушерское обсервационное отделение"]
["В","01.001.008.001","Ежедневный осмотр врачом-акушером-гинекологом беременной, с наблюдением и уходом среднего и младшего медицинского персонала в отделении стационара","1 койко - день",2029]
["B","01.001.001.004","Прием (осмотр, консультация) врача - акушера - гинеколога первичный (консультация заведующего отделением)","1 консультация",415]
["F","01.02.","Однодневное пребывание в палате повышенной комфортности в акушерско-обсервационном отделении, с НДС 18%","1 койко - день",489]
["F","01.10.","Однодневное пребывание в палате повышенной сервисности акушерско-обсервационном отделении, с НДС 18%","1 койко - день",384]
["Отделение анестезиологии - реанимации"]
["B","01.03.001","Осмотр (консультация) врачом-анестезиологом-реаниматологом первичный","1 консультация",330]
["В","01.003.003","Суточное наблюдение врачом-анестезиологом-реаниматологом","1 койко - день",9528]
["В","01.003.004.013","Анестезиологическое пособие (включая раннее послеоперационное ведение)(внутривенный наркоз длительностью до 1 часа)","1 час услуги",2004]
["В","01.003.004.014","Анестезиологическое пособие (включая раннее послеоперационное ведение)(внутривенный наркоз на любое время операций)","1 услуга",2695]
["В","01.003.004.007","Спинальная анестезия","1 услуга",1357]
["Инфекционное отделение"]
["В","01.014.003","Ежедневный осмотр врачом-инфекционистом с наблюдением и уходом среднего и младшего медицинского персонала в отделении стационара ","1 койко - день",1725]
["В","01.014.003.002","Ежедневный осмотр врачом-инфекционистом с наблюдением и уходом среднего и младшего медицинского персонала в отделении стационара (дополнительный осмотр и наблюдение в инфекционном отделении)","1 койко - день",420]
["В","01.014.001.004","Прием (осмотр, консультация) врача - инфекциониста первичный (консультация заведующего отделением)","1 консультация",450]
["А","14.19.002.001","Постановка очистительной клизмы (детскому населению)","1 процедура",289]
["А","14.19.002.002","Постановка очистительной клизмы (взрослому населению)","1 процедура",297]
["Приемное отделение"]
["В","01.047.015.01","Сеанс детоксикационной терапии","1 сеанс",1847]
["А","02.01.004","Измерение массы тела","1 услуга",25]
["А","02.03.005","Измерение роста","1 услуга",25]
["Терапевтическое отделение Болхунской участковой больницы"]
["B","01.047.009.004","Ежедневный осмотр врачом-терапевтом с наблюдением и уходом среднего и младшего медицинского персонала в отделении стационара (в терапевтическом отделении Болхунской участковой больницы)","1 койко - день",699]
["Отделение сестринского ухода Болхунской участковой больницы"]
["B","01.047.009.005","Ежедневный осмотр врачом-терапевтом с наблюдением и уходом среднего и младшего медицинского персонала в отделении стационара (в отделении сестринского ухода Болхунской участковой больницы)","1 койко - день",350]
["Терапевтическое отделение Золотухинской участковой больницы"]
["B","01.047.009.004","Ежедневный осмотр врачом-терапевтом с наблюдением и уходом среднего и младшего медицинского персонала в отделении стационара (в терапевтическом отделении Золотухинской участковой больницы)","1 койко - день",713]
["СТОМАТОЛОГИЧЕСКИЕ УСЛУГИ"]
[]
[" Стоматологические услуги, оказываемые населению в возрасте до 18 лет"]
[1,"101","Консультация врача","1 посещение",91]
[1,103,"Анестезия","1 шт",91]
[1,104,"Инъекция","1 шт",91]
[1,105,"Оказание помощи при острой боли","1 посещение",91]
[1,106,"Анестезия аппликационная","1 шт",45]
[1,107,"Полировка пломбы","1 зуб",45]
[1,110,"Комплексное первичное обследование ребенка с регистрацией в учетной документации","1 зуб",362]
[1,111,"Осмотр полости рта первичного больного с регистрацией в учетной документации","1 посещение",91]
[1,112,"Определение сост.прикуса, пародонта, индекса КПУ","1 посещение",91]
[1,113,"Определение индекса гигиены, РМА, очаговой  деминерализации","1 посещение",91]
[1,114,"Определение степени активности кариеса 1 и 2 степ. активности","1 посещение",91]
[2,201,"Осмотр полости рта первичного больного, сбор анамнеза заболевания, оформление документов первичного больного","1 посещение",91]
[2,202,"Оформление документации при повторном посещении /для сложных заболеваний/","1 посещение",45]
[2,203,"Лечение 1 зуба при несложном кариесе 1 и 2 степени активности","1 зуб",181]
[2,207,"Комплексное лечение 1 зуба при неосложненном кариесе 3 степ. активности","1 зуб",362]
[2,211,"Ремтерапия под контролем окрашивания зуба - первый сеанс","1 зуб",272]
[2,212,"Ремтерапия под контролем окрашивания зуба – промежуточный сеанс","1 зуб",91]
[2,213,"Ремтерапия под контролем окрашивания зуба – заключительный сеанс","1 зуб",272]
[2,220,"Окончательное лечение пульпита временного зуба в 2 и более посещений","1 зуб",453]
[2,221,"Окончательное лечение пульпита в 2 и более посещений однокорневого постоянного зуба","1 зуб",634]
[2,222,"Окончательное лечение пульпита в 2 и более посещений двухкорневого зуба","1 зуб",815]
[2,223,"Окончательное лечение пульпита в 2 и более посещений трехкорневого зуба","1 зуб",996]
[2,224,"Наложение мышьяковистой пасты","1 зуб",91]
[2,225,"Лечение пульпита постоянного зуба при несформировавшихся корнях ампутационным методом","1 зуб",543]
[2,226,"Лечение травматического пульпита однокорневого постоянного зуба под анестезией","1 зуб",724]
[2,230,"Окончательное лечение периодонтита временного  или постоянного зуба импрегнационным методом","1 зуб",453]
[2,231,"Окончательное лечение периодонтита однокорневого постоянного зуба","1 зуб",724]
[2,232,"Окончательное лечение периодонтита двухкорневого  зуба","1 зуб",769]
[2,233,"Окончательное лечение периодонтита трехкорневого  зуба","1 зуб",996]
[2,234,"Раскрытие поломки зуба, удаление распада из каналов","1 зуб",91]
[2,260,"Изготовление вкладки","1 зуб",1086]
[2,261,"Исследование и консервативное лечение при травматических повреждениях 1-го зуба","1 зуб",272]
[2,262,"Реставрация зубов с устранением дефектов пломб или удаление  пломбы","1 зуб",181]
[2,263,"Восстановление анатомической формы зуба при гитоплазии, флюорозе в одном зубе","1 зуб",272]
[2,270,"Лечение острых форм стоматита /ОГС, РГС, трав/ первое посещение","1 посещение",272]
[2,271,"Лечение острых форм стоматита повторное посещение","1 посещение",181]
[2,272,"Исследование и лечение ребенка с рецидивир. формами заболеваний и изменений слизистых  оболочек полости рта, губ - первичное посещение","1 посещение",362]
[2,273,"Лечение ребенка с рецидивир. формами заболеваний и изменений слизистых оболочек полости рта и губ – послед посещение","1 посещение",181]
[2,274,"Исследование и лечение ребенка с заболеваниями пародонта первое  посещение","1 посещение",362]
[2,275,"Исследование и лечение ребенка с заболеваниями пародонта последующее  посещение","1 посещение",181]
[2,276,"Удаление зубного камня у 2-4 зубов в одно посещение","1 посещение",181]
[2,277,"Пришлифовывание 2-4 зубов под контролем онклюзиограммы","1 посещение",181]
[3,301,"Консультация ребенка с врачом стоматологом-хирургом или врачом-ортодонтом","1 посещение",181]
[3,302,"Проведение инъекционной анестезии","1 шт",91]
[3,303,"Удаление временного зуба","1 зуб",91]
[3,304,"Удаление постоянного зуба простое","1 зуб",181]
[3,305,"Удаление постоянного зуба сложное","1 зуб",272]
[3,306,"Удаление постоянного зуба с вмешательством на альвеал. отростке","1 зуб",543]
[3,307,"Удаление постоянного зуба с компактостеотомией","1 зуб",272]
[3,308,"Вскрытие абсцесса","1 посещение",181]
[3,309,"Перевязка","1 посещение",136]
[3,310,"Перевязка гнойной раны с дренированием","1 посещение",181]
[3,311,"Операция иссечения капюшона","1 посещение",136]
[3,312,"Операция пластики уздечки","1 посещение",362]
[3,313,"Операция цистотомии","1 посещение",453]
[3,314,"Операция цистэктомии","1 посещение",543]
[3,315,"Операция компактостеотомии в области 2 зубов","1 посещение",181]
[3,316,"Операция цистотомии с резекцией верхушки корня","1 посещение",724]
[3,317,"Операция с резекцией верхушки корня","1 посещение",543]
[3,318,"Операция удаления сверхкомплектного зуба","1 зуб",543]
[3,319,"Операция удаления нескольких сверхкомплектных зубов в одной зоне","1 посещение",724]
[3,320,"Операция удаления новообразования мягких тканей","1 посещение",453]
[3,321,"Лечение ребенка с заболеванием слюнных желез первичное  обследование","1 посещение",543]
[3,322,"Лечение ребенка с заболеванием слюнных желез последующее обследование","1 посещение",272]
[3,323,"Исследование и лечение ребенка с травмами челюстно-лицевой области","1 посещение",181]
[3,324,"Первичная хирургическая обработка раны","1 посещение",362]
[3,325,"Лечение травматол. повреждения зубов и альвеол. отростка","1 посещение",453]
[3,326,"Операция удаления доброкачественного новообразования альвеоляр. отростка","1 посещение",543]
[4,401,"Составление плана профилактики для 1 ребенка с регистрацией его в карте","1 посещение",91]
[4,402,"Обучение, консультация матери","1 посещение",181]
[4,403,"Миотерапия","1 посещение",272]
[4,404,"Проведение профессиональной гигиены всех зубов","1 посещение",543]
[4,405,"Местное применение ременирализующих препаратов","1 зуб",91]
[4,406,"Покрытие фторлаком зубов","1 посещение",362]
[4,407,"Сеанс аппликации фтор - цементом в одном зубе","1 зуб",91]
[4,408,"Сошлифовывание бугров временных зубов","1 зуб",91]
[4,409,"Сепарация временных зубов","1 зуб",91]
[4,410,"Гигиенический контроль и обучение гигиене полости рта","1 посещение",181]
[4,411,"Закрытие фиссур герметиком в одном зубе","1 зуб",181]
[]
["Стоматологические услуги, оказываемые населению в возрасте старше 18 лет"]
["В","04.065.002","Профилактический прием (осмотр, консультация) врача-стоматолога-терапевта","1 посещение",91]
[1,102,"Оказание помощи при острой зубной боли","1 посещение",91]
[1,103,"Инъекция /исключая при удалении зуба/","1 шт",91]
[1,104,"Анестезия","1 шт",91]
[1,105,"Анестезия аппликационная","1 шт",45]
[1,106,"Избирательное пришлифовывание 4-х зубов",null,181]
["На приеме больных терапевтического профиля"]
[2,201,"Осмотр полости рта первичного больного, сбор анамнеза заболевания, оформление документов первичного больного","1 посещение",91]
[2,202,"Оформление документации при повторном посещении/только для заболевания слизистой оболочки полости рта, для сложных заболеваний: флегмоны, абсцессы, переломы/","1 посещение",45]
[2,203,"Наложение постоянной пломбы при поверхностном и среднем кариесе за каждую пломбу","1 зуб",181]
[2,204,"Наложение постоянной пломбы при глубоком кариесе за каждую пломбу","1 зуб",272]
[2,211,"Лечение пульпита односеансным методом однокорневого зуба","1 зуб",724]
[2,212,"Лечение пульпита односеансным методом двухкорневого зуба","1 зуб",905]
[2,213,"Лечение пульпита односеансным методом трехкорневого зуба","1 зуб",1086]
[2,221,"Окончательное лечение пульпита однокорневого зуба в 2 и более посещения","1 зуб",543]
[2,222,"Окончательное лечение пульпита двухкорневого зуба в 2 и более посещения","1 зуб",724]
[2,223,"Окончательное лечение пульпита трехкорневого зуба в 2 и более посещения","1 зуб",905]
[2,224,"Наложение мышьяковистой пасты в 1 зуб","1 зуб",91]
[2,225,"Лечение пульпита ампутационным методом","1 зуб",543]
[2,231,"Лечение периодонтита в 1 посещение однокорневого зуба","1 зуб",634]
[2,232,"Лечение периодонтита в 1 посещение двухкорневого зуба","1 зуб",815]
[2,233,"Лечение периодонтита в 1 посещение трехкорневого зуба","1 зуб",996]
[2,241,"Окончательное лечение периодонтита однокорневого зуба в 2 и более посещений","1 зуб",453]
[2,242,"Окончательное лечение периодонтита двухкорневого зуба в 2 и более посещений","1 зуб",634]
[2,243,"Окончательное лечение периодонтита трехкорневого зуба","1 зуб",815]
[2,244,"Раскрытие зуба, удаление распада из корневых каналов","1 зуб",91]
["Распломбирование корневых каналов"]
[2,251,"Однокорневой зуб, канал пломбирован пастой на окисьцинковой основе","1 зуб",362]
[2,252,"Однокорневой зуб, канал пломбирован пастой полимеризующейся /резорц. форм./","1 зуб",905]
[2,253,"Однокорневой зуб, канал пломбирован фосфат -цементом","1 зуб",1086]
[2,254,"Двухкорневой зуб, каналы пломбированы пастой на окисьцинковой основе","1 зуб",543]
[2,255,"Двухкорневой зуб, каналы пломбированы пастой полимеризующейся /резорц. форм./","1 зуб",1177]
[2,256,"Двухкорневой зуб, каналы пломбированы фосфат -цементом","1 зуб",1358]
[2,257,"Трехкорневой зуб, каналы пломбированы пастой на окисьцинковой основе","1 зуб",634]
[2,258,"Трехкорневой зуб, каналы пломбированы пастой полимеризующейся /резорц. форм./","1 зуб",1448]
[2,259,"Трехкорневой зуб, каналы пломбированы фосфат -цементом","1 зуб",1629]
[2,260,"Извлечение инородного тела из канала фронтального зуба","1 зуб",724]
[2,261,"Извлечение инородного тела из каналов многокорневого зуба","1 зуб",1448]
[2,271,"Восстановление разрушенной коронки с помощью проволочного каркаса фиксируемого в парапульпарных каналов однокорневого зуба","1 зуб",905]
[2,272,"Восстановление разрушенной коронки с помощью проволочного каркаса фиксируемого в парапульпарных каналов многокорневого зуба","1 зуб",1086]
[2,280,"Снятие пломбы","1 зуб",181]
[2,290,"Терапевтическое лечение травмы однокорневого зуба/скол части коронки зуба с сохранившейся пульпой/","1 зуб",905]
[2,291,"Терапевтическое лечение травмы однокорневого зуба/перелом корня зуба с сохранившейся коронкой, репозиция отломков штифтом/","1 зуб",1086]
[2,292,"Терапевтическое лечение травмы однокорневого зуба/перелом корня зуба с частично сколотой коронкой/","1 зуб",1177]
[3,300,"Устранение дефекта пломбы","1 зуб",181]
[3,301,"Снятие зубных отложений в области нижних фронтальных зубов в 1 посещение","1 посещение",181]
[4,401,"Оформление документации первичного больного с заболеванием пародонта и слизистой полости рта, сбор анамнеза","1 посещение",181]
[4,402,"Осмотр полости рта, оформление документации больного с заболеванием пародонта, обратившегося в отчетном году для повторного лечения","1 посещение",91]
[4,403,"Определение гигиенических индексов","1 посещение",272]
[4,404,"Вакуум-терапия","1 посещение",91]
[4,410,"Удаление зубного камня ручным способом с 1/4 челюсти","1 посещение",181]
[4,411,"Удаление зубного камня ультразвуком с 1/4 челюсти","1 посещение",136]
[4,412,"Удаление зубного камня с 1/4 челюсти ручным способом и ультразвуком","1 посещение",317]
[4,420,"Медикаментозная обработка патологических десневых карманов /орошение, аппликация, инстилляция, повязки и др./","1 посещение",181]
[4,421,"Кюретаж пародонтальных карманов в области 1 зуба","1 зуб",91]
[4,422,"Временное шинирование 6/8 зубов пластмассой, лигатурой","1 посещение",272]
[4,423,"Вскрытие пародонтального абсцесса","1 посещение",91]
[4,424,"Гингивопластика в области 6-ти зубов","1 посещение",815]
[4,425,"Ампутация корня","1 зуб",362]
[4,426,"Удаление пародонтальной кисты в области 1-2 зубов","1 посещение",453]
[4,427,"Удаление пародонтальной кисты 3-4 зубов","1 посещение",724]
[4,430,"Открытый кюретаж патологических десневых карманов в области 2-х зубов","1 посещение",272]
[4,432,"Местная флюоризация (покрытие фторлаком всех зубов)","1 посещение",91]
[4,441,"Осмотр полости рта, сбор анамнеза, оформление документации первичного больного на хирургическом приеме","1 посещение",181]
[4,442,"Оформление документации хирургического больного на повторном приеме","1 посещение",45]
[4,443,"Лечение заболеваний слюнных желез","1 посещение",181]
[4,444,"Временное шинирование при вывихе зуба","1 зуб",181]
[4,445,"Лечение больного с переломом /смена тяги, лигатур, коррекция шин/","1 посещение",181]
[4,446,"Лечение остеомиелита (операция сквестрэктомии)","1 посещение",272]
[4,447,"Оказание помощи при неотложных состояниях (обморок, коллапс, шок)","1 посещение",272]
[4,448,"Лечение одонтогенного гайморита","1 посещение",181]
[4,451,"Удаление зуба простое/корень, пародонтит,3,4 степень/","1 зуб",136]
[4,452,"Удаление зуба сложное/с применением метода выдалбливания/","1 зуб",272]
[4,453,"Удаление зуба с отслаиванием слизисто-надкостного лоскута, выпиливание фрагмента кортикальной пластинки альвеолярного отростка","1 зуб",543]
[4,454,"Перевязка после сложного хирургического вмешательства","1 посещение",136]
[4,455,"Повязка после удаления зуба/медикаментозная обработка лунки/","1 посещение",91]
[4,456,"Вскрытие абсцесса, дренирование","1 посещение",181]
[4,457,"Лечение периостита/промывание раны, дренирование и др./","1 посещение",181]
[4,458,"Лечение альвеолита с кюрретажем лунки","1 посещение",226]
[4,459,"Операция-резекция верхушки корня, цистэктомия","1 посещение",543]
[4,460,"Операция-резекция верхушки, цистэктомия с ретроградным пломбированием корня зуба","1 посещение",815]
[4,461,"Операция - цистэктомия с резекцией корня","1 посещение",362]
[4,464,"Операция - удаление апулиса с ростковой зоной","1 посещение",453]
[4,465,"Операция – иссечение доброкачественного образования мягкий тканей полости рта /папиллома, фиброма/","1 посещение",362]
[4,466,"Операция-вылущивание ретенционной кисты","1 посещение",453]
[4,467,"Операция-остеотомия альвеолотомия","1 посещение",181]
[4,468,"Операция - периостомия","1 посещение",91]
[4,469,"Операция - гемисекция","1 посещение",362]
[4,470,"Операция-иссечение капюшона слизистой оболочки при затрудненном прорезывании зуба мудрости","1 посещение",136]
[4,471,"Лечение заболеваний височно-нижнечелюстного сустава 1 пос.","1 посещение",226]
[4,472,"Первичная хирургическая обработка раны с наложением косметического шва на рану","1 посещение",362]
[4,473,"Репозиция и иммобилизация отломков нижней челюсти проволочными шинами с межчелюстной резиновой  фиксацией","1 посещение",905]
[4,475,"Снятие швов","1 посещение",91]
[4,476,"Снятие шин","1 посещение",362]
[4,477,"Лечение невралгий методом блокад","1 посещение",317]
[4,478,"Временная иммобилизации нижней челюсти лигатурной повязкой","1 посещение",453]
[4,479,"Постинъекционный тризм","1 посещение",91]
[4,480,"Отсроченный кюретаж","1 посещение",91]
[4,481,"Пластика свища при перфорации","1 посещение",543]
[4,482,"Оказание помощи при кровотечении","1 посещение",91]
[4,483,"Оказание помощи при гематоме","1 посещение",91]
[4,484,"Оказание помощи при перфорации","1 посещение",91]
[4,485,"Пластика уздечки","1 посещение",362]
[4,486,"Удаление камня из протока слюнной железы","1 посещение",362]
[4,487,"Введение рентгено-контрастного вещества в слюнную железу","1 посещение",181]
[]
["Примечание: В ценах на стоматологические услуги, оказываемые населению в возрасте до 18 лет и старше 18 лет не учтена стоимость импортных материалов и препаратов."]
[]
["Услуги рентгеновского кабинета стоматологической  поликлиники"]
[5,500,"Рентгеновский снимок внутриротовой не более 2-х зубов","1 снимок",44]
[5,501,"Рентгеновский снимок внеротовой","1 снимок",127]
[5,502,"Лазерная терапия 1 сеанс","1 сеанс",36]
["Радиовизиографическое исследование зубов:"]
[5,"505","Радиовизиографическое исследование зубов","1 исследование",126]
["Услуги, оказываемые отделением зубопротезирования"]
[null,null,"Съемные пластинчатые протезы из пластмассы. Изготовление съемного протеза с зубами:"]
[null,"100","- с одним зубом","1 шт",1141]
[null,"101","- с двумя зубами","1 шт",1248]
[null,"102","- с тремя зубами","1 шт",1355]
[null,"103","- с четырьмя зубами","1 шт",1462]
[null,"104","- с пятью зубами","1 шт",1569]
[null,"105","- с шестью зубами","1 шт",1675]
[null,"106","- с семью зубами","1 шт",1782]
[null,"107","- с восьмью зубами","1 шт",1817]
[null,"108","- с девятью зубами","1 шт",1852]
[null,"109","- с десятью зубами","1 шт",1887]
[null,"110","- с одиннадцатью зубами","1 шт",1922]
[null,"111","- с двенадцатью зубами","1 шт",2010]
[null,"112","- с тринадцатью зубами","1 шт",2045]
[null,"113","- с четырнадцатью зубами","1 шт",2080]
[null,"119","- с комплектом импортных зубов Ямахачи\"","1 шт",2150]
[null,"120","- с комплектом исскуственных зубов Сывлах\"","1 шт",2011]
[null,null,"Замена или установка в протезе дополнительного зуба:"]
[null,"115","- одного зуба","1 шт",838]
[null,"116","- двух зубов","1 шт",928]
[null,"117","- трех зубов","1 шт",935]
[null,"118","- четырех зубов","1 шт",943]
[null,null,"Изготовление:"]
[null,"138","- цельнолитого зуба","1 шт",1637]
[null,"142","- индивидуальной ложки","1 шт",583]
[null,"143","- кламмера гнутого из стали","1 шт",70]
[null,"146","- цельнолитой коронки","1 шт",1873]
[null,"168","- штифтово-культевой вкладки","1 шт",1505]
[null,null,"Изготовление коронки"]
[null,201,"- штампованной стальной","1 шт",569]
[null,203,"- штампованной стальной с облицовкой по Белкину","1 шт",930]
[null,205,"- пластмассовой","1 шт",668]
[null,206,"- двуцветной пластмассовой","1 шт",892]
[null,null,"Изготовление зуба"]
[null,216,"- литого из стали","1 шт",499]
[null,217,"- литого из стали с пластмассовой фасеткой","1 шт",1091]
[null,null,"Изготовление:"]
[null,222,"- комплекта импортных зубов (28 зубов)","1 комплект",343]
[null,226,"- лапки в мостовидном протезе","1 шт",125]
[null,229,"Спайка деталей","одна",144]
[null,"230","Обработка спаек деталей","одна",63]
[null,231,"Изготовление коронки металлокерамической ","1 шт",3225]
[null,null,"Изготовление литой базисной пластины из кобальтохромового сплава:"]
[null,301,"- без напыления","1 шт",2068]
[null,null,"Изготовление:"]
[null,430,"Коронка стальная с напылением (титановым, циркониевым)","1 шт",622]
[null,435,"Литок стальной с напылением (титановым, циркониевым)","1 шт",570]
[null,436,"Стальная фасетка с напылением (титановым, циркониевым)","1 шт",1375]
[null,"443","Коронка стальная  с пластмассовой облицовкой по Белкину с напылением (титановым, циркониевым)","1 шт",1162]
[null,447,"Изготовление кламмера гнутого из стали с напылением (титановым, циркониевым)","1 шт",105]
[null,null,"Доплата за напыление (титановое, циркониевое):"]
[null,472,"- кламмера ","1 шт",60]
[null,473,"- коронки, фасетки, литка, оклюзионной накладки","1 шт",150]
[null,501,"Устранение 1 перелома базиса в протезе","1 шт",513]
[null,502,"Устранение 2 перелома базиса в протезе","1 шт",713]
[null,503,"Снятие искусственной коронки","1 шт",84]
[null,505,"Изготовление контрольной модели","1 шт",212]
[null,null,"Замена, перенос:"]
[null,506,"- одного кламмера","1 шт",452]
[null,507,"- двух кламмеров","1 шт",590]
[null,509,"Избирательное пришлифовывание зубов (протез с пластмассовыми зубами)","1 шт",278]
[null,511,"Перебазировка полного съемного протеза","1 шт",640]
[null,517,"Коррекция протеза","1 шт",160]
[null,518,"Оклюзионная накладка на коронку из стали","1 шт",145]
[null,522,"Снятие или распил цельнолитой коронки","1 шт",167]
[null,534,"Консультация врача","1 консультация",250]
[null,null,"Снятие слепков из материала:"]
[null,605,"- спидекс (база + крем)","1 шт",583]
[null,609,"- кромопан","1 шт",233]
[null,613,"Снятие двойного слепка из материала «Зетаплюс»","1 шт",583]
[null,null,"Фиксация коронки материалом:"," "]
[null,610,"- кетак-цем","1 шт",226]
[null,"611","-цемион-Ф","1 шт",228]
[null,612,"- фуджи 1","1 шт",286]
[null,614,"- ортофикс-аква","1 шт",161]
[null,677,"Изготовление эластичной прокладки к базису протеза","1 шт",1118]
[null,null,"Нанесение золотого покрытия (985 проба) раствором КЭМАДЕНТ :"]
[null,"694","- бисико С 4","1 шт",1457]
[null,"695","Изготовление цельнолитой фасетки","1 шт",1738]
["B","03.069.001","Дезинфекция слепков (не более 4-х слепков)","1 услуга",136]
[null,"Стоматологические услуги, оказываемые населению с применением    импортных материалов и препаратов"]
[null,"№ п/п","                                   Наименование услуг","единица измерения"," Тариф, в руб."]
[null,1,2,3,4]
[null,"1.","Лечение заболеваний и травм зубочелюстной системы с применением местных анестетиков:"]
[null,null,"Артикаин","1 шт",136]
[null,null,"Одноразовый комплект артикаина","1 шт",161]
[null,null,"Скандонест","1 шт",149]
[null,null,"Ультракаин","1 шт",165]
[null,null,"Одноразовый комплект для анестезии","1 услуга",185]
[null,"2.","Лечение заболеваний и травм зубочелюстной системы с применением остеотропных материалов:"]
[null,null,"Неоконус","1 посещение",101]
[null,null,"Колапол","1 посещение",227]
[null,"3.","Лечение заболеваний и травм зубочелюстной системы с применением антимикробных, противовоспалительных, антисептических материалов:"]
[null,null,"Вискостат","1услуга",88]
[null,null,"Антисептическая и обезбаливающая повязка \"Surgical Dnessing\"","1 повязка",105]
[null,null,"Альвеожил","1 посещение",61]
[null,null,"Крезофен","1 зуб",64]
[null,null,"Паста септопак","1 посещение",54]
[null,null,"Пленка Диплен-Дента","1 посещение",84]
[null,null,"Солкосерил","1 посещение",78]
[null,null,"Мазь \"Траумель\"","1 посещение",93]
[null,null,"Холисал","1 посещение",60]
[null,null,"Прорут","1 посещение",82]
[null,"4.","Лечение заболеваний и травм зубочелюстной системы с применением композитов, светового отверждения:"]
[null,null,"Прайм-бонд","1 услуга",9]
[null,null,"Дайрект АР","1 зуб",744]
[null,null,"Филтек (зет 250)","1 зуб",699]
[null,null,"Филтек (ультимейт)","1 зуб",668]
[null,null,"Спектрум","1 зуб",578]
[null,null,"Эстет-икс ","1 зуб",825]
[null,null,"Церам икс ","1 зуб",658]
[null,null,"Градия директ ","1 зуб",668]
[null,null,"Икс флоу ","1 зуб",605]
[null,null,"Твинки Стар","1 зуб",373]
[null,null,"\"Прайм-Дент\" световой","1 зуб",469]
[null,null,"Эстилайт сигма","1 зуб",644]
[null,null,"Сингл бонд (адгезив)","1 услуга",6]
[null,"5.","Лечение заболеваний и травм зубочелюстной системы с применением композитов химического  отверждения:"]
[null,null,"Композит","1 зуб",280]
[null,null,"Харизма","1 зуб",281]
[null,"6. ","Лечение заболеваний и травм зубочелюстной системы с применением стеклоиномерных цементов:"]
[null,null,"СДР","1 услуга",238]
[null,null,"Фуджи","1 зуб",259]
[null,null,"Кетак-моляр","1 зуб",199]
[null,null,"Кемфил ","1 зуб",98]
[null,null,"Аргион","1 услуга",308]
[null,"7. ","Лечение заболеваний и травм зубочелюстной системы с применением кальций содержащих  лечебных материалов:"]
[null,null,"Кальцимол ЛС","1 зуб",166]
[null,null,"Дайкал","1 зуб",167]
[null,"8.","Лечение заболеваний и травм зубочелюстной системы с применением реминерализующего средства:"]
[null,null,"Сафорайд","1 зуб",104]
[null,null,"Флюокаль-гель","1 посещение",194]
[null,null,"Эмаль-герметизирующий","1 зуб",63]
[null,null,"Дентин -герметизирующий","1 зуб",60]
[null,null,"Сноу-флолли","1 зуб",214]
[null,null,"Глубокое фторирование твердых тканей зубов","1 услуга",210]
[null,null,"Глуфторед","1 услуга",49]
[null,"9.","Лечение заболеваний и травм зубочелюстной системы с применением материалов, для обтурации корневых каналов:"]
[null,null,"Эндометазон","1 зуб",136]
[null,null,"Гранулотек","1 услуга",86]
[null,null,"Эйч плюс","1 зуб",119]
[null,null,"Штифт гуттаперчивый","1 шт",46]
[null,null,"Метапекс","1 услуга",299]
[null,10,"Лечение заболеваний и травм зубочелюстной системы с применением компомерных светоотверждаемых подкладочных материалов:"]
[null,null,"Ионосит","1 зуб",122]
[null,"11.","Лечение заболеваний и травм зубочелюстной системы с применением герметиков фиссурных светоотверждаемых:"]
[null,null,"Ультрасил ХТ плюс","1 услуга",113]
[null,null,"Фиссурит","1 зуб",127]
[null,"12.","Лечение заболеваний и травм зубочелюстной системы с применением девитализирующих материалов:"]
[null,null,"Пульпотек","1 зуб",105]
[null,"13.","Лечение заболеваний и травм зубочелюстной системы с применением паст полировочных:"]
[null,null,"Детатрин зет","1 зуб",93]
[null,null,"Полировочный набор","1 зуб",93]
[null,"14.","Лечение заболеваний и травм зубочелюстной системы с применением внутриканальных штифтов:"]
[null,null,"Униметрик","1 шт",210]
[null,null,"Анкерный штифт","1 шт",191]
[null,null,"Стекловолоконный штифт","1 шт",222]
[null,null,"Эндосистема \"икадент\" ","1 шт",255]
[null,"15.","Лечение заболеваний и травм зубочелюстной системы с применением самоадгезивного композита цемента двойного отверждения Реликс ТМ В 100","1 зуб",242]
[null,"16.","Распломбировка одного корневого канала, пломбированного резорцинформалиновой пастой","1 зуб",500]
[null,"17.","Распломбировка одного корневого канала, пломбированногофосфат-цементом","1 зуб",600]
[null,"18.","Извлечение фиксированного инородного тела из одного корневого канала","1 зуб",400]
[null,"19.","Удаление зубных отложений с помощью ультразвуковой аппаратуры полностью (не менее 5 зубов)","1 посещение",100]
[null,"20.","Шинирование зубов с применением композита (в области одного зуба)","1 зуб",100]
[null,"21.","Вестибулопластика в области шести зубов","1 посещение",400]
[null,"      22 .Ортодонтический прием"]
[null,"22.1","Смена чейна","1 шт",165]
[null,"22.2","Постановка раскрывающей пружины","1 шт",141]
[null,"22.3","Постановка пружины стягивающей","1 шт",489]
[null,"22.4","Изготовление ретенционного аппарата","1 шт",672]
[null,"22.5","Изготовление отродонтического аппарата с вестибулярной дугой ","1 шт",672]
[null,"22.6","Изготовление ортодонтического аппарата с винтом","1 шт",853]
[null,"22.7","Изготовление ортодонтического аппарата двучелюстного","1 шт",1034]
[null,"22.8","Изготовление частичного съемного протеза на одну челюсть ","1 шт",581]
[null,"22.9","Изготовление ортодонтической коронки","1 шт",365]
[null,"22.10","Снятие слепка ","1 шт",231]
[null,"22.11","Лечение зубо-челюстных аномалий с применением:"]
[null,null,"Винтов ортодонтических","1 шт",433]
[null,null,"Металлических брекетов","1 посещение",18293]
[null,null,"Трейнер","1 шт",7210]
[null,null,"Вестибулярная пластина","1 шт",4210]
[null,null,"Керамических брекетов","1 посещение",42421]
[null,"22.12","Фиксация 1 брекета:"]
[null,null,"Фиксация  брекета с 6 зуба","1шт",1776]
[null,null,"замок для 6 зуба","1шт",1776]
[null,null,"щечная трубка","1шт",1776]
[null,null,"маляр  с 6 зуба","1шт",1776]
[null,null,"Подклеивание","1 зуб",162]
[null,null,"смена дуги","1шт",1009]
[null,null,"При потере ","1 зуб",1461]
[null,null,"При потере брекета с 6-го зуба","1 зуб",1776]
[null,null,"Снятие брекетов (12 зубов)","1 услуга",1086]
[null,"22.13","Постановка резиновой тяги","1 шт",199]
[null,"22.14","Постановка лигатуры металлической короткой","50шт",193]
[null,"22.15","Починка аппарата","1шт",362]
[null,"22.16","Постановка лигатуры металлической длинной","1 шт",193]
[null,"22.17","Изготовление верхнечелюстного аппарата","1 услуга",577]
[null,"22.18","Изготовление нижнечелюстного аппарата","1 услуга",535]
[null,"22.19","Изготовление контрольной модели","1 услуга",245]
[null,"22.20","Снятие оттиска","1 услуга",213]
[null,"23","Инфильтрация кариеса вестибулярных поверхностей","1 услуга",1136]
[null,"B01.063.001","Прием (осмотр, консультация) врача-ортодонта первичный","1 посещение",181]
[null,"B01.063.002","Прием (осмотр, консультация) врача-ортодонта повторный","1 посещение",181]
[null,"24","Лечение заболеваний и травм зубочелюстной системы с применением материала для химико-механической обработки кариозных полостей:"]
[null,null,"КАРИКЛИНЗ","1 услуга",102]

{"sheet":"на 31,12,18","index":1,"n_rows":1289,"n_cols":5,"rows_kept":1289,"cut":false,"hidden":false,"merged":[[0,3,0,4],[1,2,1,4],[2,2,2,4],[4,3,4,4],[5,0,5,4],[7,0,7,4],[8,0,8,4],[13,0,13,3],[19,0,19,3],[24,0,24,3],[29,0,29,3],[35,0,35,3],[41,0,41,3],[45,0,45,3],[51,0,51,3],[61,0,61,3],[77,0,77,3],[100,0,100,3],[116,0,116,3],[128,0,128,3],[145,0,145,3],[161,0,161,3],[167,0,167,3],[182,0,182,3],[187,0,187,3],[189,0,189,3],[194,0,194,3],[219,0,219,3],[228,0,228,3],[241,0,241,3],[242,0,242,3],[245,0,245,3],[248,0,248,3],[252,0,252,3],[257,0,257,3],[264,0,264,3],[268,0,268,3],[285,0,285,3],[305,0,305,3],[325,0,325,3],[345,0,345,3],[352,0,352,3],[353,0,353,3],[355,3,355,4],[356,3,356,4],[357,3,357,4],[358,3,358,4],[359,3,359,4],[360,3,360,4],[361,3,361,4],[362,3,362,4],[363,3,363,4],[364,3,364,4],[365,3,365,4],[366,3,366,4],[367,3,367,4],[368,0,368,3],[370,3,370,4],[371,3,371,4],[372,3,372,4],[373,3,373,4],[374,3,374,4],[375,3,375,4],[376,3,376,4],[377,3,377,4],[378,3,378,4],[379,3,379,4],[380,3,380,4],[381,3,381,4],[382,3,382,4],[383,3,383,4],[384,3,384,4],[385,3,385,4],[386,3,386,4],[387,0,387,3],[393,0,393,3],[401,0,401,3],[417,0,417,3],[418,3,418,4],[419,3,419,4],[420,3,420,4],[421,3,421,4],[422,3,422,4],[423,3,423,4],[424,3,424,4],[425,3,425,4],[426,3,426,4],[427,0,427,3],[435,0,435,3],[436,0,436,3],[444,0,444,3],[485,0,485,3],[506,0,506,3],[509,0,509,3],[576,0,576,3],[649,0,649,3],[738,0,738,3],[748,0,748,3],[760,0,760,3],[779,0,779,3],[781,0,781,3],[782,0,782,3],[786,0,786,3],[789,0,789,3],[793,0,793,3],[805,0,805,3],[810,0,810,3],[834,0,834,3],[855,0,855,3],[860,0,860,3],[866,0,866,3],[872,0,872,3],[876,0,876,3],[878,0,878,3],[880,0,880,3],[882,0,882,3],[884,0,884,3],[965,0,965,3],[972,0,972,3],[992,0,992,3],[1072,0,1072,3],[1074,0,1074,3],[1078,0,1078,3],[1080,0,1080,3],[1081,2,1081,3],[1098,2,1098,3],[1161,1,1161,4],[1164,2,1164,3],[1170,2,1170,3],[1173,2,1173,3],[1186,2,1186,3],[1200,2,1200,3],[1204,2,1204,3],[1210,2,1210,3],[1213,2,1213,3],[1221,2,1221,3],[1227,2,1227,3],[1229,2,1229,3],[1232,2,1232,3],[1234,2,1234,3],[1237,2,1237,3],[1249,1,1249,2],[9,2,11,2],[9,3,11,3],[9,4,11,4],[9,0,11,1]]}
[null,null,null,"УТВЕРЖДАЮ"]
[null,null,"Главный врач ГБУЗ АО \"Ахтубинская РБ\""]
[null,null,"________________________МА Таласбаев"]
[null,null,null,"на 31.12.2018"]
[]
["ПРЕЙСКУРАНТ ТАРИФОВ НА ПЛАТНЫЕ МЕДИЦИНСКИЕ И СЕРВИСНЫЕ УСЛУГИ, ОКАЗЫВАЕМЫЕ НАСЕЛЕНИЮ ГБУЗ АО \"АХТУБИНСКАЯ РБ\""]
[]
["АМБУЛАТОРНО-ПОЛИКЛИНИЧЕСКАЯ ПОМОЩЬ"]
[]
["код услуги",null,"           Наименование услуги","единица измерения","Тарифы, руб."]
[]
[]
[]
["Кабинет врача-терапевта"]
["В","01.047.001.001","Прием (осмотр, консультация) врача - терапевта первичный (в поликлинике)","1 консультация",249]
["В","01.047.002.001","Прием (осмотр, консультация) врача - терапевта повторный (в поликлинике)","1 консультация",166]
["В","01.047.001.002","Прием (осмотр, консультация) врача - терапевта первичный (на дому)","1 консультация",415]
["В","04.047.002","Профилактический прием (осмотр, консультация) врача - терапевта ","1 консультация",208]
["В","01.047.001.003","Прием (осмотр, консультация) врача - терапевта первичный (консультация районного специалиста)","1 консультация",415]
["Кабинет врача-кардиолога"]
["B","01.015.001.001","Прием (осмотр, консультация) врача - кардиолога первичный (в поликлинике)","1 консультация",327]
["B","01.015.002.001","Прием (осмотр, консультация) врача - кардиолога повторный (в поликлинике)","1 консультация",229]
["В","01.015.001.002","Прием (осмотр, консультация) врача - кардиолога первичный (на дому)","1 консультация",982]
["В","04.015.002","Профилактический прием (осмотр, консультация) врача - кардиолога","1 консультация",245]
["Кабинет врача-ревматолога"]
["B","01.040.001.001","Прием (осмотр, консультация) врача - ревматолога первичный (в поликлинике)","1 консультация",491]
["B","01.040.002.001","Прием (осмотр, консультация) врача - ревматолога повторный (в поликлинике)","1 консультация",344]
["B","01.040.001.002","Прием (осмотр, консультация) врача - ревматолога первичный (на дому)","1 консультация",736]
["B","04.040.002","Профилактический прием (осмотр, консультация) врача - ревматолога","1 консультация",327]
["Кабинет врача-эндокринолога"]
["B","01.058.001.001","Прием (осмотр, консультация) врача - эндокринолога первичный (в поликлинике)","1 консультация",278]
["B","01.058.002.001","Прием (осмотр, консультация) врача - эндокринолога повторный (в поликлинике)","1 консультация",196]
["B","01.058.001.002","Прием (осмотр, консультация) врача - эндокринолога первичный (на дому)","1 консультация",736]
["B","04.058.002","Профилактический прием (осмотр, консультация) врача - эндокринолога","1 консультация",245]
["В","01.058.001.003","Прием (осмотр, консультация) врача - эндокринолога первичный (консультация районного специалиста)","1 консультация",491]
["Кабинет врача-инфекциониста"]
["B","01.014.001.001","Прием (осмотр, консультация) врача - инфекциониста первичный (в поликлинике)","1 консультация",238]
["B","01.014.002.001","Прием (осмотр, консультация) врача - инфекциониста повторный (в поликлинике)","1 консультация",159]
["B","01.014.001.002","Прием (осмотр, консультация) врача - инфекциониста первичный (на дому)","1 консультация",714]
["B","04.014.002","Профилактический прием (осмотр, консультация) врача - инфекциониста","1 консультация",206]
["В","01.014.001.003","Прием (осмотр, консультация) врача - инфекциониста первичный (консультация районного специалиста)","1 консультация",476]
["Кабинет врача-профпатолога"]
["B","01.033.001","Прием (осмотр, консультация) врача - профпатолога первичный ","1 консультация",484]
["B","01.033.002","Прием (осмотр, консультация) врача - профпатолога повторный ","1 консультация",332]
["D","22.02.02","Подготовка и написание заключения (врачом профпатологом)","1 консультация",131]
["Кабинет врача-онколога"]
["B","01.027.001.001","Прием (осмотр, консультация) врача - онколога первичный (в поликлинике)","1 консультация",309]
["B","01.027.002.001","Прием (осмотр, консультация) врача - онколога повторный (в поликлинике)","1 консультация",216]
["В","01.027.001.002","Прием (осмотр, консультация) врача - онколога первичный (на дому)","1 консультация",926]
["В","04.027.002","Профилактический прием (осмотр, консультация) врача - онколога","1 консультация",232]
["В","01.027.001.003","Прием (осмотр, консультация) врача - онколога первичный (консультация районного специалиста)","1 консультация",309]
["Кабинет врача-хирурга"]
["B","01.057.001.001","Прием (осмотр, консультация) врача - хирурга первичный (в поликлинике)","1 консультация",232]
["B","01.057.002.001","Прием (осмотр, консультация) врача - хирурга повторный (в поликлинике)","1 консультация",154]
["B","01.057.001.002","Прием (осмотр, консультация) врача - хирурга первичный (на дому)","1 консультация",695]
["B","04.057.002","Профилактический прием (осмотр, консультация) врача - хирурга","1 консультация",154]
["А","02.02.001.001","Измерение силы мыщц спины (динамометрия)","1 услуга",41]
["А","01.19.004","Трансректальное пальцевое исследование","1 услуга",314]
["А","16.01.034.001","Операция в амбулаторных условиях (в кабинете врача-хирурга)","1 операция",601]
["А ","15.01.001.001","Наложение повязки при нарушении целостности кожных покровов (в поликлинике)","1 услуга",343]
["А ","15.01.001.002","Наложение повязки при нарушении целостности кожных покровов (на дому)","1 услуга",575]
["Кабинет врача-уролога"]
["B","01.053.001.001","Прием (осмотр, консультация) врача - уролога первичный (в поликлинике)","1 консультация",262]
["B","01.053.002.001","Прием (осмотр, консультация) врача - уролога повторный (в поликлинике)","1 консультация",185]
["B","01.053.001.002","Прием (осмотр, консультация) врача - уролога первичный (на дому)","1 консультация",695]
["B","04.053.002","Профилактический прием (осмотр, консультация) врача - уролога","1 консультация",232]
["A","21.21.001","Массаж простаты","1 услуга",266]
["А","11.21.004","Сбор секрета простаты","1 услуга",113]
["А","16.28.071","Прижигание полипов уретры","1 услуга",217]
["A","14.28.003","Уход за цистостомой и уростомой","1 услуга",113]
["А","16.28.072","Прижигание эрозий уретры","1 услуга",113]
["A","11.28.007.001","Катетеризация мочевого пузыря (у женщин)","1 услуга",154]
["A","11.28.007.002","Катетеризация мочевого пузыря (у мужчин)","1 услуга",200]
["A","03.28.001","Цистоскопия","1 услуга",622]
["A","11.28.009","Инсталляция уретры","1 услуга",343]
["A","11.28.008","Инсталляция мочевого пузыря","1 услуга",354]
["B","01.053.001.003","Прием (осмотр, консультация) врача - уролога первичный (андрологический профиль)","1 услуга",320]
["Кабинет врача - офтальмолога"]
["B","01.029.001.001","Прием (осмотр, консультация) врача - офтальмолога первичный (в поликлинике)","1 консультация",617]
["B","01.029.002.001","Прием (осмотр, консультация) врача - офтальмолога повторный (в поликлинике)","1 консультация",432]
["B","01.029.001.002","Прием (осмотр, консультация) врача - офтальмолога первичный (на дому)","1 консультация",695]
["B","04.029.002","Профилактический прием (осмотр, консультация) врача - офтальмолога","1 консультация",180]
["В","01.029.001.003","Прием (осмотр, консультация) врача - офтальмолога первичный (консультация районного специалиста)","1 консультация",463]
["A","02.26.013","Определение рефракции с помощью набора пробных линз","1 услуга",114]
["A","11.26.004","Зондирование слезных путей (и промывание)","1 услуга",378]
["A","11.26.011","Пара- и ретробульбарные инъекции","1 услуга",120]
["A","03.26.003","Осмотр периферии глазного дна трехзеркальной линзой Гольдмана","1 услуга",118]
["A","16.26.051","Удаление инородного тела роговицы","1 услуга",501]
["A","03.26.001","Биомикроскопия глаза","1 услуга",83]
["A","02.26.005","Периметрия","1 услуга",62]
["A","02.26.015","Тонометрия глаза","1 услуга",114]
["A","02.26.009","Исследование цветоощущения по полихроматическим таблицам","1 исследование",57]
["A","16.26.018","Эпиляция ресниц","1 услуга",325]
["A","16.26.057","Удаление инородного тела из переднего сигмента глаза","1 услуга",377]
["A","02.26.004","Визометрия","1 услуга",57]
["А","23.26.001.01","Подбор очковой коррекции (сложная)","1 услуга",402]
["A","23.26.001.02","Подбор очковой коррекции (простая)","1 услуга",284]
["A","21.26.001","Массаж век медицинский","1 услуга",288]
["А","19.26.001","Упражнения для восстановления и укрепления биокулярного зрения","1 сеанс",81]
["А","02.26.023","Исследование аккомодации","1 исследование",59]
["Кабинет врача - акушера - гинеколога"]
["B","01.001.001.001","Прием (осмотр, консультация) врача - акушера - гинеколога первичный (в поликлинике)","1 консультация",309]
["B","01.001.002.001","Прием (осмотр, консультация) врача - акушера - гинеколога повторный (в поликлинике)","1 консультация",216]
["B","01.001.001.002","Прием (осмотр, консультация) врача - акушера - гинеколога первичный (на дому)","1 консультация",695]
["B","04.001.002","Профилактический прием (осмотр, консультация) врача - акушера - гинеколога","1 консультация",232]
["A","11.20.005","Получение влагалищного мазка","1 услуга",85]
["А","16.20.037.002","Искусственное прерывание беременности (аборт) (аборт медикаментозный)","1 услуга",4197]
["A","16.20.036","Хирургическое лечение заболеваний шейки матки с использованием различных энергий","1 услуга",632]
["A","03.20.001","Кольпоскопия","1 услуга",437]
["A","11.20.013","Тампонирование лечебное влагалища","1 услуга",251]
["A","11.20.014.001","Введение внутриматочной спирали (без стоимости спирали)","1 услуга",418]
["A","11.20.015","Удаление внутриматочной спирали","1 услуга",381]
["A","16.20.059","Удаление инородных тел из влагалища","1 услуга",526]
["A","16.20.037.001","Искусственное прерывание беременности (аборт) (прерывание беременности ранних сроков методом вакум-аспираци)","1 услуга",497]
["А","01.20.003","Бимануальное влагалищное исследование","1 услуга",85]
["А","02.20.001.001","Осмотр шейки матки в зеркалах (Профилактический осмотр акушеркой)","1 осмотр",76]
["Кабинет врача - дерматовенеролога"]
["B","01.008.001.001","Прием (осмотр, консультация) врача - дерматовенеролога первичный (в поликлинике)","1 консультация",317]
["B","01.008.002.001","Прием (осмотр, консультация) врача - дерматовенеролога повторный (в поликлинике)","1 консультация",222]
["B","01.008.001.002","Прием (осмотр, консультация) врача - дерматовенеролога первичный (на дому)","1 консультация",714]
["B","04.008.002","Профилактический прием (осмотр, консультация) врача - дерматовенеролога","1 консультация",174]
["В","01.008.001.003","Прием (осмотр, консультация) врача - дерматовенеролога первичный (консультация районного специалиста)","1 консультация",476]
["B","01.008.001.004","Прием (осмотр, консультация) врача - дерматовенеролога первичный (при медицинском освидетельствовании иностранных граждан)","1 консультация",317]
["B","01.008.002.002","Прием (осмотр, консультация) врача - дерматовенеролога повторный (при медицинском освидетельствовании иностранных граждан)","1 консультация",222]
["А","16.01.017","Удаление доброкачественных новообразований кожи","1 процедура",226]
["A","24.01.004","Криодеструкция","1 процедура",102]
["A","24.01.005.001","Криомассаж кожи и ее образований (лица)","1 процедура",155]
["A","24.01.005.002","Криомассаж кожи и ее образований (шеи)","1 процедура",155]
["Кабинет врача - травматолога - ортопеда"]
["B","01.050.001.001","Прием (осмотр, консультация) врача - травматолога - ортопеда первичный (в поликлинике)","1 консультация",170]
["B","01.050.002.001","Прием (осмотр, консультация) врача - травматолога - ортопеда повторный (в поликлинике)","1 консультация",108]
["B","01.050.001.002","Прием (осмотр, консультация) врача - травматолога - ортопеда первичный (на дому)","1 консультация",695]
["B","04.050.002","Профилактический прием (осмотр, консультация) врача - травматолога - ортопеда","1 консультация",154]
["А","11.04.004","Внутрисуставное введение лекарственных препаратов","1 услуга",299]
["А ","15.02.002","Наложение иммобилизационной повязки при синдроме длительного сдавливания","1 услуга",353]
["А","15.02.001","Наложение повязки при заболеваниях мыщц","1 услуга",330]
["А","15.03.001","Наложение повязки при переломах костей","1 услуга",353]
["А","15.03.002.001","Наложение иммобилизационной повязки при переломах позвоночника","1 услуга",763]
["А","15.03.004","Наложение корсета при патологии шейного отдела позвоночника","1 услуга",355]
["А","15.03.005","Наложение корсета патологии грудного отдела позвоночника","1 услуга",701]
["А","15.03.006","Наложение корсета при патологии поясничного отдела позвоночника","1 услуга",701]
["А","15.03.007","Наложение шины при переломах костей","1 услуга",224]
["А","15.04.002","Наложение иммобилизационной повязки при вывихах (подвывихах) суставов","1 услуга",328]
["А ","15.04.001","Наложение повязки при вывихах (подвывихах) суставов","1 услуга",328]
["А","16.01.034.002","Операция в амбулаторных условиях (в кабинете врача-травматолога-ортопеда)","1 операция",601]
["Кабинет врача - оториноларинголога"]
["B","01.028.001.001","Прием (осмотр, консультация) врача - оториноларинголога первичный (в поликлинике)","1 консультация",309]
["B","01.028.001.002","Прием (осмотр, консультация) врача - оториноларинголога повторный (в поликлинике)","1 консультация",216]
["B","01.028.002.001","Прием (осмотр, консультация) врача - оториноларинголога первичный (на дому)","1 консультация",926]
["B","04.028.002","Профилактический прием (осмотр, консультация) врача - оториноларинголога","1 консультация",154]
["В","01.028.001.003","Прием (осмотр, консультация) врача - оториноларинголога первичный (консультация районного специалиста)","1 консультация",463]
["A","16.01.011","Вскрытие фурункула (карбункула)","1 услуга",436]
["A","16.08.011","Удаление инородного тела носа","1 услуга",359]
["A","16.08.016","Промывание лакун миндалин ","1 услуга",374]
["A","12.25.002","Речевая аудиометрия","1 услуга",232]
["A","11.08.004","Пункция околоносовых пазух","1 услуга",431]
["A","16.08.006.001","Механическая остановка кровотечения (передняя и задняя тампонада носа) (передняя)","1 услуга",385]
["A","16.08.006.002","Механическая остановка кровотечения(задняя тампонада носа) (задняя)","1 услуга",467]
["А","03.25.001","Вестибулометрия","1 исследование",345]
["А","16.25.008","Удаление инородного тела из слухового прохода","1 услуга",263]
["А","16.25.007","Удаление ушной серы","1 услуга",340]
["Кабинет врача - невролога"]
["B","01.023.001.001","Прием (осмотр, консультация) врача - невролога первичный (в поликлинике)","1 консультация",327]
["B","01.023.002.001","Прием (осмотр, консультация) врача - невролога повторный (в поликлинике)","1 консультация",229]
["B","01.023.001.002","Прием (осмотр, консультация) врача - невролога первичный (на дому)","1 консультация",736]
["B","04.023.002","Профилактический прием (осмотр, консультация) врача - невролога","1 консультация",180]
["А","22.30.006","Вибрационное воздействие","1 услуга",52]
["Кабинет медицинского психолога"]
["А","13.29.006","Психологическое консультирование ","1 консультация",430]
["В","02.069.001","Прием(тестирование, консультация) медицинского психолога первичный","1 консультация",430]
["В","02.069.001.001","Прием(тестирование, консультация) медицинского психолога первичный (на дому)","1 консультация",430]
["В","02.069.002","Прием(тестирование, консультация) медицинского психолога повторное","1 консультация",378]
["В","04.069.001","Школа психологической профилактики для пациентов и родственников","1 сеанс",430]
["В","04.069.002","Индивидуальное краткое профилактическое консультирование по коррекции факторов риска развития неинфекционных заболеваний","1 консультация",378]
[0,"04.069.003","Индивидуальное углубленное профилактическое консультирование по коррекции факторов риска развития неинфекционных заболеваний","1 консультация",638]
["В","04.069.004","Индивидуальное углубленное профилактическое консультирование по коррекции факторов риска развития неинфекционных заболеваний повторное","1 консультация",638]
["В","04.069.005","Групповое профилактическое консультарование по коррекции факторов риска развития неифекционных заболеваний","1 консультация",169]
["В","13.29.003.001","Тестологическое психодиагностическое обследование","1 сеанс",482]
["В","13.29.003.001.001","Тестологическое психодиагностическое обследование (на дому)","1 сеанс",482]
["А","13.29.006.003","Семейное психологическое консультирование","1 сеанс",638]
["А","13.29.005.001","Арттерапия","1 сеанс",169]
["А","13.29.007.001.001","Индивидуальная психологическая коррекция (для младших школьников и дошкольников)","1 сеанс",378]
["Кабинет врача - фтизиатра"]
["B","01.055.001.001","Прием (осмотр, консультация) врача - фтизиатра первичный (в поликлинике)","1 консультация",324]
["B","01.055.002.001","Прием (осмотр, консультация) врача - фтизиатра повторный (в поликлинике)","1 консультация",216]
["В","01.055.001.002","Прием (осмотр, консультация) врача - фтизиатра первичный (на дому)","1 консультация",810]
["В","04.055.002","Профилактический прием (осмотр, консультация) врача - фтизиатра","1 консультация",270]
["Кабинет врача - психиатра"]
["В","04.035.002","Профилактический прием (осмотр, консультация) врача-психиатра","1 консультация",208]
["Кабинет врача психиатра-нарколога"]
["В","04.036.002"," Профилактический прием (осмотр, консультация) врача психиатра-нарколога","1 консультация",200]
["В","01.036.001"," Прием (осмотр, консультация) врача-психиатра-нарколога первичный","1 консультация",308]
["А","09.28.055.001.001"," Определение наличия психоактивных веществ в моче с помощью тест-полоски (тест полоска \"ИммуноХром-6-Мульти-Экспресс\" на 6 видов наркотиков)","1 определение",753]
["А","09.28.055.001.002","Определение наличия психоактивных веществ в моче с помощью тест-полоски (тест полоска \"ИммуноХром-Фенциклидин\" на 1 вид наркотика)","1 определение",431]
["Услуги специалистов детской поликлиники № 1"]
[]
["В","01.031.001.001","Прием (осмотр, консультация) врача - педиатра первичный (в поликлинике)","1 консультация",221]
["В","01.031.002.001","Прием (осмотр, консультация) врача - педиатра повторный (в поликлинике)","1 консультация",152]
["В","01.031.001.002","Прием (осмотр, консультация) врача - педиатра (на дому)","1 консультация",415]
["В","04.031.002","Профилактический прием (осмотр, консультация) врача - педиатра","1 консультация",208]
["В","01.031.001.003","Прием (осмотр, консультация) врача - педиатра первичный (консультация районного специалиста)","1 консультация",415]
["В","01.031.001.004","Прием (осмотр, консультация) врача - педиатра первичный (с целью оформления медицинской карты на ребенка)","1 осмотр",156]
["B","01.023.001.003","Прием (осмотр, консультация) врача - невролога первичный (в поликлинике)","1 консультация",340]
["B","01.023.002.002","Прием (осмотр, консультация) врача - невролога повторный (в поликлинике)","1 консультация",232]
["B","01.023.001.004","Прием (осмотр, консультация) врача - невролога первичный (на дому)","1 консультация",695]
["B","01.023.002.001","Профилактический прием (осмотр, консультация) врача - невролога","1 консультация",232]
["B","01.028.001.004","Прием (осмотр, консультация) врача - оториноларинголога первичный (в поликлинике)","1 консультация",309]
["B","01.028.002.002","Прием (осмотр, консультация) врача - оториноларинголога повторный (в поликлинике)","1 консультация",216]
["B","01.028.001.005","Прием (осмотр, консультация) врача - оториноларинголога первичный (на дому)","1 консультация",926]
["B","04.028.002.001","Профилактический прием (осмотр, консультация) врача - оториноларинголога","1 консультация",154]
["B","01.029.001.004","Прием (осмотр, консультация) врача - офтальмолога первичный (в поликлинике)","1 консультация",617]
["B","01.029.002.002","Прием (осмотр, консультация) врача - офтальмолога повторный (в поликлинике)","1 консультация",432]
["B","01.029.001.005","Прием (осмотр, консультация) врача - офтальмолога первичный (на дому)","1 консультация",695]
["B","04.029.002.001","Профилактический прием (осмотр, консультация) врача - офтальмолога","1 консультация",309]
["B","01.050.001.003","Прием (осмотр, консультация) врача - травматолога - ортопеда первичный (в поликлинике)","1 консультация",201]
["B","01.050.002.002","Прием (осмотр, консультация) врача - травматолога - ортопеда повторный (в поликлинике)","1 консультация",139]
["B","01.050.001.004","Прием (осмотр, консультация) врача - травматолога - ортопеда первичный (на дому)","1 консультация",695]
["B","04.050.002.001","Профилактический прием (осмотр, консультация) врача - травматолога - ортопеда","1 консультация",154]
["А","17.09.003","Воздействие с помощью галакамеры при заболеваниях нижних дыхательных путей (грпповой сеанс)","за 1 человека",31]
["Услуги по вакцинации"]
["B","04.014.004.01","Вакцинация против дифтерии и столбняка","1 услуга",74]
["B","04.014.004.02","Вакцинация против вирусного гепатита В взрослая","1 услуга",143]
["B","04.014.004.03","Вакцинация против вирусного гепатита В детская","1 услуга",157]
["B","04.014.004.04","Вакцинация против кори","1 услуга",102]
["B","04.014.004.05","Вакцинация против краснухи","1 услуга",96]
["B","04.014.004.06","Вакцинация против бешенства","1 услуга",581]
["B","04.014.004.07","Вакцинация против гриппа, вакциной \"Гриппол R плюс\", взрослая ( для граждан, не имеющих медицинский полис обязательного медицинского страхования)","1 услуга",240]
["B","04.014.004.08","Вакцинация против гриппа, вакциной \"Гриппол R плюс\", взрослая ( для граждан, имеющих медицинский полис обязательного медицинского страхования)","1 услуга",214]
["Прочие услуги"]
["A","11.12.009","Взятие крови из периферической вены ","1 инъекция",42]
["А","11.05.001","Взятие крови из пальца","1 инъекция",42]
["A","11.02.002.01","Внутримышечное введение лекарственных средств (в поликлинике)","1 инъекция",68]
["A","11.02.002.02","Внутримышечное введение лекарственных средств (на дому)","1 инъекция",118]
["A","11.12.003.01","Внутривенное введение лекарственных средств (в поликлинике)","1 инъекция",93]
["A","11.12.003.02","Внутривенное введение лекарственных средств (на дому)","1 инъекция",169]
["A","02.12.002.01","Измерение артериального давления на периферических артериях (в поликлинике)","1 услуга",54]
["A","02.12.002.02","Измерение артериального давления на периферических артериях (на дому)","1 услуга",104]
["А","14.30.002.001","Транспортировка тяжелобольного пациента внутри учреждения (вне учреждения)","1 км",24]
["А","02.30.001","Термометрия общая","1 услуга",29]
["А","11.12.003.001.001","Непрерывное внутривенное введение лекарственных препаратов (в поликлинике, без учета стоимости лекарственных препаратов)","1 услуга",457]
["А","11.12.003.001.002","Непрерывное внутривенное введение лекарственных препаратов (на дому, без учета стоимости лекарственных препаратов)","1 услуга",660]
["МЕДИЦИНСКИЕ ОСМОТРЫ НАСЕЛЕНИЯ"]
["1.Предрейсовый (или послерейсовый) медицинский осмотр водителей транспортных средств",null,null,null,{"$f":"E245","v":75}]
[null,null,"в том числе:"]
["В","01.045.002.001","Проведение экспертизы (исследования) состояния здоровья в отношении живых лиц (предрейсовый (или послерейсовый) медицинский осмотр водителей транспортных средств)","1 услуга",75]
["2.Оформление медицинской карты ребенка",null,null,null,156]
[null,null,"в том числе:"]
["В","01.031.001.004","Прием (осмотр, консультация) врача - педиатра первичный (с целью оформления медицинской карты на ребенка)","1 осмотр",156]
["3.Медицинское освидетельствание на наличие медицинских противопоказаний для работы с использованием сведений, составляющих гоударственную тайну",null,null,null,{"$f":"E251+E252","v":311}]
[null,null,"в том числе:"]
["B","04.023.002","Профилактический прием (осмотр, консультация) врача - невролога","1 консультация",180]
["D","22.02.02","Подготовка и написание заключения (врачом профпатологом)","1 консультация",131]
["4.Медицинское освидетельствование водителей транспортных средств (кандидатов в водители) категорий \"А\" или \"М\", \"В\", \"ВЕ\", подкатегорий \"А1\", \"В1\", с мотоциклетной посадкой или рулем мотоциклетного типа\"",null,null,null,{"$f":"SUM(E255:E257)","v":519}]
[null,null,"в том числе:"]
["В","04.047.002","Профилактический прием (осмотр, консультация) врача - терапевта ","1 консультация",208]
["B","04.029.002","Профилактический прием (осмотр, консультация) врача - офтальмолога","1 консультация",180]
["D","22.02.02","Подготовка и написание заключения (врачом профпатологом)","1 консультация",131]
["5.Медицинское освидетельствование водителей транспортных средств (кандидатов в водители) категорий \"С\", \"СЕ\", \"D\", \"DЕ\", \"Тт\" или \"Тb\", подкатегорий \"С1\", \"D1\", \"С1Е\" или \"D1Е\"",null,null,null,{"$f":"SUM(E260:E264)","v":853}]
[null,null,"в том числе:"]
["В","04.047.002","Профилактический прием (осмотр, консультация) врача - терапевта ","1 консультация",208]
["B","04.023.002","Профилактический прием (осмотр, консультация) врача - невролога","1 консультация",180]
["B","04.029.002","Профилактический прием (осмотр, консультация) врача - офтальмолога","1 консультация",180]
["B","04.028.002","Профилактический прием (осмотр, консультация) врача - оториноларинголога","1 консультация",154]
["D","22.02.02","Подготовка и написание заключения (врачом профпатологом)","1 консультация",131]
["6.Медицинское освидетельствание на наличие медицинских противопоказаний к владению оружием (за исключением лиц, в отношении которых проводится предварительный и периодический медицинский осмотры)",null,null,null,{"$f":"SUM(E267:E268)","v":311}]
[null,null,"в том числе:"]
["D","22.02.02","Подготовка и написание заключения (врачом профпатологом)","1 консультация",131]
["B","04.029.002","Профилактический прием (осмотр, консультация) врача - офтальмолога","1 консультация",180]
["7.Предварительный (или периодический) медицинский осмотр лиц мужского пола, занятых на работах по управлению наземными транспортными средствами, согласно приказа Минздравсоцразвития от 12.04.2011 № 302н",null,null,null,{"$f":"SUM(E271:E285)","v":2249}]
[null,null,"в том числе:"]
["В","04.047.002","Профилактический прием (осмотр, консультация) врача - терапевта ","1 консультация",208]
["B","04.023.002","Профилактический прием (осмотр, консультация) врача - невролога","1 консультация",180]
["B","04.029.002","Профилактический прием (осмотр, консультация) врача - офтальмолога","1 консультация",180]
["B","04.028.002","Профилактический прием (осмотр, консультация) врача - оториноларинголога","1 консультация",154]
["B","04.057.002","Профилактический прием (осмотр, консультация) врача - хирурга","1 консультация",154]
["B","04.008.002","Профилактический прием (осмотр, консультация) врача - дерматовенеролога","1 консультация",174]
["A","11.12.009","Взятие крови из периферической вены ","1 инъекция",42]
["А","11.05.001","Взятие крови из пальца","1 инъекция",42]
["В","03.016.003","Общий (клинический) анализ крови развернутый","1 исследование",187]
["А","09.05.023","Исследование уровня глюкозы в крови","1 исследование",84]
["А","09.05.026","Исследование уровня холестерина в крови ","1 исследование",89]
["В","03.016.006","Анализ мочи общий","1 исследование",118]
["A","05.10.002.001","Проведение электрокардиографических исследований (простая в поликлинике)","1 исследование",192]
["A","12.25.002","Речевая аудиометрия","1 услуга",232]
["А","06.09.006.001.001","Флюрография легких цифровая (вторая проекция)","1 исследование",213]
["8.Предварительный (или периодический) медицинский осмотр лиц женского пола, занятых на работах по управлению наземными транспортными средствами, согласно приказа Минздравсоцразвития от 12.04.2011 № 302, с осмотром врачом-акушером-гинекологом",null,null,null,{"$f":"SUM(E288:E305)","v":2730}]
[null,null,"в том числе:"]
["В","04.047.002","Профилактический прием (осмотр, консультация) врача - терапевта ","1 консультация",208]
["B","04.023.002","Профилактический прием (осмотр, консультация) врача - невролога","1 консультация",180]
["B","04.029.002","Профилактический прием (осмотр, консультация) врача - офтальмолога","1 консультация",180]
["B","04.028.002","Профилактический прием (осмотр, консультация) врача - оториноларинголога","1 консультация",154]
["B","04.057.002","Профилактический прием (осмотр, консультация) врача - хирурга","1 консультация",154]
["B","04.008.002","Профилактический прием (осмотр, консультация) врача - дерматовенеролога","1 консультация",174]
["B","04.001.002","Профилактический прием (осмотр, консультация) врача - акушера - гинеколога","1 консультация",232]
["A","11.12.009","Взятие крови из периферической вены ","1 инъекция",42]
["А","11.05.001","Взятие крови из пальца","1 инъекция",42]
["A","11.20.005","Получение влагалищного мазка","1 услуга",85]
["В","03.016.003","Общий (клинический) анализ крови развернутый","1 исследование",187]
["А","09.05.023","Исследование уровня глюкозы в крови","1 исследование",84]
["А","09.05.026","Исследование уровня холестерина в крови ","1 исследование",89]
["В","03.016.006","Анализ мочи общий","1 исследование",118]
["A","05.10.002.001","Проведение электрокардиографических исследований (простая в поликлинике)","1 исследование",192]
["A","12.25.002","Речевая аудиометрия","1 услуга",232]
["А","06.09.006.001.001","Флюрография легких цифровая (вторая проекция)","1 исследование",213]
["A","08.20.012","Цитологическое исследование препарата тканей влагалища","1 исследование",164]
["9.Предварительный (или периодический) медицинский осмотр лиц женского пола, занятых на работах по управлению наземными транспортными средствами, согласно приказа Минздравсоцразвития от 12.04.2011 № 302, с осмотром акушеркой",null,null,null,{"$f":"SUM(E308:E325)","v":2574}]
[null,null,"в том числе:"]
["В","04.047.002","Профилактический прием (осмотр, консультация) врача - терапевта ","1 консультация",208]
["B","04.023.002","Профилактический прием (осмотр, консультация) врача - невролога","1 консультация",180]
["B","04.029.002","Профилактический прием (осмотр, консультация) врача - офтальмолога","1 консультация",180]
["B","04.028.002","Профилактический прием (осмотр, консультация) врача - оториноларинголога","1 консультация",154]
["B","04.057.002","Профилактический прием (осмотр, консультация) врача - хирурга","1 консультация",154]
["B","04.008.002","Профилактический прием (осмотр, консультация) врача - дерматовенеролога","1 консультация",174]
["А","02.20.001.001","Осмотр шейки матки в зеркалах (Профилактический осмотр акушеркой)","1 осмотр",76]
["A","11.12.009","Взятие крови из периферической вены ","1 инъекция",42]
["А","11.05.001","Взятие крови из пальца","1 инъекция",42]
["A","11.20.005","Получение влагалищного мазка","1 услуга",85]
["В","03.016.003","Общий (клинический) анализ крови развернутый","1 исследование",187]
["А","09.05.023","Исследование уровня глюкозы в крови","1 исследование",84]
["А","09.05.026","Исследование уровня холестерина в крови ","1 исследование",89]
["В","03.016.006","Анализ мочи общий","1 исследование",118]
["A","05.10.002.001","Проведение электрокардиографических исследований (простая в поликлинике)","1 исследование",192]
["A","12.25.002","Речевая аудиометрия","1 услуга",232]
["А","06.09.006.001.001","Флюрография легких цифровая (вторая проекция)","1 исследование",213]
["A","08.20.012","Цитологическое исследование препарата тканей влагалища","1 исследование",164]
["10.Предварительный (или периодический) медицинский осмотр лиц, занятых на работах в ведомствах и службах, которым разрешено ношение оружия и его применение, согласно приказа Минздравсоцразвития от 12.04.2011 № 302н",null,null,null,{"$f":"SUM(E327:E345)","v":2713}]
[null,null,"в том числе:"]
["В","04.047.002","Профилактический прием (осмотр, консультация) врача - терапевта ","1 консультация",208]
["B","04.029.002","Профилактический прием (осмотр, консультация) врача - офтальмолога","1 консультация",180]
["B","04.023.002","Профилактический прием (осмотр, консультация) врача - невролога","1 консультация",180]
["B","04.028.002","Профилактический прием (осмотр, консультация) врача - оториноларинголога","1 консультация",154]
["A","12.25.002","Речевая аудиометрия","1 услуга",232]
["B","04.008.002","Профилактический прием (осмотр, консультация) врача - дерматовенеролога","1 консультация",174]
["B","04.057.002","Профилактический прием (осмотр, консультация) врача - хирурга","1 консультация",154]
["A","02.26.005","Периметрия","1 услуга",62]
["A","02.26.004","Визометрия","1 услуга",57]
["A","11.12.009","Взятие крови из периферической вены ","1 инъекция",42]
["А","11.05.001","Взятие крови из пальца","1 инъекция",42]
["А","09.05.023","Исследование уровня глюкозы в крови","1 исследование",84]
["А","09.05.026","Исследование уровня холестерина в крови ","1 исследование",89]
["В","03.016.006","Анализ мочи общий","1 исследование",118]
["А","06.09.006.001.001","Флюрография легких цифровая (вторая проекция)","1 исследование",213]
["A","05.10.002.001","Проведение электрокардиографических исследований (простая в поликлинике)","1 исследование",192]
["В","03.016.003","Общий (клинический) анализ крови развернутый","1 исследование",187]
["А","03.25.001","Вестибулометрия","1 исследование",345]
["11.Предварительный медицинский осмотр граждан с целью поступления на государственную или муниципальную службу (Справка 001-ГС/У)",null,null,null,{"$f":"SUM(E348:E352)","v":809}]
[null,null,"в том числе:"]
["В","04.047.002","Профилактический прием (осмотр, консультация) врача - терапевта ","1 консультация",208]
["B","04.023.002","Профилактический прием (осмотр, консультация) врача - невролога","1 консультация",180]
["А","11.05.001","Взятие крови из пальца","1 инъекция",42]
["В","03.016.003","Общий (клинический) анализ крови развернутый","1 исследование",187]
["A","05.10.002.001","Проведение электрокардиографических исследований (простая в поликлинике)","1 исследование",192]
["Справочно: Медицинское освидетельствование и осмотры по п.п.3-10 проводятся при наличии у гражданина справок от врача-психиатра-нарколога и врача-психиатра "]
["12.Предварительный (или периодический) медицинский осмотр лиц мужского пола декретированных профессий, согласно приказа Минздравсоцразвития от 12.04.2011 № 302н",null,null,null,1400]
[null,null,"в том числе:"]
["В","04.047.002","Профилактический прием (осмотр, консультация) врача - терапевта ","1 консультация"]
["В","04.065.002","Профилактический прием (осмотр, консультация) врача-стоматолога-терапевта","1 посещение"]
["B","04.028.002","Профилактический прием (осмотр, консультация) врача - оториноларинголога","1 консультация"]
["B","04.008.002","Профилактический прием (осмотр, консультация) врача - дерматовенеролога","1 консультация"]
["A","11.12.009","Взятие крови из периферической вены ","1 инъекция"]
["А","11.05.001","Взятие крови из пальца","1 инъекция"]
["В","03.016.003","Общий (клинический) анализ крови развернутый","1 исследование"]
["А","12.06.011","Проведение реакции Вассермана (RW)","1 исследование"]
["А","09.05.023","Исследование уровня глюкозы в крови","1 исследование"]
["А","09.05.026","Исследование уровня холестерина в крови ","1 исследование"]
["В","03.016.006","Анализ мочи общий","1 исследование"]
["A","05.10.002.001","Проведение электрокардиографических исследований (простая в поликлинике)","1 исследование"]
["В","04.036.002","Профилактический прием (осмотр, консультация) врача психиатра-нарколога","1 консультация"]
["13.Предварительный (или периодический) медицинский осмотр лиц женского пола декретированных профессий, согласно приказа Минздравсоцразвития от 12.04.2011 № 302н с осмотром врачом-акушером-гинекологом",null,null,null,1500]
[null,null,"в том числе:"]
["В","04.047.002","Профилактический прием (осмотр, консультация) врача - терапевта ","1 консультация"]
["В","04.065.002","Профилактический прием (осмотр, консультация) врача-стоматолога-терапевта","1 посещение"]
["B","04.028.002","Профилактический прием (осмотр, консультация) врача - оториноларинголога","1 консультация"]
["B","04.008.002","Профилактический прием (осмотр, консультация) врача - дерматовенеролога","1 консультация"]
["B","04.001.002","Профилактический прием (осмотр, консультация) врача - акушера - гинеколога","1 консультация"]
["A","11.12.009","Взятие крови из периферической вены ","1 инъекция"]
["А","11.05.001","Взятие крови из пальца","1 инъекция"]
["A","11.20.005","Получение влагалищного мазка","1 услуга"]
["В","03.016.003","Общий (клинический) анализ крови развернутый","1 исследование"]
["А","12.06.011","Проведение реакции Вассермана (RW)","1 исследование"]
["А","09.05.023","Исследование уровня глюкозы в крови","1 исследование"]
["А","09.05.026","Исследование уровня холестерина в крови ","1 исследование"]
["В","03.016.006","Анализ мочи общий","1 исследование"]
["A","05.10.002.001","Проведение электрокардиографических исследований (простая в поликлинике)","1 исследование"]
["А","09.20.001","Микроскопическое исследование влагалищных мазков","1 исследование"]
["A","08.20.012","Цитологическое исследование препарата тканей влагалища","1 исследование"]
["В","04.036.002","Профилактический прием (осмотр, консультация) врача психиатра-нарколога","1 консультация"]
["14.Периодический (повторный) медицинский осмотр лиц мужского пола декретированных профессий",null,null,null,{"$f":"SUM(E390:E393)","v":684}]
[null,null,"в том числе:"]
["В","04.047.002","Профилактический прием (осмотр, консультация) врача - терапевта ","1 консультация",208]
["B","04.008.002","Профилактический прием (осмотр, консультация) врача - дерматовенеролога","1 консультация",174]
["A","11.12.009","Взятие крови из периферической вены ","1 инъекция",42]
["А","12.06.011","Проведение реакции Вассермана (RW)","1 исследование",260]
["15.Периодический (повторный) медицинский осмотр лиц женского пола декретированных профессий",null,null,null,{"$f":"SUM(E396:E401)","v":845}]
[null,null,"в том числе:"]
["В","04.047.002","Профилактический прием (осмотр, консультация) врача - терапевта ","1 консультация",208]
["B","04.008.002","Профилактический прием (осмотр, консультация) врача - дерматовенеролога","1 консультация",174]
["A","11.12.009","Взятие крови из периферической вены ","1 инъекция",42]
["A","11.20.005","Получение влагалищного мазка","1 услуга",85]
["А","12.06.011","Проведение реакции Вассермана (RW)","1 исследование",260]
["А","09.20.001","Микроскопическое исследование влагалищных мазков","1 исследование",76]
["16.Предварительный медицинский осмотр по форме 086/у с целью определение пригодности гражданина к выполнению поручаемой ему работы",null,null,null,{"$f":"SUM(E404:E417)","v":2064}]
[null,null,"в том числе:"]
["В","04.047.002","Профилактический прием (осмотр, консультация) врача - терапевта ","1 консультация",208]
["B","04.023.002","Профилактический прием (осмотр, консультация) врача - невролога","1 консультация",180]
["B","04.029.002","Профилактический прием (осмотр, консультация) врача - офтальмолога","1 консультация",180]
["B","04.028.002","Профилактический прием (осмотр, консультация) врача - оториноларинголога","1 консультация",154]
["B","04.057.002","Профилактический прием (осмотр, консультация) врача - хирурга","1 консультация",154]
["B","04.008.002","Профилактический прием (осмотр, консультация) врача - дерматовенеролога","1 консультация",174]
["A","11.12.009","Взятие крови из периферической вены ","1 инъекция",42]
["А","11.05.001","Взятие крови из пальца","1 инъекция",42]
["В","03.016.003","Общий (клинический) анализ крови развернутый","1 исследование",187]
["А","09.05.023","Исследование уровня глюкозы в крови","1 исследование",84]
["А","09.05.026","Исследование уровня холестерина в крови ","1 исследование",89]
["А","12.06.011","Проведение реакции Вассермана (RW)","1 исследование",260]
["В","03.016.006","Анализ мочи общий","1 исследование",118]
["A","05.10.002.001","Проведение электрокардиографических исследований (простая в поликлинике)","1 исследование",192]
["17. Медицинское освидетельствование иностранных граждан или лиц без гражданства РФ, ходатайствующих о получении разрешения на временное проживание, вида на жительство или разрешения на работу",null,null,null,1500]
["B","01.008.001.004","Прием (осмотр, консультация) врача - дерматовенеролога первичный (при медицинском освидетельствовании иностранных граждан)","1 консультация"]
["B","01.008.002.002","Прием (осмотр, консультация) врача - дерматовенеролога повторный (при медицинском освидетельствовании иностранных граждан)","1 консультация"]
["B","01.014.001.001","Прием (осмотр, консультация) врача - инфекциониста первичный (в поликлинике)","1 консультация"]
["B","01.014.002.001","Прием (осмотр, консультация) врача - инфекциониста повторный (в поликлинике)","1 консультация"]
["В","04.055.002","Профилактический прием (осмотр, консультация) врача - фтизиатра","1 консультация"]
["A","11.12.009","Взятие крови из периферической вены ","1 инъекция"]
["A","26.06.048","Определение антител классов M, G (IgM, IgG) к вирусу иммунодефицита человека ВИЧ-1 (Human immunodeficiency virus HIV 1) в крови","1 исследование"]
["A","26.06.082.006","Определение антител к бледной трепонеме (Treponema pallidum) в крови (Определение антител сифилиса в методом ИФА)","1 исследование"]
["А","06.09.006.001","Флюрография легких цифровая","1 исследование"]
["18.Медицинское освидетельствание судоводителей индивидуальных маломерных судов, согласно приказа Министерства Здравоохранения СССР от 26.05.86 №724",null,null,null,{"$f":"SUM(E430:E435)","v":1007}]
[null,null,"в том числе:"]
["В","04.047.002","Профилактический прием (осмотр, консультация) врача - терапевта ","1 консультация",208]
["B","04.023.002","Профилактический прием (осмотр, консультация) врача - невролога","1 консультация",180]
["B","04.029.002","Профилактический прием (осмотр, консультация) врача - офтальмолога","1 консультация",180]
["B","04.028.002","Профилактический прием (осмотр, консультация) врача - оториноларинголога","1 консультация",154]
["B","04.057.002","Профилактический прием (осмотр, консультация) врача - хирурга","1 консультация",154]
["D","22.02.02","Подготовка и написание заключения (врачом профпатологом)","1 консультация",131]
["ДИАГНОСТИЧЕСКИЕ УСЛУГИ"]
["Кабинет функциональной диагностики"]
["A","12.09.001.002","Исследование неспровацированных дыхательных объемов и потоков (спирография)","1 исследование",257]
["A","05.10.002.001","Проведение электрокардиографических исследований (простая в поликлинике)","1 исследование",192]
["A","05.10.002.002","Проведение электрокардиографических исследований (на дому)","1 исследование","192 + 24 рубля за 1 км пути"]
["A","12.10.001","Электрокардиография с физическими упражнениями","1 исследование",263]
["A","12.10.005","Велоэргометрия","1 исследование",703]
["A","05.10.008.001","Холтеровское мониторирование сердечного ритма (ХМ-ЭКГ)","1 исследование",1089]
["А","05.10.004","Расшифровка, описание и интерпретация электрокардиографических данных","1 исследование",125]
["Кабинет ультразвуковых исследований"]
["A","04.15.001","Ультразвуковое исследование поджелудочной железы","1 исследование",384]
["A","04.06.001","Ультразвуковое исследование селезенки","1 исследование",384]
["A","04.28.001","Ультразвуковое исследование почек и надпочечников","1 исследование",384]
["A","04.28.002.003","Ультразвуковое исследование мочевого пузыря","1 исследование",288]
["A","04.20.001","Ультразвуковое исследование матки и придатков трансабдоминальное","1 исследование",480]
["A","04.20.001.002","Ультразвуковое исследование матки и придатков трансабдоминальное ( при беременности)","1 исследование",576]
["A","04.22.001","Ультразвуковое исследование щитовидной железы и паращитовидных желез","1 исследование",288]
["A","04.14.002","Ультразвуковое исследование желчного пузыря","1 исследование",384]
["A","04.16.001","Ультразвуковое исследование органов брюшной полости (комплексное)","1 исследование",1056]
["A","04.21.001","Ультразвуковое исследование простаты","1 исследование",384]
["A","04.20.002","Ультразвуковое исследование молочных желез","1 исследование",384]
["A","04.07.002","Ультразвуковое исследование слюнных желез","1 исследование",384]
["A","04.06.002","Ультразвуковое исследование лимфатических узлов (одна анатомическая зона)","1 исследование",384]
["A","04.09.001","Ультразвуковое исследование плевральной полости","1 исследование",384]
["A","04.10.002","Эхокардиография","1 исследование",1152]
["A","04.12.002.002","Ультразвуковая допплерография вен нижних конечностей","1 исследование",1152]
["A","04.12.006","Дуплексное сканирование сосудов (артерий и вен) нижних конечностей","1 исследование",2304]
["A","04.12.005.001","Дуплексное сканирование артерий нижних конечностей","1 исследование",1152]
["A","04.12.005.003","Дуплексное сканирование брахиоцефальных артерий с цветным допплеровским картированием кровотока","1 исследование",1152]
["A","04.04.001","Ультразвуковое исследование сустава ","1 исследование",384]
["A","04.14.001","Ультразвуковое исследование печени","1 исследование",384]
["A","04.04.001.001","Ультразвуковое исследование сустава (тазобедренного сустава для детского населения)","1 исследование",384]
["A","04.23.001","Нейросонография","1 исследование",576]
["A","04.15.001.001","Ультразвуковое исследование поджелудочной железы (на дому)","1 исследование","384 + 24 рубля за 1 км пути"]
["A","04.06.001.01","Ультразвуковое исследование селезенки (на дому)","1 исследование","384 + 24 рубля за 1 км пути"]
["A","04.28.001.001","Ультразвуковое исследование почек и надпочечников (на дому)","1 исследование","384 + 24 рубля за 1 км пути"]
["A","04.28.002.003.001"," Ультразвуковое исследование мочевого пузыря (на дому)","1 исследование","288 + 24 рубля за 1 км пути"]
["A","04.20.001.001","Ультразвуковое исследование матки и придатков трансабдоминальное (на дому)","1 исследование","480 + 24 рубля за 1 км пути"]
["A","04.20.001.003","Ультразвуковое исследование матки и придатков трансабдоминальное ( при беременности на дому)","1 исследование","576 + 24 рубля за 1 км пути"]
["A","04.22.001.001","Ультразвуковое исследование щитовидной железы и паращитовидных желез (на дому)","1 исследование","288 + 24 рубля за 1 км пути"]
["A","04.14.002.001","Ультразвуковое исследование желчного пузыря (на дому)","1 исследование","384 + 24 рубля за 1 км пути"]
["A","04.16.001.001","Ультразвуковое исследование органов брюшной полости (комплексное на дому)","1 исследование","1056 + 24 рубля за 1 км пути"]
["A","04.21.001.001","Ультразвуковое исследование простаты (на дому)","1 исследование","384 + 24 рубля за 1 км пути"]
["A","04.20.002.001","Ультразвуковое исследование молочных желез (на дому)","1 исследование","384 + 24 рубля за 1 км пути"]
["A","04.07.002.001","Ультразвуковое исследование слюнных желез (на дому)","1 исследование","384 + 24 рубля за 1 км пути"]
["A","04.06.002.001","Ультразвуковое исследование лимфатических узлов (одна анатомическая зона на дому)","1 исследование","384 + 24 рубля за 1 км пути"]
["A","04.09.001.001","Ультразвуковое исследование плевральной полости (на дому)","1 исследование","384 + 24 рубля за 1 км пути"]
["A","04.10.002.001","Эхокардиография (на дому)","1 исследование","1152 + 24 рубля за 1 км пути"]
["A","04.04.001.002","Ультразвуковое исследование сустава (тазобедренного сустава на дому для детского населения)","1 исследование","384 + 24 рубля за 1 км пути"]
["A","04.23.001.001","Нейросонография (на дому)","1 исследование","576 + 24 рубля за 1 км пути"]
["Услуги кабинета эндоскопии"]
["A","03.08.003.001","Эзофагоскопия (для взрослого населения)","1 исследование",588]
["A","03.08.003.002","Эзофагоскопия (для детского населения)","1 исследование",770]
["A","03.16.001.001","Эзофагогастроскопия (для взрослого населения)","1 исследование",861]
["A","03.16.001.002","Эзофагогастроскопия (для детского населения )","1 исследование",951]
["A","03.16.001.001","Эзофагогастродуоденоскопия (для взрослого населения)","1 исследование",1040]
["A","03.16.001.002","Эзофагогастродуоденоскопия (для детского населения)","1 исследование",1131]
["A","03.19.001.001","Ректоскопия (для взрослого населения)","1 исследование",479]
["A","03.19.001.002","Ректоскопия (для детского населения )","1 исследование",569]
["A","03.09.001.001","Трахеобронхоскопия (для взрослого населения)","1 исследование",1162]
["A","03.09.001.002","Трахеобронхоскопия (для детского населения)","1 исследование",1247]
["A","03.19.002.001","Ректосигмоидоскопия (для взрослого населения)","1 исследование",1112]
["A","03.19.002.002","Ректосигмоидоскопия (для детского населения)","1 исследование",1112]
["A","16.18.019.002","Полипэктомия толстого кишечника (для детского населения)","1 исследование",2760]
["A","16.18.019.003","Полипэктомия толстого кишечника (для взрослого населения)","1 исследование",2760]
["A","16.18.025.001","Полипэктомия из прямой и сигмовидной кишки (для взрослого населения)","1 исследование",1667]
["A","16.18.025.002","Полипэктомия из прямой и сигмовидной кишки (для детского населения)","1 исследование",1667]
["A","16.16.041.001.001","Полипэктомия желудка и пищевода (для взрослого населения)","1 исследование",1142]
["A","16.16.041.001.002","Полипэктомия желудка и пищевода (для детского населения)","1 исследование",1509]
["A","11.09.009.001","Эндобронхиальное введение лекарственных препаратов при бронхоскопии (для взрослого населения)","1 исследование",1581]
["A","11.09.009.002","Эндобронхиальное введение лекарственных препаратов при бронхоскопии (для детского населения)","1 исследование",1673]
["Услуги кабинета мануальной терапии "]
["A","23.30.016","Мануальная терапия","1 сеанс",278]
["В","01.022.001","Прием (осмотр, консультация) врача мануальной терапии первичный","1 консультация",131]
["Услуги физиотерапевтического отделение"]
["В","01.054.001","Осмотр (консультация) врача-физиотерапевта","1 услуга",124]
["А","17.03.001.001","Электрофорез лекарственных препаратов при костной патологии (с раствором анальгина 5%)","1 услуга",71]
["А","17.03.001.002","Электрофорез лекарственных препаратов при костной патологии  (с раствором новокаина 2%)","1 услуга",72]
["А","17.03.001.003","Электрофорез лекарственных препаратов при костной патологии  (с раствором папаверина 1%)","1 услуга",72]
["А","17.03.001.004","Электрофорез лекарственных препаратов при костной патологии (с раствором эуфилина 2%)","1 услуга",71]
["А","17.03.001.005","Электрофорез лекарственных препаратов при костной патологии (с раствором калий йод 3%)","1 услуга",74]
["А","17.03.001.006","Электрофорез лекарственных препаратов при костной патологии (с раствором кальций хлор 5%)","1 услуга",70]
["А","17.08.001.001","Электрофорез лекарственных препаратов при заболеваниях верхних дыхательных путей (с раствором кальций хлор 5%)","1 услуга",93]
["А","17.08.001.002","Электрофорез лекарственных препаратов при заболеваниях верхних дыхательных путей (с раствором эуфилина 2%)","1 услуга",94]
["А","17.08.001.003","Электрофорез лекарственных препаратов при заболеваниях верхних дыхательных путей (с раствором калий йод 3%)","1 услуга",97]
["А","17.08.001.001.001","Электрофорез лекарственных препаратов эндоназальный (с раствором кальций хлор 5%)","1 услуга",93]
["А","17.09.001.001","Электрофорез лекарственных препаратов при патологии легких (с раствором кальций хлор 5%)","1 услуга",93]
["А","17.09.001.002","Электрофорез лекарственных препаратов при патологии легких (с раствором калий йод 3%)","1 услуга",97]
["А","17.09.001.003","Электрофорез лекарственных препаратов при патологии легких (с раствором эуфилина 2%)","1 услуга",94]
["А","17.09.002","Электроаэрозольвоздействие при заболеваниях нижних дыхательных путей","1 услуга",47]
["А","17.14.001.001","Электрофорез лекарственных препаратов при заболеваниях печени и желчевыводящих путей (раствором папаверина 1%)","1 услуга",72]
["А","17.14.001.002","Электрофорез лекарственных препаратов при заболеваниях печени и желчевыводящих путей (магния сульфат 5%)","1 услуга",70]
["А","17.16.001.001","Электрофорез лекарственных препаратов при заболеваниях желудка и двенадцатиперстной кишки  (с раствором новокаина 2%)","1 услуга",72]
["А","17.16.001.002","Электрофорез лекарственных препаратов при заболеваниях желудка и двенадцатиперстной кишки (с раствором папаверина 1%)","1 услуга",72]
["А","17.20.002.001","Электрофорез лекарственных препаратов при заболеваниях женских половых органов (раствором  кальций хлор 5%)","1 услуга",70]
["А","17.20.002.002","Электрофорез лекарственных препаратов при заболеваниях женских половых органов (раствором  калий йод 3%)","1 услуга",74]
["А","17.23.001.001","Электрофорез лекарственных препаратов при заболеваниях центральной нервной системы и головного мозга (с раствором эуфилина 2%)","1 услуга",94]
["А","17.23.001.002","Электрофорез лекарственных препаратов при заболеваниях центральной нервной системы и головного мозга (с раствором новокаина 2%)","1 услуга",94]
["А","17.24.007.001","Воздействие синусоидальными модулированными токами (СМТ-терапия) при заболеваниях периферической нервной системы (с раствором анальгина 5%)","1 услуга",71]
["А","17.24.007.002","Воздействие синусоидальными модулированными токами (СМТ-терапия) при заболеваниях периферической нервной системы (с раствором новокаина 2%)","1 услуга",72]
["А","17.24.007.003","Воздействие синусоидальными модулированными токами (СМТ-терапия) при заболеваниях периферической нервной системы (с раствором папаверина 1%)","1 услуга",72]
["А","17.24.007.004","Воздействие синусоидальными модулированными токами (СМТ-терапия) при заболеваниях периферической нервной системы (с раствором эуфилина 2%)","1 услуга",71]
["А","17.03.001.001","Электрофорез лекарственных препаратов при костной патологии (с раствором новокаина 2%)","1 услуга",94]
["А","17.03.001.002","Электрофорез лекарственных препаратов при костной патологии (с раствором анальгина 5%)","1 услуга",94]
["А","17.03.001.003","Электрофорез лекарственных препаратов при костной патологии (с раствором кальций хлор 5%)","1 услуга",93]
["А","17.30.017","Воздействие электрическим полем ультравысокой частоты (ЭП УВЧ)","1 услуга",49]
["А","17.30.031","Воздействие магнитными полями","1 услуга",71]
["А","17.30.034","Ультрафонофорез лекарственный","1 услуга",78]
["А","20.24.001.001","Грязелечение заболеваний периферической нервной системы (объем 100мл)","1 услуга",155]
["А","20.24.001.002","Грязелечение заболеваний периферической нервной системы (объем 300мл)","1 услуга",179]
["А","20.24.001.003","Грязелечение заболеваний периферической нервной системы (объем 650мл)","1 услуга",199]
["А","17.01.007","Дарсонвализация кожи","1 услуга",58]
["А","22.13.001.001","Лазерное облучение крови (внутривеннное)","1 услуга",187]
["А","22.13.001.002","Лазерное облучение крови (наружное)","1 услуга",45]
["А","20.30.024.009","Озонотерапия (с применением насадки \"приспособление для получения озонированной воды (в объеме 1л.)\") ","1 услуга",105]
["А","20.30.024.010","Озонотерапия (с применением насадки \"офтальмологический набор\")","1 услуга",113]
["А","20.30.024.011","Озонотерапия (с применение насадки \"наушники\") ","1 услуга",79]
["А","20.30.024.012","Озонотерапия (с применение камеры \"берет\") ","1 услуга",78]
["А","20.30.024.013","Озонотерапия (с применение насадки \"колокол\") ","1 услуга",77]
["А","20.30.024.014","Озонотерапия (с применение камеры \"комбинезон\") ","1 услуга",162]
["А","21.24.003","Вытяжение при заболеваниях периферической нервной системы","1 услуга",180]
["А","20.30.010","Подводный душ-массаж лечебный","1 услуга",184]
["А","21.01.005.001","Массаж волосистой части головы медицинский (лобно-височной и затылочно-теменной области) ","1 услуга",91]
["А","21.01.002.001","Массаж лица медицинский (лобной, окологлазничной, верхне- и нижнечелюстной области) ","1 услуга",61]
["А","21.01.003","Массаж шеи медицинский","1 услуга",61]
["А","21.03.002.001","Массаж при заболеваниях позвоночника (воротниковой зоны/задней поверхности шеи, спины до уровня VI позвонка, передней поверхности грудной клетки до II ребра/) ","1 услуга",91]
["А","21.03.002.002","Массаж при заболеваниях позвоночника (пояснично-крестцовой области  /область спины от I поясничного позвонка до нижних ягодичных складок/) ","1 услуга",91]
["А","21.03.002.003","Массаж при заболеваниях позвоночника (спины/от VII шейного до I поясничного позвонка и от левой средней аксиллярной линии: у детей включая пояснично-крестцовую область/) ","1 услуга",91]
["А","21.03.002.004","Массаж при заболеваниях позвоночника (грудной клетки/области передней поверхности грудной клетки  от передней границы надплечий до реберных дуг и области спины от  VII шейного до I поясничного позвонка/) ","1 услуга",183]
["А","21.01.004.001","Массаж рук медицинский ( верхней конечности и плеча или всех суставов конечности) ","1 услуга",91]
["А","21.01.004.002","Массаж рук медицинский (плечевого сустава /верхней трети   плеча, области плечевого сустава и  надплечья одноименной стороны/) ","1 услуга",61]
["А","21.01.004.003","Массаж рук медицинский (локтевого сустава/верхней трети  предплечья, области локтевого сустава и   нижней ,трети плеча/ ","1 услуга",61]
["А","21.01.004.004","Массаж рук медицинский (лучезапястного сустава /проксимального отдела кисти, области  лучезапястного сустава и предплечья/","1 услуга",61]
["А","21.01.004.005","Массаж рук медицинский (кисти и предплечья) ","1 услуга",61]
["А","21.01.008.001","Массаж ног медицинский (нижней конечности и поясницы  /области стопы, голени бедра, ягодичной и пояснично-крестцовой области или всех суставов конечности/","1 услуга",122]
["А","21.01.008.002","Массаж ног медицинский (тазобедренного сустава/верхней трети бедра, области тазобедренного сустава и ягодичной области одноименной стороны/) ","1 услуга",91]
["А","21.01.008.003","Массаж ног медицинский (коленного сустава/верхней трети голени, области коленного сустава и нижней трети бедра/ ) ","1 услуга",61]
["А","21.01.008.004","Массаж ног медицинский (голеностопного сустава /проксимального отдела стопы, области голеностопного суставаи нижней трети голени/)","1 услуга",61]
["А","21.01.008.005","Массаж ног медицинский (стопы и голени) ","1 услуга",61]
["А","21.03.002.005","Массаж при заболеваниях позвоночника ( вибромассаж лечебный) ","1 услуга",95]
["А","17.09.003.001","Воздействие с помощью галакамеры при заболеваниях нижних дыхательных путей (для взрослого населения )","1 сеанс",103]
["Услуги рентгеновского отделения"]
["A","06.09.007.001","Рентгенография легких (одна проекция)","1 исследование",263]
["A","06.09.007.002","Рентгенография легких (две проекциии)","1 исследование",391]
["А","06.09.006.001","Флюрография легких цифровая","1 исследование",213]
["А","06.09.006.001.001","Флюрография легких цифровая (вторая проекция)","1 исследование",213]
["А","06.04.005.001","Рентгенография коленного сустава (две проекции)","1 исследование",386]
["А","06.04.011.001","Рентгенография бедренного сустава (одна проекция)","1 исследование",260]
["А","06.04.012.001","Рентгенография голеностопного сустава (две проекции)","1 исследование",392]
["A","06.08.002","Рентгенография гортани и трахеи","1 исследование",263]
["А","06.03.041","Рентгенография всего таза","1 исследование",264]
["A","06.03.005","Рентгенография всего черепа, в одной или более проекциях","1 исследование",363]
["А","06.03.053","Рентгенография стопы в двух проекциях","1 исследование",366]
["А","06.03.052.001","Рентгенография стопы (одна проекция)","1 исследование",250]
["A","06.08.003.001","Рентгенография придаточных пазух носа (одна проекция)","1 исследование",241]
["А","06.03.021.001","Рентгенография верхней конечности (две проекции)","1 исследование",366]
["А","06.03.022","Ренгенография ключицы","1 исследование",260]
["А","06.03.036.001","Рентгенография нижней конечности (две проекции)","1 исследование",366]
["А","06.03.032.001","Рентгенография кисти рук (одна проекция)","1 исследование",264]
["А","06.03.032.002","Рентгенография кисти рук (две проекции)","1 исследование",386]
["А","06.04.003.001","Рентгенография локтевого сустава (две проекции)","1 исследование",366]
["А","06.04.010","Рентгенография плечевого сустава","1 исследование",260]
["A","06.28.002","Внутривенная урография","1 исследование",1119]
["A","06.28.003","Ретроградная пиелография  ","1 исследование",861]
["A","06.28.010","Микционная цистоуретрография ","1 исследование",558]
["А","06.28.007","Цистография","1 исследование",806]
["A","06.20.001","Гистеросальпенгография ","1 исследование",952]
["А","06.20.004","Маммография","1 исследование",715]
["A","06.30.004","Обзорный снимок брюшной полости и органов малого таза","1 исследование",264]
["A","06.30.008","Фистулография ","1 исследование",895]
["А","06.03.010.001","Рентгенография шейного отдела позвоночника (одна проекция)","1 исследование",263]
["А","06.03.010.002","Рентгенография шейного отдела позвоночника (две проекции)","1 исследование",392]
["А","06.03.015.001","Рентгенография поясничного отдела позвоночника (одна проекция)","1 исследование",258]
["А","06.03.015.002","Рентгенография поясничного отдела позвоночника (две проекции)","1 исследование",381]
["А","06.03.013.001","Рентгенография дорсального отдела позвоночника (одна проекция)","1 исследование",258]
["А","06.03.013.002","Рентгенография дорсального отдела позвоночника (две проекция)","1 исследование",381]
["A","06.03.018","Рентгенография позвоночника, специальные исследования и проекции","1 исследование",394]
["А","06.03.017.002","Рентгенография крестца и копчика (две проекции)","1 исследование",366]
["А","06.09.005","Компьютерная томография  органов грудной полости","1 исследование",1780]
["А","06.03.002.001","Компьютерная томография  головы с контрастированием","1 исследование",5245]
["А","06.08.009.002","Компьютерная томография  шеи с внутривенным болюсным контрастированием","1 исследование",5245]
["А","06.03.012","Компьютерная томография  шеи ","1 исследование",1780]
["А","06.08.007","Компьютерная томография  гортани","1 исследование",1780]
["А","06.08.007.002","Компьютерная томография  гортани  с внутривенным болюсным контрастированием","1 исследование",5245]
["А","06.03.002.004","Компьютерная томография  лицевого отдела черепа","1 исследование",1780]
["А","06.12.001.001","Компьютерная томография  грудной аорты","1 исследование",1780]
["А","06.12.001.002","Компьютерная томография  брюшной аорты","1 исследование",1780]
["А","06.21.003.003","Компьютерная томография органов таза у мужчин с  контрастированием","1 исследование",5245]
["А","06.21.003","Компьютерная томография органов таза у мужчин ","1 исследование",1780]
["А","06.25.003","Компьютерная томография  височной кости","1 исследование",1780]
["А","06.08.007","Компьютерная томография  придаточных пазух носа","1 исследование",1780]
["А","06.03.002","Компьютерная томография  головы","1 исследование",1780]
["А","06.09.005.002","Компьютерная томография  органов грудной полости с внутривенным болюсным контрастированием","1 исследование",5245]
["А","06.30.005","Компьютерная томография органов брюшной полости ","1 исследование",1780]
["А","06.30.005.003","Компьютерная томография органов брюшной полости  с внутривенным болюсным контрастированием","1 исследование",5245]
["А","06.30.007","Компьютерная томография забрюшного пространства","1 исследование",1780]
["А","06.30.007.002","Компьютерная томография забрюшного пространства с внутривенным болюсным контрастированием","1 исследование",5245]
["А","06.20.002","Компьютерная томография органов малого таза у женщин","1 исследование",1780]
["А","06.20.002.003","Компьютерная томография органов малого таза у женщин с контрастированием","1 исследование",5245]
["А","06.01.001","Компьютерная томография  мягких тканей","1 исследование",1780]
["А","06.04.017","Компьютерная томография  сустава","1 исследование",1780]
["А","06.03.036.001","Компьютерная томография  нижней конечности","1 исследование",1780]
["А","06.03.021.001","Компьютерная томография  верхней конечности","1 исследование",1780]
["А","06.03.062","Компьютерная томография  кости","1 исследование",1780]
["А","06.03.058","Компьютерная томография  позвоночника  (один отдел)","1 исследование",1780]
["А","06.09.008.001","Томография легких (линейная)","1 исследование",252]
["А","06.30.002","Описание и интерпретация рентгенографических изображений ","1 исследование",117]
["А ","06.30.002.001","Описание и интерпретация компьютерных томограмм","1 исследование",117]
["А","06.16.007","Рентгеноскопия желудка и двенадцатиперстной кишки","1 исследование",729]
["А","06.16.001.002","Рентгеноскопия пищевода с контрасным веществом","1 исследование",729]
["А ","16.18.001","Ирригоскопия","1 исследование",871]
["D","22.02.04","Оформление и подготовка выписок из документов (выдача дубликата рентгеновского исследования)","1 услуга",93]
["D","22.02.04","Оформление и подготовка выписок из документов (выдача дубликата флюорографического исследования)","1 услуга",46]
["D","22.02.04","Оформление и подготовка выписок из документов (выдача (повторная) данных компьютерной томографии)","1 услуга",130]
["Услуги клинико-диагностической лаборатории"]
["A","09.05.010","Исследование уровня общего белка в крови","1 исследование",83]
["А","09.05.021","Исследование уровня общего билирубина в крови","1 исследование",89]
["А","09.05.022","Исследование уровня свободного и связанного билирубина в крови","1 исследование",92]
["А","09.05.023","Исследование уровня глюкозы в крови","1 исследование",84]
["А","09.05.023.002","Исследование уровня глюкозы в крови с помощью анализатора","1 исследование",84]
["А","09.05.004","Исследование уровня альфа-липопротеинов (высокой плотности) в крови","1 исследование",134]
["А","09.05.007","Исследование уровня железа сыворотки крови","1 исследование",105]
["A","09.05.011","Исследование уровня альбумины в крови","1 исследование",97]
["А","09.05.017","Исследование уровня мочевины в крови","1 исследование",86]
["А","09.05.018","Исследование уровня мочевой кислоты в крови","1 исследование",97]
["А","09.05.020","Исследование уровня креатинина в крови","1 исследование",86]
["А","09.05.024","Исследование уровня общих липидов в крови","1 исследование",95]
["А","09.05.025","Исследование уровня триглицеридов в крови","1 исследование",156]
["А","09.05.026","Исследование уровня холестерина в крови ","1 исследование",89]
["А","09.05.027","Исследование уровня липопротеинов в крови","1 исследование",116]
["А","09.05.028","Исследование уровня липопротеинов низкой плотности","1 исследование",120]
["А","09.05.029","Исследование уровня фосфолипидов в крови","1 исследование",118]
["А","09.05.030","Исследование уровня натрия в крови","1 исследование",125]
["А","09.05.031","Исследование уровня калия в крови","1 исследование",126]
["A","09.05.032","Исследование уровня общего кальция в крови","1 исследование",124]
["A","09.05.033","Исследование уровня неорганического фосфора в крови","1 исследование",108]
["А","09.05.034","Исследование уровня хлоридов в крови","1 исследование",85]
["А","09.05.039","Исследование уровня лактатдегидрогеназы в крови","1 исследование",95]
["А","09.05.041","Исследование уровня аспартат-трансаминазы в крови","1 исследование",88]
["А","09.05.042","Исследование уровня аланин-трансаминазы в крови","1 исследование",88]
["А","09.05.043","Исследование уровня креатинкиназы в крови","1 исследование",149]
["А","09.05.044","Исследование уровня гамма-глютамилтрансферазы в крови","1 исследование",101]
["А","09.05.045","Исследование уровня амилазы в крови","1 исследование",150]
["А","09.05.046","Исследование уровня щелочной фосфатазы в крови","1 исследование",114]
["А","09.05.083","Исследование уровня гликированного гемоглобина в крови","1 исследование",110]
["А","09.05.104","Исследование тимоловой и сулемовой проб в сыворотке крови","1 исследование",89]
["A","09.05.195","Исследование уровня ракового эмбрионального антигена в крови","1 исследование",163]
["A","26.06.034","Определение антител классов M, G (IgG, IgM) к вирусу гепатита A (Hepatitis A virus) в крови","1 исследование",224]
["A","26.06.038","Определение антител классов M, G (IgM, IgG) к антигену вирусного гепатита B (HbeAg Hepatitis B virus) в крови","1 исследование",189]
["А","26.06.041","Определение антител классов M, G (IgM, IgG) к вирусному гепатиту C (Hepatitis C virus) в крови","1 исследование",219]
["A","26.06.048","Определение антител классов M, G (IgM, IgG) к вирусу иммунодефицита человека ВИЧ-1 (Human immunodeficiency virus HIV 1) в крови","1 исследование",693]
["A","26.06.082","Определение антител к бледной трепонеме (Treponema pallidum) в крови","1 исследование",197]
["A","26.06.082.003","Определение антител к бледной трепонеме( Treponema pallidum) в реакции пассивной гемаглютинации исследовании (РПГА)в крови","1 исследование",252]
["А","26.06.082.002","Определение антител к бледной трепонеме (Treponema pallidum) в иммуноферментном исследовании (ИФА) в сыворотке крови с кодом","1 исследование",260]
["A","09.05.048","Исследование уровня плазминогена в крови","1 исследование",162]
["A","09.05.050","Исследование уровня фибриногена в крови","1 исследование",163]
["A","09.05.188","Определение активности фактора VIII в сыворотке крови","1 исследование",168]
["A","08.20.012","Цитологическое исследование препарата тканей влагалища","1 исследование",164]
["A","09.01.003","Микроскопия мазков с поверхности кожи","1 исследование",156]
["A","09.01.004","Микроскопия волос (трихометрия)","1 исследование",156]
["A","09.01.006","Микроскопия ногтей","1 исследование",156]
["A","08.05.003","Исследование уровня эритроцитов в крови","1 исследование",124]
["A","08.05.004","Исследование уровня лейкоцитов в крови","1 исследование",109]
["A","08.05.005","Исследование уровня тромбоцитов в крови","1 исследование",114]
["A","08.05.006","Соотношение лейкоцитов в крови (подсчет формулы крови)","1 исследование",124]
["A","08.05.008","Исследование уровня ретикулоцитов в крови","1 исследование",159]
["A","09.05.003","Исследование уровня общего гемоглобина в крови","1 исследование",88]
["A","12.05.015","Исследование времени кровотечения","1 исследование",139]
["A","09.05.130","Исследование уровня простатспецифического антигена в крови","1 исследование",241]
["A","12.05.027","Определение протромбинового (тромбопластинового) времени в крови или в плазме","1 исследование",156]
["A","12.05.028","Определение тромбинового времени в крови","1 исследование",143]
["A","26.21.005","Микроскопическое исследование отделяемого из уретры на гарднереллы (Gardnerella vaginalis)","1 исследование",157]
["В","03.016.006","Анализ мочи общий","1 исследование",118]
["В","03.016.010","Копрологическое исследование","1 исследование",268]
["В","03.016.002","Общий (клинический) анализ крови","1 исследование",115]
["В","03.016.003","Общий (клинический) анализ крови развернутый","1 исследование",187]
["А","09.19.001","Исследование кала на скрытую кровь","1 исследование",69]
["А","09.19.002","Исследование кала на гельминты","1 исследование",122]
["А","09.20.001","Микроскопическое исследование влагалищных мазков","1 исследование",76]
["А","09.21.003","Микроскопическое исследование уретрального отделяемого и сока простаты","1 исследование",76]
["А","09.28.007","Исследование уровня желчных пигментов и их производных в моче","1 исследование",45]
["А","09.28.015","Обнаружение кетоновых тел в моче","1 исследование",45]
["А","09.28.015.001","Обнаружение кетоновых тел в моче  (с помощью тест полоски)","1 исследование",48]
["А","09.28.018","Анализ мочевых камней","1 исследование",133]
["А","09.28.006","Исследование уровня креатинина в моче (проба Реберга)","1 исследование",74]
["А","09.28.027","Определение альфа-амилазы в моче","1 исследование",97]
["А","09.30.010","Определение международного нормализованного отношения (МНО)","1 исследование",136]
["А","12.06.011","Проведение реакции Вассермана (RW)","1 исследование",260]
["А","12.05.004","Проба на совместимость перед переливанием крови","1 исследование",127]
["А","12.05.005","Определение основных групп крови (A, B, 0)","1 исследование",172]
["А","12.05.006","Определение резус-принадлежности","1 исследование",127]
["А","12.05.024","Определение холодовых антител в крови","1 исследование",135]
["A","26.06.077.001","Определение антител к сальмонелле тифи (Salmonella typhi) в крови (РПГА)","1 исследование",250]
["A","26.06.034.001"," Определение антител классов M, G (IgG, IgM) к вирусу гепатита A (Hepatitis A virus) в крови (Определение   гепатита В в крови)","1 исследование",151]
["A"," 26.06.034.005","Определение антител классов M, G (IgG, IgM) к вирусу гепатита A (Hepatitis A virus) в крови (Определение   гепатита С в крови)","1 исследование",159]
["A","26.06.034.006","Определение антител классов M, G (IgG, IgM) к вирусу гепатита A (Hepatitis A virus) в крови (Подтверждающий тест   гепатит  С )","1 исследование",158]
["A","26.06.048.001","Определение антител классов M, G (IgM, IgG) к вирусу иммунодефицита человека ВИЧ-1 (Human immunodeficiency virus HIV 1) в крови (Определение антител классов  к вирусу иммунодифицита человека ВИЧ-1,2 в крови)","1 исследование",387]
["A","26.06.082.006","Определение антител к бледной трепонеме (Treponema pallidum) в крови (Определение антител сифилиса в методом ИФА)","1 исследование",306]
["A","26.06.082.007 ","Определение антител к бледной трепонеме (Treponema pallidum) в крови (Реакция микропреципитации (Экспресс диагностика сифилиса))","1 исследование",127]
["A","26.20.006.001","Микроскопическое исследование отделяемого женских половых органов на аэробные и факультативно-анаэробные микроорганизмы (обнаружение антигена хламидии (Chlamydia trachomatis) методом ПИФ)","1 исследование",158]
["A","26.20.006.002","Микроскопическое исследование отделяемого женских половых органов на аэробные и факультативно-анаэробные микроорганизмы (обнаружение антигена уреаплазмы (Ureaplasma urealyticum) методом ПИФ)","1 исследование",158]
["A","26.20.006.003","Микроскопическое исследование отделяемого женских половых органов на аэробные и факультативно-анаэробные микроорганизмы (обнаружение антигена микоплазмы (Mycoplasma genitalium) методом ПИФ)","1 исследование",147]
["A","26.06.048.002","Определение антител классов M, G (IgM, IgG) к вирусу иммунодефицита человека ВИЧ-1 (Human immunodeficiency virus HIV 1) в крови(определение антител к вирусам иммунодефицита человека 1 и 2 типов (ВИЧ-1 и ВИЧ-2), ВИЧ-1 группы 0 и антигена Р 24 ВИЧ - 1\"). (В стоимость услуги не входит набор реагентов \"Тест-система иммуноферментная\")","1 исследование",226]
["Услуги кабинета предрейсовых послерейсовых осмотров"]
["В","01.045.002.001","Проведение экспертизы (исследования) состояния здоровья в отношении живых лиц (предрейсовый (или послерейсовый) медицинский осмотр водителей транспортных средств)","1 услуга",75]
["А","09.28.055.001.001","Определение наличия психоактивных веществ в моче с помощью тест-полоски (тест полоска \"Наркоскрим мульти\" на 5 видов наркотика)","1 исследование",643]
["А","09.28.055.001.002","Определение наличия психоактивных веществ в моче с помощью тест-полоски (тест полоска \"Наркоскрим мульти\" на 6 видов наркотика)","1 исследование",563]
["А","09.28.055.001.003","Определение наличия психоактивных веществ в моче с помощью тест-полоски (тест полоска \"Наркочек\" на 5 видов наркотика)","1 исследование",646]
["А","09.28.055.001.004","Определение наличия психоактивных веществ в моче с помощью тест-полоски (тест полоска \"ИХА-6-Мульти-Фактор\" на 6 видов наркотика)","1 исследование",490]
["А","09.28.055.001.005","Определение наличия психоактивных веществ в моче с помощью тест-полоски (тест полоска \"Креатив МП-6\" на 6 видов наркотика)","1 исследование",547]
["В","01.070.001.001","Медицинское освидетельствование на состояние опьянения (алкогольного, наркотического или иного токсического) (алкогольного с применением тест полоски алкострин)","1 освидетельствование",240]
["В","01.070.001.002","Медицинское освидетельствование на состояние опьянения (алкогольного, наркотического или иного токсического) (алкогольного с применением тест полоски алкосенсор)","1 освидетельствование",233]
["В","01.070.001.003","Медицинское освидетельствование на состояние опьянения (алкогольного, наркотического или иного токсического) (алкогольного с применением прибора для измерения концентрации алкоголя в выдыхаемом воздухе \"Анализатор паров этанола Lion Alcolmeter SD-400 (SD-400P))","1 освидетельствование",457]
["Услуги кабинета гирудотерапии"]
["A","14.05.001.001","Постановка пиявок (1 пиявка)","1 услуга",344]
["A","14.05.001.002","Постановка пиявок (2 пиявки)","1 услуга",408]
["A","14.05.001.003","Постановка пиявок (3 пиявки)","1 услуга",472]
["A","14.05.001.004","Постановка пиявок (4 пиявки)","1 услуга",535]
["A","14.05.001.005","Постановка пиявок (5 пиявок)","1 услуга",599]
["A","14.05.001.006","Постановка пиявок (6 пиявок)","1 услуга",662]
["A","14.05.001.007","Постановка пиявок (7 пиявок)","1 услуга",726]
["A","14.05.001.008","Постановка пиявок (8 пиявок)","1 услуга",790]
["A","14.05.001.009","Постановка пиявок (9 пиявок)","1 услуга",853]
["A","14.05.001.010","Постановка пиявок (10 пиявок)","1 услуга",917]
["А","14.05.001.011","Постановка пиявок (без учета стоимости пиявок)","1 услуга",281]
[" Услуги кабинета иглорефлексотерапии "]
["В","01.054.006","Прием (осмотр, консультация) врача - рефлексотерапевта первичный ","1 консультация",263]
["В","01.054.007","Прием (осмотр, консультация) врача - рефлексотерапевта повторный ","1 консультация",131]
["А","21.03.003.001","Рефлексотерапия при заболеваниях костной системы (иглорефлексотерапия)","1 сеанс",322]
["А","21.05.001.001","Рефлексотерапия при заболеваниях органов системы кроветворения и крови (иглорефлексотерапия)","1 сеанс",322]
["А","21.08.001.001","Рефлексотерапия при заболеваниях верхних дыхательных путей (иглорефлексотерапия)","1 сеанс",409]
["А","21.10.004.001","Рефлексотерапия при заболеваниях сердца и перикарда (иглорефлексотерапия)","1 сеанс",322]
["А","21.13.002.001","Рефлексотерапия при заболеваниях периферических сосудов (иглорефлексотерапия)","1 сеанс",322]
["А","21.14.002.001","Рефлексотерапия при заболеваниях печени, желчевыводящих путей (иглорефлексотерапия)","1 сеанс",322]
["А","21.15.001.001","Рефлексотерапия при заболеваниях поджелудочной железы (иглорефлексотерапия)","1 сеанс",322]
["А","21.16.001.001","Рефлексотерапия при заболеваниях пищевода, желудка и двенадцатиперстной кишки (иглорефлексотерапия)","1 сеанс",322]
["А ","21.20.003.001","Рефлексотерапия при заболеваниях женских половых органов (иглорефлексотерапия)","1 сеанс",322]
["А","21.21.002.001","Рефлексотерапия при заболеваниях мужских половых органов (иглорефлексотерапия)","1 сеанс",322]
["А","21.22.002.001","Рефлексотерапия при заболеваниях желез внутренней секреции (иглорефлексотерапия)","1 сеанс",322]
["А","21.23.002.001","Рефлексотерапия при заболеваниях центральной нервной системы (иглорефлексотерапия)","1 сеанс",322]
["А","21.24.002.001","Рефлексотерапия при заболеваниях периферической нервной системы (иглорефлексотерапия)","1 сеанс",322]
["А","21.25.001.001","Рефлексотерапия при заболеваниях органа слуха (иглорефлексотерапия)","1 сеанс",322]
["А","21.26.003.001","Рефлексотерапия при заболеваниях органа зрения (иглорефлексотерапия)","1 сеанс",216]
["А ","21.28.001.001","Рефлексотерапия при заболеваниях почек и мочевыделительного тракта (иглорефлексотерапия)","1 сеанс",322]
["Услуги отделения переливания крови"]
["А","18.05.001","Плазмаферез","1 услуга",1963]
["У С Л У  Г И   О Т Д Е Л Е Н И Й   С Т А Ц И О Н А Р А"]
["Терапевтическое отделение"]
["B","01.047.009","Ежедневный осмотр врачом-терапевтом с наблюдением и уходом среднего и младшего медицинского персонала в отделении стационара ","1 койко - день",708]
["B","01.047.009.001","Ежедневный осмотр врачом-терапевтом с наблюдением и уходом среднего и младшего медицинского персонала в отделении стационара (дополнительный осмотр и наблюдение в терапевтическом отделении)","1 койко - день",420]
["В","01.047.001.004","Прием (осмотр, консультация) врача - терапевта первичный (консультация заведующего отделением)","1 консультация",415]
["Кардиологическое отделение"]
["B","01.015.006","Ежедневный осмотр врачом-кардиологом с наблюдением и уходом среднего и младшего медицинского персонала в отделении стационара","1 койко - день",1557]
["В","01.015.001.003","Прием (осмотр, консультация) врача - кардиолога первичный (консультация заведующего отделением)","1 консультация",415]
["Неврологическое отделение"]
["B","01.023.003.001","Ежедневный осмотр врачом-неврологом с наблюдением и уходом среднего и младшего медицинского персонала в отделении стационара","1 койко - день",1367]
["B","01.023.003.002","Ежедневный осмотр врачом-неврологом с наблюдением и уходом среднего и младшего медицинского персонала в отделении стационара (дополнительный осмотр и наблюдение в неврологическом отделении)","1 пациенто - день",420]
["B","01.023.001.005","Прием (осмотр, консультация) врача - невролога первичный (консультация заведующего отделением)","1 консультация",450]
["Хирургическое отделение"]
["B","01.057.005","Ежедневный осмотр врачом-хирургом с наблюдением и уходом среднего и младшего медицинского персонала в отделении стационара ","1 койко - день",1147]
["B","01.057.001.003","Прием (осмотр, консультация) врача - хирурга первичный (консультация заведующего отделением)","1 консультация",484]
["А","16.21.004.001","Позадилонная аденомэктомия (Трансуратуальная  резекция аденомы простаты)","1 операция",9141]
["А","16.28.032.001","Реконструкция мочевого пузыря (Трансуратуальная  резекция полипов мочевого пузыря)","1 операция",9141]
["А","16.28.010.001","Аспирация почечной кисты или лоханки (Пункционное лечение кист почек)","1 операция",10076]
["А","16.14.009.002","Холецистэктомия лапароскопическая","1 операция",5067]
["А","16.30.001","Оперативное лечение пахово-бедренной грыжи","1 операция",10661]
["А","16.30.004","Оперативное лечение грыжи передней брюшной стенки","1 операция",10661]
["А","16.30.004.004","Операция при малой и средней послеоперационной грыже (сложная форма)","1 операция",10661]
["А","16.30.002","Оперативное лечение пупочной грыжи","1 операция",10661]
["А","16.21.013.001","Обрезание крайней плоти (по религиозному мировоззрению у детей)","1 операция",2732]
["Педиатрическое отделение"]
["В","01.031.005","Ежедневный осмотр врачом-педиатром с наблюдением и уходом среднего и младшего медицинского персонала в отделении стационара","1 койко - день",1197]
["В","01.031.005.002","Ежедневный осмотр врачом-педиатром с наблюдением и уходом среднего и младшего медицинского персонала в отделении стационара (дополнительный осмотр и наблюдение в педиатрическом отделении)","1 койко - день",420]
["В","01.031.005.003","Ежедневный осмотр врачом-педиатром с наблюдением и уходом среднего и младшего медицинского персонала в отделении стационара (с организацией индивидуального поста)","1 койко - день",487]
["В","01.031.001.005","Прием (осмотр, консультация) врача - педиатра первичный (консультация заведующего отделением)","1 осмотр",415]
["Травматолого-ортопедическое отделение"]
["B","01.050.003","Ежедневный осмотр врачом-травматологом-ортопедом с наблюдением и уходом среднего и младшего медицинского персонала в отделении стационара","1 койко - день",1517]
["B","01.050.001.005","Прием (осмотр, консультация) врача - травматолога - ортопеда первичный (консультация заведующим травматолого-ортопедическим отделением)","1 консультация",484]
["А","16.03.022.001","Соединение кости (Травматологическая опереация бедра (стержень))","1 операция",8763]
["А","16.03.022.002","Соединение кости (соединение кости голени пластиной)","1 операция",9490]
["А","16.03.022.003","Соединение кости (Остеосинтез пястных (плюсневых) костей)","1 операция",2690]
["А","16.03.022.004","Соединение кости (Остеосинтез лодыжек )","1 операция",8721]
["А","16.03.022.005","Соединение кости (Травматологическая опереация бедра (пластина))","1 операция",11988]
["А","16.03.021","Удаление внутреннего фиксирующего устройства","1 операция",2609]
["А","16.02.005","Пластика сухожилия ","1 операция",3221]
["А","16.03.022.006","Соединение кости (соединение кости голени посредством аппарата внешней фиксации )","1 операция",35358]
["А","16.03.022.007","Соединение кости (соединение кости плеча стержнем)","1 операция",22280]
["А","16.03.022.008","Соединение кости (соединение кости плеча пластиной)","1 операция",10058]
["А","16.03.022.009","Соединение кости (соединение кости ключицы пластиной)","1 операция",8357]
["А","16.03.022.010","Соединение кости (соединение кости предплечья пластиной)","1 операция",8771]
["А","16.30.019.003","Ампутация кисти","1 операция",1925]
["А","16.30.019.001","Ампутация плеча","1 операция",4713]
["А","16.30.019.002","Ампутация предплечья","1 операция",4713]
["А","16.30.019","Ампутация верхней конечности","1 операция",5677]
["А","16.30.019.004","Ампутация пальцев верх.кон","1 операция",1925]
["А","16.30.017.003","Ампутация пальцев нижней конечности","1 операция",1925]
["А","16.30.017","Ампутация нижней конечности","1 операция",5677]
["А","16.30.017.002","Ампутация стопы","1 операция",4569]
["А","16.30.017.001","Ампутация голени","1 операция",4713]
["Гинекологическое отделение"]
["B","01.001.007","Ежедневный осмотр врачом-акушером-гинекологом, с наблюдением и уходом среднего и младшего медицинского персонала в отделении стационара ","1 койко - день",726]
["B","01.001.007.002","Ежедневный осмотр врачом-акушером-гинекологом, с наблюдением и уходом среднего и младшего медицинского персонала в отделении стационара (дополнительный осмотр и наблюдение в гинекологическом отделении)","1 койко - день",420]
["B","01.001.001.003","Прием (осмотр, консультация) врача - акушера - гинеколога первичный (консультация заведующего отделением)","1 консультация",415]
["A","16.20.037.001","Искусственное прерывание беременности (аборт) (в круглосуточном стационаре)","случай госпитализации",2105]
["А","16.20.017.001","Удаление параовариальной кисты с использованием видеоэндоскопических технологий","1 операция",4733]
["А","16.20.035.001","Миомэктомия (энуклеация миоматозных узлов) с использованием видеоэндоскопических технологий","1 операция",5680]
["А","16.20.026","Рассечение и иссечение спаек женских половых органов","1 операция",2603]
["А","16.20.061.001","Резекция яичника с использованием видеоэндоскопических технологий","1 операция",4733]
["А","16.20.061.002","Резекция яичника с использованием видеоэндоскопических технологий с помощью коагулятора","1 операция",4733]
["А","16.30.007.004","Лапароскопическое дренирование брюшной полости","1 операция",3313]
["А","16.30.034.001.001","Лапароскопия (диагностическая (гинекологическое отделение))","1 операция",2839]
["А","16.30.036","Иссечение очагов эндометриоза","1 операция",3076]
["А","16.30.042.001","Лапароскопическая остановка внутрибрюшного кровотечения","1 операция",2839]
["A","03.20.003","Гистероскопия","1 операция",2523]
["A","03.20.003.001","Гистерорезектоскопия","1 операция",2969]
["A","16.20.001.001","Удаление кисты яичника с изспользованием видеоэндоскопических технологий","1 операция",4733]
["A","16.20.003.001","Сальпинго-оофорэктомия с использованием видеоэндоскопических технологий","1 операция",4733]
["A","16.20.004.001","Сальпингэктомия с использованием видеоэндоскопических технологий","1 операция",4733]
["A","16.20.041.001","Стерилизация маточных труб  с использованием видеоэндоскопических технологий","1 операция",4023]
["A","16.20.038","Операции по поводу бесплодия на придатках матки","1 операция",4733]
["Акушерское обсервационное отделение"]
["В","01.001.008.001","Ежедневный осмотр врачом-акушером-гинекологом беременной, с наблюдением и уходом среднего и младшего медицинского персонала в отделении стационара","1 койко - день",2029]
["B","01.001.001.004","Прием (осмотр, консультация) врача - акушера - гинеколога первичный (консультация заведующего отделением)","1 консультация",415]
["F","01.02.","Однодневное пребывание в палате повышенной комфортности в акушерско-обсервационном отделении, с НДС 18%","1 койко - день",489]
["F","01.10.","Однодневное пребывание в палате повышенной сервисности акушерско-обсервационном отделении, с НДС 18%","1 койко - день",384]
["Отделение анестезиологии - реанимации"]
["B","01.03.001","Осмотр (консультация) врачом-анестезиологом-реаниматологом первичный","1 консультация",330]
["В","01.003.003","Суточное наблюдение врачом-анестезиологом-реаниматологом","1 койко - день",9528]
["В","01.003.004.013","Анестезиологическое пособие (включая раннее послеоперационное ведение)(внутривенный наркоз длительностью до 1 часа)","1 час услуги",2004]
["В","01.003.004.014","Анестезиологическое пособие (включая раннее послеоперационное ведение)(внутривенный наркоз на любое время операций)","1 услуга",2695]
["В","01.003.004.007","Спинальная анестезия","1 услуга",1357]
["Инфекционное отделение"]
["В","01.014.003","Ежедневный осмотр врачом-инфекционистом с наблюдением и уходом среднего и младшего медицинского персонала в отделении стационара ","1 койко - день",1725]
["В","01.014.003.002","Ежедневный осмотр врачом-инфекционистом с наблюдением и уходом среднего и младшего медицинского персонала в отделении стационара (дополнительный осмотр и наблюдение в инфекционном отделении)","1 койко - день",420]
["В","01.014.001.004","Прием (осмотр, консультация) врача - инфекциониста первичный (консультация заведующего отделением)","1 консультация",450]
["А","14.19.002.001","Постановка очистительной клизмы (детскому населению)","1 процедура",289]
["А","14.19.002.002","Постановка очистительной клизмы (взрослому населению)","1 процедура",297]
["Приемное отделение"]
["В","01.047.015.01","Сеанс детоксикационной терапии","1 сеанс",1847]
["А","02.01.004","Измерение массы тела","1 услуга",25]
["А","02.03.005","Измерение роста","1 услуга",25]
["Терапевтическое отделение Болхунской участковой больницы"]
["B","01.047.009.004","Ежедневный осмотр врачом-терапевтом с наблюдением и уходом среднего и младшего медицинского персонала в отделении стационара (в терапевтическом отделении Болхунской участковой больницы)","1 койко - день",699]
["Отделение сестринского ухода Болхунской участковой больницы"]
["B","01.047.009.005","Ежедневный осмотр врачом-терапевтом с наблюдением и уходом среднего и младшего медицинского персонала в отделении стационара (в отделении сестринского ухода Болхунской участковой больницы)","1 койко - день",350]
["Терапевтическое отделение Золотухинской участковой больницы"]
["B","01.047.009.004","Ежедневный осмотр врачом-терапевтом с наблюдением и уходом среднего и младшего медицинского персонала в отделении стационара (в терапевтическом отделении Золотухинской участковой больницы)","1 койко - день",713]
["СТОМАТОЛОГИЧЕСКИЕ УСЛУГИ"]
[]
[" Стоматологические услуги, оказываемые населению в возрасте до 18 лет"]
[1,"101","Консультация врача","1 посещение",91]
[1,103,"Анестезия","1 шт",91]
[1,104,"Инъекция","1 шт",91]
[1,105,"Оказание помощи при острой боли","1 посещение",91]
[1,106,"Анестезия аппликационная","1 шт",45]
[1,107,"Полировка пломбы","1 зуб",45]
[1,110,"Комплексное первичное обследование ребенка с регистрацией в учетной документации","1 зуб",362]
[1,111,"Осмотр полости рта первичного больного с регистрацией в учетной документации","1 посещение",91]
[1,112,"Определение сост.прикуса, пародонта, индекса КПУ","1 посещение",91]
[1,113,"Определение индекса гигиены, РМА, очаговой  деминерализации","1 посещение",91]
[1,114,"Определение степени активности кариеса 1 и 2 степ. активности","1 посещение",91]
[2,201,"Осмотр полости рта первичного больного, сбор анамнеза заболевания, оформление документов первичного больного","1 посещение",91]
[2,202,"Оформление документации при повторном посещении /для сложных заболеваний/","1 посещение",45]
[2,203,"Лечение 1 зуба при несложном кариесе 1 и 2 степени активности","1 зуб",181]
[2,207,"Комплексное лечение 1 зуба при неосложненном кариесе 3 степ. активности","1 зуб",362]
[2,211,"Ремтерапия под контролем окрашивания зуба - первый сеанс","1 зуб",272]
[2,212,"Ремтерапия под контролем окрашивания зуба – промежуточный сеанс","1 зуб",91]
[2,213,"Ремтерапия под контролем окрашивания зуба – заключительный сеанс","1 зуб",272]
[2,220,"Окончательное лечение пульпита временного зуба в 2 и более посещений","1 зуб",453]
[2,221,"Окончательное лечение пульпита в 2 и более посещений однокорневого постоянного зуба","1 зуб",634]
[2,222,"Окончательное лечение пульпита в 2 и более посещений двухкорневого зуба","1 зуб",815]
[2,223,"Окончательное лечение пульпита в 2 и более посещений трехкорневого зуба","1 зуб",996]
[2,224,"Наложение мышьяковистой пасты","1 зуб",91]
[2,225,"Лечение пульпита постоянного зуба при несформировавшихся корнях ампутационным методом","1 зуб",543]
[2,226,"Лечение травматического пульпита однокорневого постоянного зуба под анестезией","1 зуб",724]
[2,230,"Окончательное лечение периодонтита временного  или постоянного зуба импрегнационным методом","1 зуб",453]
[2,231,"Окончательное лечение периодонтита однокорневого постоянного зуба","1 зуб",724]
[2,232,"Окончательное лечение периодонтита двухкорневого  зуба","1 зуб",769]
[2,233,"Окончательное лечение периодонтита трехкорневого  зуба","1 зуб",996]
[2,234,"Раскрытие поломки зуба, удаление распада из каналов","1 зуб",91]
[2,260,"Изготовление вкладки","1 зуб",1086]
[2,261,"Исследование и консервативное лечение при травматических повреждениях 1-го зуба","1 зуб",272]
[2,262,"Реставрация зубов с устранением дефектов пломб или удаление  пломбы","1 зуб",181]
[2,263,"Восстановление анатомической формы зуба при гитоплазии, флюорозе в одном зубе","1 зуб",272]
[2,270,"Лечение острых форм стоматита /ОГС, РГС, трав/ первое посещение","1 посещение",272]
[2,271,"Лечение острых форм стоматита повторное посещение","1 посещение",181]
[2,272,"Исследование и лечение ребенка с рецидивир. формами заболеваний и изменений слизистых  оболочек полости рта, губ - первичное посещение","1 посещение",362]
[2,273,"Лечение ребенка с рецидивир. формами заболеваний и изменений слизистых оболочек полости рта и губ – послед посещение","1 посещение",181]
[2,274,"Исследование и лечение ребенка с заболеваниями пародонта первое  посещение","1 посещение",362]
[2,275,"Исследование и лечение ребенка с заболеваниями пародонта последующее  посещение","1 посещение",181]
[2,276,"Удаление зубного камня у 2-4 зубов в одно посещение","1 посещение",181]
[2,277,"Пришлифовывание 2-4 зубов под контролем онклюзиограммы","1 посещение",181]
[3,301,"Консультация ребенка с врачом стоматологом-хирургом или врачом-ортодонтом","1 посещение",181]
[3,302,"Проведение инъекционной анестезии","1 шт",91]
[3,303,"Удаление временного зуба","1 зуб",91]
[3,304,"Удаление постоянного зуба простое","1 зуб",181]
[3,305,"Удаление постоянного зуба сложное","1 зуб",272]
[3,306,"Удаление постоянного зуба с вмешательством на альвеал. отростке","1 зуб",543]
[3,307,"Удаление постоянного зуба с компактостеотомией","1 зуб",272]
[3,308,"Вскрытие абсцесса","1 посещение",181]
[3,309,"Перевязка","1 посещение",136]
[3,310,"Перевязка гнойной раны с дренированием","1 посещение",181]
[3,311,"Операция иссечения капюшона","1 посещение",136]
[3,312,"Операция пластики уздечки","1 посещение",362]
[3,313,"Операция цистотомии","1 посещение",453]
[3,314,"Операция цистэктомии","1 посещение",543]
[3,315,"Операция компактостеотомии в области 2 зубов","1 посещение",181]
[3,316,"Операция цистотомии с резекцией верхушки корня","1 посещение",724]
[3,317,"Операция с резекцией верхушки корня","1 посещение",543]
[3,318,"Операция удаления сверхкомплектного зуба","1 зуб",543]
[3,319,"Операция удаления нескольких сверхкомплектных зубов в одной зоне","1 посещение",724]
[3,320,"Операция удаления новообразования мягких тканей","1 посещение",453]
[3,321,"Лечение ребенка с заболеванием слюнных желез первичное  обследование","1 посещение",543]
[3,322,"Лечение ребенка с заболеванием слюнных желез последующее обследование","1 посещение",272]
[3,323,"Исследование и лечение ребенка с травмами челюстно-лицевой области","1 посещение",181]
[3,324,"Первичная хирургическая обработка раны","1 посещение",362]
[3,325,"Лечение травматол. повреждения зубов и альвеол. отростка","1 посещение",453]
[3,326,"Операция удаления доброкачественного новообразования альвеоляр. отростка","1 посещение",543]
[4,401,"Составление плана профилактики для 1 ребенка с регистрацией его в карте","1 посещение",91]
[4,402,"Обучение, консультация матери","1 посещение",181]
[4,403,"Миотерапия","1 посещение",272]
[4,404,"Проведение профессиональной гигиены всех зубов","1 посещение",543]
[4,405,"Местное применение ременирализующих препаратов","1 зуб",91]
[4,406,"Покрытие фторлаком зубов","1 посещение",362]
[4,407,"Сеанс аппликации фтор - цементом в одном зубе","1 зуб",91]
[4,408,"Сошлифовывание бугров временных зубов","1 зуб",91]
[4,409,"Сепарация временных зубов","1 зуб",91]
[4,410,"Гигиенический контроль и обучение гигиене полости рта","1 посещение",181]
[4,411,"Закрытие фиссур герметиком в одном зубе","1 зуб",181]
[]
["Стоматологические услуги, оказываемые населению в возрасте старше 18 лет"]
["В","04.065.002","Профилактический прием (осмотр, консультация) врача-стоматолога-терапевта","1 посещение",91]
[1,102,"Оказание помощи при острой зубной боли","1 посещение",91]
[1,103,"Инъекция /исключая при удалении зуба/","1 шт",91]
[1,104,"Анестезия","1 шт",91]
[1,105,"Анестезия аппликационная","1 шт",45]
[1,106,"Избирательное пришлифовывание 4-х зубов",null,181]
["На приеме больных терапевтического профиля"]
[2,201,"Осмотр полости рта первичного больного, сбор анамнеза заболевания, оформление документов первичного больного","1 посещение",91]
[2,202,"Оформление документации при повторном посещении/только для заболевания слизистой оболочки полости рта, для сложных заболеваний: флегмоны, абсцессы, переломы/","1 посещение",45]
[2,203,"Наложение постоянной пломбы при поверхностном и среднем кариесе за каждую пломбу","1 зуб",181]
[2,204,"Наложение постоянной пломбы при глубоком кариесе за каждую пломбу","1 зуб",272]
[2,211,"Лечение пульпита односеансным методом однокорневого зуба","1 зуб",724]
[2,212,"Лечение пульпита односеансным методом двухкорневого зуба","1 зуб",905]
[2,213,"Лечение пульпита односеансным методом трехкорневого зуба","1 зуб",1086]
[2,221,"Окончательное лечение пульпита однокорневого зуба в 2 и более посещения","1 зуб",543]
[2,222,"Окончательное лечение пульпита двухкорневого зуба в 2 и более посещения","1 зуб",724]
[2,223,"Окончательное лечение пульпита трехкорневого зуба в 2 и более посещения","1 зуб",905]
[2,224,"Наложение мышьяковистой пасты в 1 зуб","1 зуб",91]
[2,225,"Лечение пульпита ампутационным методом","1 зуб",543]
[2,231,"Лечение периодонтита в 1 посещение однокорневого зуба","1 зуб",634]
[2,232,"Лечение периодонтита в 1 посещение двухкорневого зуба","1 зуб",815]
[2,233,"Лечение периодонтита в 1 посещение трехкорневого зуба","1 зуб",996]
[2,241,"Окончательное лечение периодонтита однокорневого зуба в 2 и более посещений","1 зуб",453]
[2,242,"Окончательное лечение периодонтита двухкорневого зуба в 2 и более посещений","1 зуб",634]
[2,243,"Окончательное лечение периодонтита трехкорневого зуба","1 зуб",815]
[2,244,"Раскрытие зуба, удаление распада из корневых каналов","1 зуб",91]
["Распломбирование корневых каналов"]
[2,251,"Однокорневой зуб, канал пломбирован пастой на окисьцинковой основе","1 зуб",362]
[2,252,"Однокорневой зуб, канал пломбирован пастой полимеризующейся /резорц. форм./","1 зуб",905]
[2,253,"Однокорневой зуб, канал пломбирован фосфат -цементом","1 зуб",1086]
[2,254,"Двухкорневой зуб, каналы пломбированы пастой на окисьцинковой основе","1 зуб",543]
[2,255,"Двухкорневой зуб, каналы пломбированы пастой полимеризующейся /резорц. форм./","1 зуб",1177]
[2,256,"Двухкорневой зуб, каналы пломбированы фосфат -цементом","1 зуб",1358]
[2,257,"Трехкорневой зуб, каналы пломбированы пастой на окисьцинковой основе","1 зуб",634]
[2,258,"Трехкорневой зуб, каналы пломбированы пастой полимеризующейся /резорц. форм./","1 зуб",1448]
[2,259,"Трехкорневой зуб, каналы пломбированы фосфат -цементом","1 зуб",1629]
[2,260,"Извлечение инородного тела из канала фронтального зуба","1 зуб",724]
[2,261,"Извлечение инородного тела из каналов многокорневого зуба","1 зуб",1448]
[2,271,"Восстановление разрушенной коронки с помощью проволочного каркаса фиксируемого в парапульпарных каналов однокорневого зуба","1 зуб",905]
[2,272,"Восстановление разрушенной коронки с помощью проволочного каркаса фиксируемого в парапульпарных каналов многокорневого зуба","1 зуб",1086]
[2,280,"Снятие пломбы","1 зуб",181]
[2,290,"Терапевтическое лечение травмы однокорневого зуба/скол части коронки зуба с сохранившейся пульпой/","1 зуб",905]
[2,291,"Терапевтическое лечение травмы однокорневого зуба/перелом корня зуба с сохранившейся коронкой, репозиция отломков штифтом/","1 зуб",1086]
[2,292,"Терапевтическое лечение травмы однокорневого зуба/перелом корня зуба с частично сколотой коронкой/","1 зуб",1177]
[3,300,"Устранение дефекта пломбы","1 зуб",181]
[3,301,"Снятие зубных отложений в области нижних фронтальных зубов в 1 посещение","1 посещение",181]
[4,401,"Оформление документации первичного больного с заболеванием пародонта и слизистой полости рта, сбор анамнеза","1 посещение",181]
[4,402,"Осмотр полости рта, оформление документации больного с заболеванием пародонта, обратившегося в отчетном году для повторного лечения","1 посещение",91]
[4,403,"Определение гигиенических индексов","1 посещение",272]
[4,404,"Вакуум-терапия","1 посещение",91]
[4,410,"Удаление зубного камня ручным способом с 1/4 челюсти","1 посещение",181]
[4,411,"Удаление зубного камня ультразвуком с 1/4 челюсти","1 посещение",136]
[4,412,"Удаление зубного камня с 1/4 челюсти ручным способом и ультразвуком","1 посещение",317]
[4,420,"Медикаментозная обработка патологических десневых карманов /орошение, аппликация, инстилляция, повязки и др./","1 посещение",181]
[4,421,"Кюретаж пародонтальных карманов в области 1 зуба","1 зуб",91]
[4,422,"Временное шинирование 6/8 зубов пластмассой, лигатурой","1 посещение",272]
[4,423,"Вскрытие пародонтального абсцесса","1 посещение",91]
[4,424,"Гингивопластика в области 6-ти зубов","1 посещение",815]
[4,425,"Ампутация корня","1 зуб",362]
[4,426,"Удаление пародонтальной кисты в области 1-2 зубов","1 посещение",453]
[4,427,"Удаление пародонтальной кисты 3-4 зубов","1 посещение",724]
[4,430,"Открытый кюретаж патологических десневых карманов в области 2-х зубов","1 посещение",272]
[4,432,"Местная флюоризация (покрытие фторлаком всех зубов)","1 посещение",91]
[4,441,"Осмотр полости рта, сбор анамнеза, оформление документации первичного больного на хирургическом приеме","1 посещение",181]
[4,442,"Оформление документации хирургического больного на повторном приеме","1 посещение",45]
[4,443,"Лечение заболеваний слюнных желез","1 посещение",181]
[4,444,"Временное шинирование при вывихе зуба","1 зуб",181]
[4,445,"Лечение больного с переломом /смена тяги, лигатур, коррекция шин/","1 посещение",181]
[4,446,"Лечение остеомиелита (операция сквестрэктомии)","1 посещение",272]
[4,447,"Оказание помощи при неотложных состояниях (обморок, коллапс, шок)","1 посещение",272]
[4,448,"Лечение одонтогенного гайморита","1 посещение",181]
[4,451,"Удаление зуба простое/корень, пародонтит,3,4 степень/","1 зуб",136]
[4,452,"Удаление зуба сложное/с применением метода выдалбливания/","1 зуб",272]
[4,453,"Удаление зуба с отслаиванием слизисто-надкостного лоскута, выпиливание фрагмента кортикальной пластинки альвеолярного отростка","1 зуб",543]
[4,454,"Перевязка после сложного хирургического вмешательства","1 посещение",136]
[4,455,"Повязка после удаления зуба/медикаментозная обработка лунки/","1 посещение",91]
[4,456,"Вскрытие абсцесса, дренирование","1 посещение",181]
[4,457,"Лечение периостита/промывание раны, дренирование и др./","1 посещение",181]
[4,458,"Лечение альвеолита с кюрретажем лунки","1 посещение",226]
[4,459,"Операция-резекция верхушки корня, цистэктомия","1 посещение",543]
[4,460,"Операция-резекция верхушки, цистэктомия с ретроградным пломбированием корня зуба","1 посещение",815]
[4,461,"Операция - цистэктомия с резекцией корня","1 посещение",362]
[4,464,"Операция - удаление апулиса с ростковой зоной","1 посещение",453]
[4,465,"Операция – иссечение доброкачественного образования мягкий тканей полости рта /папиллома, фиброма/","1 посещение",362]
[4,466,"Операция-вылущивание ретенционной кисты","1 посещение",453]
[4,467,"Операция-остеотомия альвеолотомия","1 посещение",181]
[4,468,"Операция - периостомия","1 посещение",91]
[4,469,"Операция - гемисекция","1 посещение",362]
[4,470,"Операция-иссечение капюшона слизистой оболочки при затрудненном прорезывании зуба мудрости","1 посещение",136]
[4,471,"Лечение заболеваний височно-нижнечелюстного сустава 1 пос.","1 посещение",226]
[4,472,"Первичная хирургическая обработка раны с наложением косметического шва на рану","1 посещение",362]
[4,473,"Репозиция и иммобилизация отломков нижней челюсти проволочными шинами с межчелюстной резиновой  фиксацией","1 посещение",905]
[4,475,"Снятие швов","1 посещение",91]
[4,476,"Снятие шин","1 посещение",362]
[4,477,"Лечение невралгий методом блокад","1 посещение",317]
[4,478,"Временная иммобилизации нижней челюсти лигатурной повязкой","1 посещение",453]
[4,479,"Постинъекционный тризм","1 посещение",91]
[4,480,"Отсроченный кюретаж","1 посещение",91]
[4,481,"Пластика свища при перфорации","1 посещение",543]
[4,482,"Оказание помощи при кровотечении","1 посещение",91]
[4,483,"Оказание помощи при гематоме","1 посещение",91]
[4,484,"Оказание помощи при перфорации","1 посещение",91]
[4,485,"Пластика уздечки","1 посещение",362]
[4,486,"Удаление камня из протока слюнной железы","1 посещение",362]
[4,487,"Введение рентгено-контрастного вещества в слюнную железу","1 посещение",181]
[]
["Примечание: В ценах на стоматологические услуги, оказываемые населению в возрасте до 18 лет и старше 18 лет не учтена стоимость импортных материалов и препаратов."]
[]
["Услуги рентгеновского кабинета стоматологической  поликлиники"]
[5,500,"Рентгеновский снимок внутриротовой не более 2-х зубов","1 снимок",44]
[5,501,"Рентгеновский снимок внеротовой","1 снимок",127]
[5,502,"Лазерная терапия 1 сеанс","1 сеанс",36]
["Радиовизиографическое исследование зубов:"]
[5,"505","Радиовизиографическое исследование зубов","1 исследование",126]
["Услуги, оказываемые отделением зубопротезирования"]
[null,null,"Съемные пластинчатые протезы из пластмассы. Изготовление съемного протеза с зубами:"]
[null,"100","- с одним зубом","1 шт",1141]
[null,"101","- с двумя зубами","1 шт",1248]
[null,"102","- с тремя зубами","1 шт",1355]
[null,"103","- с четырьмя зубами","1 шт",1462]
[null,"104","- с пятью зубами","1 шт",1569]
[null,"105","- с шестью зубами","1 шт",1675]
[null,"106","- с семью зубами","1 шт",1782]
[null,"107","- с восьмью зубами","1 шт",1817]
[null,"108","- с девятью зубами","1 шт",1852]
[null,"109","- с десятью зубами","1 шт",1887]
[null,"110","- с одиннадцатью зубами","1 шт",1922]
[null,"111","- с двенадцатью зубами","1 шт",2010]
[null,"112","- с тринадцатью зубами","1 шт",2045]
[null,"113","- с четырнадцатью зубами","1 шт",2080]
[null,"119","- с комплектом импортных зубов Ямахачи\"","1 шт",2150]
[null,"120","- с комплектом исскуственных зубов Сывлах\"","1 шт",2011]
[null,null,"Замена или установка в протезе дополнительного зуба:"]
[null,"115","- одного зуба","1 шт",838]
[null,"116","- двух зубов","1 шт",928]
[null,"117","- трех зубов","1 шт",935]
[null,"118","- четырех зубов","1 шт",943]
[null,null,"Изготовление:"]
[null,"138","- цельнолитого зуба","1 шт",1637]
[null,"142","- индивидуальной ложки","1 шт",583]
[null,"143","- кламмера гнутого из стали","1 шт",70]
[null,"146","- цельнолитой коронки","1 шт",1873]
[null,"168","- штифтово-культевой вкладки","1 шт",1505]
[null,null,"Изготовление коронки"]
[null,201,"- штампованной стальной","1 шт",569]
[null,203,"- штампованной стальной с облицовкой по Белкину","1 шт",930]
[null,205,"- пластмассовой","1 шт",668]
[null,206,"- двуцветной пластмассовой","1 шт",892]
[null,null,"Изготовление зуба"]
[null,216,"- литого из стали","1 шт",499]
[null,217,"- литого из стали с пластмассовой фасеткой","1 шт",1091]
[null,null,"Изготовление:"]
[null,222,"- комплекта импортных зубов (28 зубов)","1 комплект",343]
[null,226,"- лапки в мостовидном протезе","1 шт",125]
[null,229,"Спайка деталей","одна",144]
[null,"230","Обработка спаек деталей","одна",63]
[null,231,"Изготовление коронки металлокерамической ","1 шт",3225]
[null,null,"Изготовление литой базисной пластины из кобальтохромового сплава:"]
[null,301,"- без напыления","1 шт",2068]
[null,null,"Изготовление:"]
[null,430,"Коронка стальная с напылением (титановым, циркониевым)","1 шт",622]
[null,435,"Литок стальной с напылением (титановым, циркониевым)","1 шт",570]
[null,436,"Стальная фасетка с напылением (титановым, циркониевым)","1 шт",1375]
[null,"443","Коронка стальная  с пластмассовой облицовкой по Белкину с напылением (титановым, циркониевым)","1 шт",1162]
[null,447,"Изготовление кламмера гнутого из стали с напылением (титановым, циркониевым)","1 шт",105]
[null,null,"Доплата за напыление (титановое, циркониевое):"]
[null,472,"- кламмера ","1 шт",60]
[null,473,"- коронки, фасетки, литка, оклюзионной накладки","1 шт",150]
[null,501,"Устранение 1 перелома базиса в протезе","1 шт",513]
[null,502,"Устранение 2 перелома базиса в протезе","1 шт",713]
[null,503,"Снятие искусственной коронки","1 шт",84]
[null,505,"Изготовление контрольной модели","1 шт",212]
[null,null,"Замена, перенос:"]
[null,506,"- одного кламмера","1 шт",452]
[null,507,"- двух кламмеров","1 шт",590]
[null,509,"Избирательное пришлифовывание зубов (протез с пластмассовыми зубами)","1 шт",278]
[null,511,"Перебазировка полного съемного протеза","1 шт",640]
[null,517,"Коррекция протеза","1 шт",160]
[null,518,"Оклюзионная накладка на коронку из стали","1 шт",145]
[null,522,"Снятие или распил цельнолитой коронки","1 шт",167]
[null,534,"Консультация врача","1 консультация",250]
[null,null,"Снятие слепков из материала:"]
[null,605,"- спидекс (база + крем)","1 шт",583]
[null,609,"- кромопан","1 шт",233]
[null,613,"Снятие двойного слепка из материала «Зетаплюс»","1 шт",583]
[null,null,"Фиксация коронки материалом:"," "]
[null,610,"- кетак-цем","1 шт",226]
[null,"611","-цемион-Ф","1 шт",228]
[null,612,"- фуджи 1","1 шт",286]
[null,614,"- ортофикс-аква","1 шт",161]
[null,677,"Изготовление эластичной прокладки к базису протеза","1 шт",1118]
[null,null,"Нанесение золотого покрытия (985 проба) раствором КЭМАДЕНТ :"]
[null,"694","- бисико С 4","1 шт",1457]
[null,"695","Изготовление цельнолитой фасетки","1 шт",1738]
["B","03.069.001","Дезинфекция слепков (не более 4-х слепков)","1 услуга",136]
[null,"Стоматологические услуги, оказываемые населению с применением    импортных материалов и препаратов"]
[null,"№ п/п","                                   Наименование услуг","единица измерения"," Тариф, в руб."]
[null,1,2,3,4]
[null,"1.","Лечение заболеваний и травм зубочелюстной системы с применением местных анестетиков:"]
[null,null,"Артикаин","1 шт",136]
[null,null,"Одноразовый комплект артикаина","1 шт",161]
[null,null,"Скандонест","1 шт",149]
[null,null,"Ультракаин","1 шт",165]
[null,null,"Одноразовый комплект для анестезии","1 услуга",185]
[null,"2.","Лечение заболеваний и травм зубочелюстной системы с применением остеотропных материалов:"]
[null,null,"Неоконус","1 посещение",101]
[null,null,"Колапол","1 посещение",227]
[null,"3.","Лечение заболеваний и травм зубочелюстной системы с применением антимикробных, противовоспалительных, антисептических материалов:"]
[null,null,"Вискостат","1услуга",88]
[null,null,"Антисептическая и обезбаливающая повязка \"Surgical Dnessing\"","1 повязка",105]
[null,null,"Альвеожил","1 посещение",61]
[null,null,"Крезофен","1 зуб",64]
[null,null,"Паста септопак","1 посещение",54]
[null,null,"Пленка Диплен-Дента","1 посещение",84]
[null,null,"Солкосерил","1 посещение",78]
[null,null,"Мазь \"Траумель\"","1 посещение",93]
[null,null,"Холисал","1 посещение",60]
[null,null,"Прорут","1 посещение",82]
[null,null,"КАМФОРФЕН","1 услуга",48]
[null,null,"Альвостаз","1 услуга",90]
[null,"4.","Лечение заболеваний и травм зубочелюстной системы с применением композитов, светового отверждения:"]
[null,null,"Прайм-бонд","1 услуга",9]
[null,null,"Дайрект АР","1 зуб",744]
[null,null,"Филтек (зет 250)","1 зуб",751]
[null,null,"Филтек (ультимейт)","1 зуб",668]
[null,null,"Спектрум","1 зуб",578]
[null,null,"Эстет-икс ","1 зуб",825]
[null,null,"Церам икс ","1 зуб",658]
[null,null,"Градия директ ","1 зуб",668]
[null,null,"Икс флоу ","1 зуб",605]
[null,null,"Твинки Стар","1 зуб",373]
[null,null,"\"Прайм-Дент\" световой","1 зуб",469]
[null,null,"Эстилайт сигма","1 зуб",644]
[null,null,"Сингл бонд (адгезив)","1 услуга",6]
[null,"5.","Лечение заболеваний и травм зубочелюстной системы с применением композитов химического  отверждения:"]
[null,null,"Композит","1 зуб",280]
[null,null,"Харизма","1 зуб",281]
[null,null,"Прайм Дент","1 услуга",285]
[null,"6. ","Лечение заболеваний и травм зубочелюстной системы с применением стеклоиномерных цементов:"]
[null,null,"СДР","1 услуга",238]
[null,null,"Фуджи","1 зуб",259]
[null,null,"Кетак-моляр","1 зуб",199]
[null,null,"Кемфил ","1 зуб",98]
[null,null,"Аргион","1 услуга",308]
[null,"7. ","Лечение заболеваний и травм зубочелюстной системы с применением кальций содержащих  лечебных материалов:"]
[null,null,"Кальцимол ЛС","1 зуб",166]
[null,null,"Дайкал","1 зуб",167]
[null,"8.","Лечение заболеваний и травм зубочелюстной системы с применением реминерализующего средства:"]
[null,null,"Сафорайд","1 зуб",104]
[null,null,"Флюокаль-гель","1 посещение",194]
[null,null,"Эмаль-герметизирующий","1 зуб",63]
[null,null,"Дентин -герметизирующий","1 зуб",60]
[null,null,"Сноу-флолли","1 зуб",214]
[null,null,"Глубокое фторирование твердых тканей зубов","1 услуга",210]
[null,null,"Глуфторед","1 услуга",49]
[null,"9.","Лечение заболеваний и травм зубочелюстной системы с применением материалов, для обтурации корневых каналов:"]
[null,null,"Эндометазон","1 зуб",136]
[null,null,"Гранулотек","1 услуга",86]
[null,null,"Эйч плюс","1 зуб",119]
[null,null,"Штифт гуттаперчивый","1 шт",46]
[null,null,"Метапекс","1 услуга",299]
[null,10,"Лечение заболеваний и травм зубочелюстной системы с применением компомерных светоотверждаемых подкладочных материалов:"]
[null,null,"Ионосит","1 зуб",122]
[null,"11.","Лечение заболеваний и травм зубочелюстной системы с применением герметиков фиссурных светоотверждаемых:"]
[null,null,"Ультрасил ХТ плюс","1 услуга",113]
[null,null,"Фиссурит","1 зуб",127]
[null,"12.","Лечение заболеваний и травм зубочелюстной системы с применением девитализирующих материалов:"]
[null,null,"Пульпотек","1 зуб",105]
[null,"13.","Лечение заболеваний и травм зубочелюстной системы с применением паст полировочных:"]
[null,null,"Детатрин зет","1 зуб",93]
[null,null,"Полировочный набор","1 зуб",93]
[null,"14.","Лечение заболеваний и травм зубочелюстной системы с применением внутриканальных штифтов:"]
[null,null,"Униметрик","1 шт",210]
[null,null,"Анкерный штифт","1 шт",191]
[null,null,"Стекловолоконный штифт","1 шт",222]
[null,null,"Эндосистема \"икадент\" ","1 шт",255]
[null,"15.","Лечение заболеваний и травм зубочелюстной системы с применением самоадгезивного композита цемента двойного отверждения Реликс ТМ В 100","1 зуб",242]
[null,"16.","Распломбировка одного корневого канала, пломбированного резорцинформалиновой пастой","1 зуб",500]
[null,"17.","Распломбировка одного корневого канала, пломбированногофосфат-цементом","1 зуб",600]
[null,"18.","Извлечение фиксированного инородного тела из одного корневого канала","1 зуб",400]
[null,"19.","Удаление зубных отложений с помощью ультразвуковой аппаратуры полностью (не менее 5 зубов)","1 посещение",100]
[null,"20.","Шинирование зубов с применением композита (в области одного зуба)","1 зуб",100]
[null,"21.","Вестибулопластика в области шести зубов","1 посещение",400]
[null,"      22 .Ортодонтический прием"]
[null,"22.1","Смена чейна","1 шт",165]
[null,"22.2","Постановка раскрывающей пружины","1 шт",141]
[null,"22.3","Постановка пружины стягивающей","1 шт",489]
[null,"22.4","Изготовление ретенционного аппарата","1 шт",672]
[null,"22.5","Изготовление отродонтического аппарата с вестибулярной дугой ","1 шт",672]
[null,"22.6","Изготовление ортодонтического аппарата с винтом","1 шт",853]
[null,"22.7","Изготовление ортодонтического аппарата двучелюстного","1 шт",1034]
[null,"22.8","Изготовление частичного съемного протеза на одну челюсть ","1 шт",581]
[null,"22.9","Изготовление ортодонтической коронки","1 шт",365]
[null,"22.10","Снятие слепка ","1 шт",231]
[null,"22.11","Лечение зубо-челюстных аномалий с применением:"]
[null,null,"Винтов ортодонтических","1 шт",433]
[null,null,"Металлических брекетов","1 посещение",18293]
[null,null,"Трейнер","1 шт",7210]
[null,null,"Вестибулярная пластина","1 шт",4210]
[null,null,"Керамических брекетов","1 посещение",42421]
[null,"22.12","Фиксация 1 брекета:"]
[null,null,"Фиксация  брекета с 6 зуба","1шт",1776]
[null,null,"замок для 6 зуба","1шт",1776]
[null,null,"щечная трубка","1шт",1776]
[null,null,"маляр  с 6 зуба","1шт",1776]
[null,null,"Подклеивание","1 зуб",162]
[null,null,"смена дуги","1шт",1009]
[null,null,"При потере ","1 зуб",1461]
[null,null,"При потере брекета с 6-го зуба","1 зуб",1776]
[null,null,"Снятие брекетов (12 зубов)","1 услуга",1086]
[null,"22.13","Постановка резиновой тяги","1 шт",199]
[null,"22.14","Постановка лигатуры металлической короткой","50шт",193]
[null,"22.15","Починка аппарата","1шт",362]
[null,"22.16","Постановка лигатуры металлической длинной","1 шт",193]
[null,"22.17","Изготовление верхнечелюстного аппарата","1 услуга",577]
[null,"22.18","Изготовление нижнечелюстного аппарата","1 услуга",535]
[null,"22.19","Изготовление контрольной модели","1 услуга",245]
[null,"22.20","Снятие оттиска","1 услуга",213]
[null,"23","Инфильтрация кариеса вестибулярных поверхностей","1 услуга",1136]
[null,"B01.063.001","Прием (осмотр, консультация) врача-ортодонта первичный","1 посещение",181]
[null,"B01.063.002","Прием (осмотр, консультация) врача-ортодонта повторный","1 посещение",181]
[null,"24","Лечение заболеваний и травм зубочелюстной системы с применением материала для химико-механической обработки кариозных полостей:"]
[null,null,"КАРИКЛИНЗ","1 услуга",102]